{"text_format":"1","workbook":"xlsx","n_sheets":2,"sheets":["RELAÇÃO GERAL","Planilha1"],"not_rendered":{"charts":0,"images":1,"macros":1,"external_links":0,"defined_names":3,"comments":0,"pivot_tables":0},"unopened":[],"bounds":{"document_bytes":16777216,"sheet_cells":100000,"rows_first":2000,"rows_last":500,"rows_between":2000,"halvings":0,"cell_chars":16384,"cell_head_chars":4096},"cells_cut":0,"cells_raw":0,"read":"whole","date_system":"1900"}

{"sheet":"RELAÇÃO GERAL","index":0,"n_rows":390,"n_cols":11,"rows_kept":390,"cut":false,"hidden":false,"merged":[[0,1,7,10]]}
[null,"EMPRESA BRASILEIRA DE HEMODERIVADOS E BIOTECNOLOGIA - HEMOBRÁS\nRELAÇÃO DE EMPREGADOS(AS)\n(MÊS DE REFERÊNCIA: 05/2024)"]
[]
[]
[]
[]
[]
[]
[]
["NÚMERO DE IDENTIFICAÇÃO FUNCIONAL","NOME COMPLETO","CPF","CARGO","FUNÇÃO","LOTAÇÃO","REGIME JURÍDICO","JORNADA DE TRABALHO","ATO DE ADMISSÃO","DATA DE ADMISSÃO","ÓRGÃO DE ORIGEM"]
[{"$f":"Planilha1!B2","v":741},{"$f":"Planilha1!C2","v":"ADELAIDE MARIA CALDAS CABRAL"},{"$f":"\"***\"&MID(Planilha1!D2,4,9)&\"**\"","v":"***.235.824-**"},null,"CHEFE DE GABINETE","HEMOBRÁS - FILIAL UNID. ADM. (RECIFE)",{"$f":"Planilha1!I2","v":"REGIME PRÓPRIO"},{"$f":"Planilha1!J2","v":"NÃO SE APLICA"},{"$f":"Planilha1!K2","v":"PORTARIA"},{"$f":"Planilha1!L2","v":"2024-03-22"},"FUNDO MUNICIPAL DE SAÚDE DO MUNICÍPIO DE PAULISTA"]
[{"$f":"Planilha1!B3","v":224},{"$f":"Planilha1!C3","v":"ADINAEL LAURINDO DE SOUZA"},{"$f":"\"***\"&MID(Planilha1!D3,4,9)&\"**\"","v":"***.989.144-**"},"TÉCNICO IND. E DE GESTÃO CORP. - REFRIGERAÇÃO",null,"HEMOBRÁS - FILIAL UNID. FABRIL (GOIANA)",{"$f":"Planilha1!I3","v":"CELETISTA"},{"$f":"Planilha1!J3","v":"40 HORAS SEMANAIS"},{"$f":"Planilha1!K3","v":"CONCURSO PÚBLICO"},{"$f":"Planilha1!L3","v":"2014-02-21"}]
[{"$f":"Planilha1!B4","v":355},{"$f":"Planilha1!C4","v":"ADRIANO MARTINS PEREIRA"},{"$f":"\"***\"&MID(Planilha1!D4,4,9)&\"**\"","v":"***.611.456-**"},"ANALISTA ADM. DE ASSUNTOS CORP. - LOGÍSTICA FARMACÊUTICA",null,"HEMOBRÁS - FILIAL UNID. ADM. (RECIFE)",{"$f":"Planilha1!I4","v":"CELETISTA"},{"$f":"Planilha1!J4","v":"40 HORAS SEMANAIS"},{"$f":"Planilha1!K4","v":"CONCURSO PÚBLICO"},{"$f":"Planilha1!L4","v":"2015-06-16"}]
[{"$f":"Planilha1!B5","v":287},{"$f":"Planilha1!C5","v":"AGEU BARBOSA DE SOUSA"},{"$f":"\"***\"&MID(Planilha1!D5,4,9)&\"**\"","v":"***.285.904-**"},"TÉCNICO IND. E DE GESTÃO CORP. - TRIAGEM DO PLASMA",null,"HEMOBRÁS - FILIAL UNID. FABRIL (GOIANA)",{"$f":"Planilha1!I5","v":"CELETISTA"},{"$f":"Planilha1!J5","v":"40 HORAS SEMANAIS"},{"$f":"Planilha1!K5","v":"CONCURSO PÚBLICO"},{"$f":"Planilha1!L5","v":"2014-09-01"}]
[{"$f":"Planilha1!B6","v":545},{"$f":"Planilha1!C6","v":"ALANA LAIS DOS SANTOS LIMA"},{"$f":"\"***\"&MID(Planilha1!D6,4,9)&\"**\"","v":"***.291.451-**"},"ANALISTA ADM. DE ASSUNTOS CORP. - JORNALISMO",null,"HEMOBRÁS - FILIAL UNID. ADM. (RECIFE)",{"$f":"Planilha1!I6","v":"CELETISTA"},{"$f":"Planilha1!J6","v":"40 HORAS SEMANAIS"},{"$f":"Planilha1!K6","v":"CONCURSO PÚBLICO"},{"$f":"Planilha1!L6","v":"2022-09-20"}]
[{"$f":"Planilha1!B7","v":568},{"$f":"Planilha1!C7","v":"ALBERT ROCHA DE OLIVEIRA"},{"$f":"\"***\"&MID(Planilha1!D7,4,9)&\"**\"","v":"***.391.204-**"},"ANALISTA IND. DE HEMOD. E BIOTEC. - GARANTIA DA QUALIDADE 2",null,"HEMOBRÁS - FILIAL UNID. FABRIL (GOIANA)",{"$f":"Planilha1!I7","v":"CELETISTA"},{"$f":"Planilha1!J7","v":"40 HORAS SEMANAIS"},{"$f":"Planilha1!K7","v":"CONCURSO PÚBLICO"},{"$f":"Planilha1!L7","v":"2022-09-20"}]
[{"$f":"Planilha1!B8","v":726},{"$f":"Planilha1!C8","v":"ALDENOR SILVA DOS SANTOS"},{"$f":"\"***\"&MID(Planilha1!D8,4,9)&\"**\"","v":"***.299.915-**"},"ANALISTA ADM. DE ASSUNTOS CORP. - DESENVOLVIMENTO DE PESSOAS",null,"HEMOBRÁS - FILIAL UNID. FABRIL (GOIANA)",{"$f":"Planilha1!I8","v":"CELETISTA"},{"$f":"Planilha1!J8","v":"40 HORAS SEMANAIS"},{"$f":"Planilha1!K8","v":"CONCURSO PÚBLICO"},{"$f":"Planilha1!L8","v":"2024-01-10"}]
[{"$f":"Planilha1!B9","v":145},{"$f":"Planilha1!C9","v":"ALEKSANDER CALONGA DE OLIVEIRA"},{"$f":"\"***\"&MID(Planilha1!D9,4,9)&\"**\"","v":"***.413.827-**"},"ANALISTA IND. DE HEMOD. E BIOTEC. - FRACION. IND. PLASMA 1",null,"HEMOBRÁS - FILIAL UNID. FABRIL (GOIANA)",{"$f":"Planilha1!I9","v":"CELETISTA"},{"$f":"Planilha1!J9","v":"40 HORAS SEMANAIS"},{"$f":"Planilha1!K9","v":"CONCURSO PÚBLICO"},{"$f":"Planilha1!L9","v":"2011-04-06"}]
[{"$f":"Planilha1!B10","v":727},{"$f":"Planilha1!C10","v":"ALENE DE OLIVEIRA QUADROS"},{"$f":"\"***\"&MID(Planilha1!D10,4,9)&\"**\"","v":"***.911.102-**"},"ANALISTA IND. DE HEMOD. E BIOTEC. - PLASMA E HEMOCOMPONENTES",null,"HEMOBRÁS - FILIAL UNID. ADM. (RECIFE)",{"$f":"Planilha1!I10","v":"CELETISTA"},{"$f":"Planilha1!J10","v":"40 HORAS SEMANAIS"},{"$f":"Planilha1!K10","v":"CONCURSO PÚBLICO"},{"$f":"Planilha1!L10","v":"2024-01-10"}]
[{"$f":"Planilha1!B11","v":698},{"$f":"Planilha1!C11","v":"ALESSANDRA PEREIRA DA SILVA"},{"$f":"\"***\"&MID(Planilha1!D11,4,9)&\"**\"","v":"***.274.132-**"},"ANALISTA IND. DE HEMOD. E BIOTEC. - FRACION. IND. PLASMA 1",null,"HEMOBRÁS - FILIAL UNID. FABRIL (GOIANA)",{"$f":"Planilha1!I11","v":"CELETISTA"},{"$f":"Planilha1!J11","v":"40 HORAS SEMANAIS"},{"$f":"Planilha1!K11","v":"CONCURSO PÚBLICO"},{"$f":"Planilha1!L11","v":"2023-09-05"}]
[{"$f":"Planilha1!B12","v":473},{"$f":"Planilha1!C12","v":"ALESSON RENATO LOPES VALENCA"},{"$f":"\"***\"&MID(Planilha1!D12,4,9)&\"**\"","v":"***.131.194-**"},"TÉCNICO IND. E DE GESTÃO CORP. - AUTOMAÇÃO INDUSTRIAL",null,"HEMOBRÁS - FILIAL UNID. FABRIL (GOIANA)",{"$f":"Planilha1!I12","v":"CELETISTA"},{"$f":"Planilha1!J12","v":"40 HORAS SEMANAIS"},{"$f":"Planilha1!K12","v":"CONCURSO PÚBLICO"},{"$f":"Planilha1!L12","v":"2019-03-01"}]
[{"$f":"Planilha1!B13","v":225},{"$f":"Planilha1!C13","v":"ALEX HENRIQUE DAS NEVES"},{"$f":"\"***\"&MID(Planilha1!D13,4,9)&\"**\"","v":"***.500.684-**"},"ANALISTA IND. DE HEMOD. E BIOTEC. - ENG. MECÂNICA","CHEFE DE SERVIÇO DE MANUTENÇÃO","HEMOBRÁS - FILIAL UNID. FABRIL (GOIANA)",{"$f":"Planilha1!I13","v":"CELETISTA"},{"$f":"Planilha1!J13","v":"40 HORAS SEMANAIS"},{"$f":"Planilha1!K13","v":"CONCURSO PÚBLICO"},{"$f":"Planilha1!L13","v":"2014-02-21"}]
[{"$f":"Planilha1!B14","v":491},{"$f":"Planilha1!C14","v":"ALEX LAQUIS RESENDE"},{"$f":"\"***\"&MID(Planilha1!D14,4,9)&\"**\"","v":"***.507.511-**"},null,"MEMBRO DO COMITÊ DE AUDITORIA","NÃO SE APLICA",{"$f":"Planilha1!I14","v":"NÃO SE APLICA"},{"$f":"Planilha1!J14","v":"NÃO SE APLICA"},{"$f":"Planilha1!K14","v":"TERMO DE POSSE"},{"$f":"Planilha1!L14","v":"2020-06-15"}]
[{"$f":"Planilha1!B15","v":673},{"$f":"Planilha1!C15","v":"ALEXANDRE COUTO CARNEIRO VIEIRA"},{"$f":"\"***\"&MID(Planilha1!D15,4,9)&\"**\"","v":"***.556.724-**"},"ANALISTA IND. DE HEMOD. E BIOTEC. - FRACION. IND. PLASMA 2",null,"HEMOBRÁS - FILIAL UNID. FABRIL (GOIANA)",{"$f":"Planilha1!I15","v":"CELETISTA"},{"$f":"Planilha1!J15","v":"40 HORAS SEMANAIS"},{"$f":"Planilha1!K15","v":"CONCURSO PÚBLICO"},{"$f":"Planilha1!L15","v":"2023-07-24"}]
[{"$f":"Planilha1!B16","v":479},{"$f":"Planilha1!C16","v":"ALEXANDRE MUNIZ FARIAS"},{"$f":"\"***\"&MID(Planilha1!D16,4,9)&\"**\"","v":"***.651.594-**"},"TÉCNICO IND. E DE GESTÃO CORP. - REFRIGERAÇÃO",null,"HEMOBRÁS - FILIAL UNID. FABRIL (GOIANA)",{"$f":"Planilha1!I16","v":"CELETISTA"},{"$f":"Planilha1!J16","v":"40 HORAS SEMANAIS"},{"$f":"Planilha1!K16","v":"CONCURSO PÚBLICO"},{"$f":"Planilha1!L16","v":"2019-04-15"}]
[{"$f":"Planilha1!B17","v":633},{"$f":"Planilha1!C17","v":"ALEXSANDRO DA COSTA GOMES"},{"$f":"\"***\"&MID(Planilha1!D17,4,9)&\"**\"","v":"***.777.484-**"},"ANALISTA ADM. DE ASSUNTOS CORP. - CONTRATO",null,"HEMOBRÁS - FILIAL UNID. ADM. (RECIFE)",{"$f":"Planilha1!I17","v":"CELETISTA"},{"$f":"Planilha1!J17","v":"40 HORAS SEMANAIS"},{"$f":"Planilha1!K17","v":"CONCURSO PÚBLICO"},{"$f":"Planilha1!L17","v":"2023-02-24"}]
[{"$f":"Planilha1!B18","v":522},{"$f":"Planilha1!C18","v":"ALINE DANTAS FRANCA"},{"$f":"\"***\"&MID(Planilha1!D18,4,9)&\"**\"","v":"***.078.854-**"},"ANALISTA IND. DE HEMOD. E BIOTEC. - FRACION. IND. PLASMA 1",null,"HEMOBRÁS - FILIAL UNID. FABRIL (GOIANA)",{"$f":"Planilha1!I18","v":"CELETISTA"},{"$f":"Planilha1!J18","v":"40 HORAS SEMANAIS"},{"$f":"Planilha1!K18","v":"CONCURSO PÚBLICO"},{"$f":"Planilha1!L18","v":"2022-03-17"}]
[{"$f":"Planilha1!B19","v":596},{"$f":"Planilha1!C19","v":"ALINE FERREIRA PINTO"},{"$f":"\"***\"&MID(Planilha1!D19,4,9)&\"**\"","v":"***.567.592-**"},"ANALISTA IND. DE HEMOD. E BIOTEC. - FRACION. IND. PLASMA 2","CHEFE DE SERVIÇO DE PRODUÇÃO DE  HEMODERIVADOS","HEMOBRÁS - FILIAL UNID. FABRIL (GOIANA)",{"$f":"Planilha1!I19","v":"CELETISTA"},{"$f":"Planilha1!J19","v":"40 HORAS SEMANAIS"},{"$f":"Planilha1!K19","v":"CONCURSO PÚBLICO"},{"$f":"Planilha1!L19","v":"2022-11-25"}]
[{"$f":"Planilha1!B20","v":147},{"$f":"Planilha1!C20","v":"ALINE MARIA LIMA DE OLIVEIRA"},{"$f":"\"***\"&MID(Planilha1!D20,4,9)&\"**\"","v":"***.372.654-**"},"ANALISTA IND. DE HEMOD. E BIOTEC. - PLASMA E HEMOCOMPONENTES",null,"HEMOBRÁS - FILIAL UNID. FABRIL (GOIANA)",{"$f":"Planilha1!I20","v":"CELETISTA"},{"$f":"Planilha1!J20","v":"40 HORAS SEMANAIS"},{"$f":"Planilha1!K20","v":"CONCURSO PÚBLICO"},{"$f":"Planilha1!L20","v":"2011-04-06"}]
[{"$f":"Planilha1!B21","v":277},{"$f":"Planilha1!C21","v":"ALINE REINALDO DIAS"},{"$f":"\"***\"&MID(Planilha1!D21,4,9)&\"**\"","v":"***.101.263-**"},"ANALISTA ADM. DE ASSUNTOS CORP. - LOGÍSTICA FARMACÊUTICA",null,"HEMOBRÁS - FILIAL UNID. FABRIL (GOIANA)",{"$f":"Planilha1!I21","v":"CELETISTA"},{"$f":"Planilha1!J21","v":"40 HORAS SEMANAIS"},{"$f":"Planilha1!K21","v":"CONCURSO PÚBLICO"},{"$f":"Planilha1!L21","v":"2014-07-14"}]
[{"$f":"Planilha1!B22","v":612},{"$f":"Planilha1!C22","v":"AMANDA LUCENA DOS SANTOS"},{"$f":"\"***\"&MID(Planilha1!D22,4,9)&\"**\"","v":"***.957.638-**"},"ANALISTA IND. DE HEMOD. E BIOTEC. - CONTROLE QUALIDADE - 1",null,"HEMOBRÁS - FILIAL UNID. FABRIL (GOIANA)",{"$f":"Planilha1!I22","v":"CELETISTA"},{"$f":"Planilha1!J22","v":"40 HORAS SEMANAIS"},{"$f":"Planilha1!K22","v":"CONCURSO PÚBLICO"},{"$f":"Planilha1!L22","v":"2023-01-25"}]
[{"$f":"Planilha1!B23","v":559},{"$f":"Planilha1!C23","v":"ANA BEATRIZ LIMA MARTINIANO DE OLIVEIRA"},{"$f":"\"***\"&MID(Planilha1!D23,4,9)&\"**\"","v":"***.677.004-**"},"ANALISTA IND. DE HEMOD. E BIOTEC. - GARANTIA DA QUALIDADE 2",null,"HEMOBRÁS - FILIAL UNID. FABRIL (GOIANA)",{"$f":"Planilha1!I23","v":"CELETISTA"},{"$f":"Planilha1!J23","v":"40 HORAS SEMANAIS"},{"$f":"Planilha1!K23","v":"CONCURSO PÚBLICO"},{"$f":"Planilha1!L23","v":"2022-09-20"}]
[{"$f":"Planilha1!B24","v":624},{"$f":"Planilha1!C24","v":"ANA CATARINA CRISTOVAO SILVA"},{"$f":"\"***\"&MID(Planilha1!D24,4,9)&\"**\"","v":"***.292.704-**"},"ANALISTA IND. DE HEMOD. E BIOTEC. - CONTROLE QUALIDADE - 1",null,"HEMOBRÁS - FILIAL UNID. FABRIL (GOIANA)",{"$f":"Planilha1!I24","v":"CELETISTA"},{"$f":"Planilha1!J24","v":"40 HORAS SEMANAIS"},{"$f":"Planilha1!K24","v":"CONCURSO PÚBLICO"},{"$f":"Planilha1!L24","v":"2023-01-25"}]
[{"$f":"Planilha1!B25","v":321},{"$f":"Planilha1!C25","v":"ANA CELIA AZEVEDO DE SIQUEIRA"},{"$f":"\"***\"&MID(Planilha1!D25,4,9)&\"**\"","v":"***.915.384-**"},"ANALISTA IND. DE HEMOD. E BIOTEC. - PLASMA E HEMOCOMPONENTES",null,"HEMOBRÁS - FILIAL UNID. FABRIL (GOIANA)",{"$f":"Planilha1!I25","v":"CELETISTA"},{"$f":"Planilha1!J25","v":"40 HORAS SEMANAIS"},{"$f":"Planilha1!K25","v":"CONCURSO PÚBLICO"},{"$f":"Planilha1!L25","v":"2015-03-02"}]
[{"$f":"Planilha1!B26","v":641},{"$f":"Planilha1!C26","v":"ANA CLARA CORREIA MELGACO"},{"$f":"\"***\"&MID(Planilha1!D26,4,9)&\"**\"","v":"***.353.515-**"},"ANALISTA IND. DE HEMOD. E BIOTEC. - CONTROLE QUALIDADE - 1",null,"HEMOBRÁS - FILIAL UNID. FABRIL (GOIANA)",{"$f":"Planilha1!I26","v":"CELETISTA"},{"$f":"Planilha1!J26","v":"40 HORAS SEMANAIS"},{"$f":"Planilha1!K26","v":"CONCURSO PÚBLICO"},{"$f":"Planilha1!L26","v":"2023-04-25"}]
[{"$f":"Planilha1!B27","v":560},{"$f":"Planilha1!C27","v":"ANA CLAUDIA GOMES DOS ANJOS NASCIMENTO"},{"$f":"\"***\"&MID(Planilha1!D27,4,9)&\"**\"","v":"***.800.844-**"},"ANALISTA IND. DE HEMOD. E BIOTEC. - GARANTIA DA QUALIDADE 2",null,"HEMOBRÁS - FILIAL UNID. FABRIL (GOIANA)",{"$f":"Planilha1!I27","v":"CELETISTA"},{"$f":"Planilha1!J27","v":"40 HORAS SEMANAIS"},{"$f":"Planilha1!K27","v":"CONCURSO PÚBLICO"},{"$f":"Planilha1!L27","v":"2022-09-20"}]
[{"$f":"Planilha1!B28","v":66},{"$f":"Planilha1!C28","v":"ANA KARINA CAMARA DE SOUZA"},{"$f":"\"***\"&MID(Planilha1!D28,4,9)&\"**\"","v":"***.890.734-**"},"ASSISTENTE IND. E DE GESTÃO CORP - TÉC. EM CONTABILIDADE I",null,"HEMOBRÁS - FILIAL UNID. ADM. (RECIFE)",{"$f":"Planilha1!I28","v":"CELETISTA"},{"$f":"Planilha1!J28","v":"40 HORAS SEMANAIS"},{"$f":"Planilha1!K28","v":"CONCURSO PÚBLICO"},{"$f":"Planilha1!L28","v":"2010-03-11"}]
[{"$f":"Planilha1!B29","v":269},{"$f":"Planilha1!C29","v":"ANA LUCIA PEREIRA DE FARIA GONELLA"},{"$f":"\"***\"&MID(Planilha1!D29,4,9)&\"**\"","v":"***.646.371-**"},"ANALISTA IND. DE HEMOD. E BIOTEC. - FRACION. IND. PLASMA 1",null,"HEMOBRÁS - FILIAL UNID. FABRIL (GOIANA)",{"$f":"Planilha1!I29","v":"CELETISTA"},{"$f":"Planilha1!J29","v":"40 HORAS SEMANAIS"},{"$f":"Planilha1!K29","v":"CONCURSO PÚBLICO"},{"$f":"Planilha1!L29","v":"2014-07-14"}]
[{"$f":"Planilha1!B30","v":735},{"$f":"Planilha1!C30","v":"ANA PAULA DO REGO MENEZES"},{"$f":"\"***\"&MID(Planilha1!D30,4,9)&\"**\"","v":"***.985.194-**"},null,"PRESIDENTE","HEMOBRÁS - FILIAL UNID. ADM. (RECIFE)",{"$f":"Planilha1!I30","v":"REGIME PRÓPRIO"},{"$f":"Planilha1!J30","v":"NÃO SE APLICA"},{"$f":"Planilha1!K30","v":"TERMO DE POSSE"},{"$f":"Planilha1!L30","v":"2024-02-23"}]
[{"$f":"Planilha1!B31","v":367},{"$f":"Planilha1!C31","v":"ANA PAULA MACHADO CORREA"},{"$f":"\"***\"&MID(Planilha1!D31,4,9)&\"**\"","v":"***.516.824-**"},"ANALISTA ADM. DE ASSUNTOS CORP. - LOGÍSTICA FARMACÊUTICA",null,"HEMOBRÁS - FILIAL UNID. ADM. (RECIFE)",{"$f":"Planilha1!I31","v":"CELETISTA"},{"$f":"Planilha1!J31","v":"40 HORAS SEMANAIS"},{"$f":"Planilha1!K31","v":"CONCURSO PÚBLICO"},{"$f":"Planilha1!L31","v":"2015-10-20"}]
[{"$f":"Planilha1!B32","v":500},{"$f":"Planilha1!C32","v":"ANA PAULA TELES FERREIRA BARRETO"},{"$f":"\"***\"&MID(Planilha1!D32,4,9)&\"**\"","v":"***.904.191-**"},null,"CONSELHEIRO ADMINISTRATIVO","NÃO SE APLICA",{"$f":"Planilha1!I32","v":"NÃO SE APLICA"},{"$f":"Planilha1!J32","v":"NÃO SE APLICA"},{"$f":"Planilha1!K32","v":"TERMO DE POSSE"},{"$f":"Planilha1!L32","v":"2021-02-23"}]
[{"$f":"Planilha1!B33","v":443},{"$f":"Planilha1!C33","v":"ANA PAULA VIEIRA MANINHO"},{"$f":"\"***\"&MID(Planilha1!D33,4,9)&\"**\"","v":"***.747.451-**"},"ASSISTENTE IND. E DE GESTÃO CORP - ASSISTENTE ADMINISTRATIVO",null,"HEMOBRÁS - MATRIZ (BRASÍLIA)",{"$f":"Planilha1!I33","v":"CELETISTA"},{"$f":"Planilha1!J33","v":"40 HORAS SEMANAIS"},{"$f":"Planilha1!K33","v":"CONCURSO PÚBLICO"},{"$f":"Planilha1!L33","v":"2018-02-01"}]
[{"$f":"Planilha1!B34","v":205},{"$f":"Planilha1!C34","v":"ANDERSON ARNDT"},{"$f":"\"***\"&MID(Planilha1!D34,4,9)&\"**\"","v":"***.280.898-**"},"ESPECIALISTA EM PHB - CONTROLE QUALIDADE - I",null,"HEMOBRÁS - FILIAL UNID. FABRIL (GOIANA)",{"$f":"Planilha1!I34","v":"CELETISTA"},{"$f":"Planilha1!J34","v":"40 HORAS SEMANAIS"},{"$f":"Planilha1!K34","v":"CONCURSO PÚBLICO"},{"$f":"Planilha1!L34","v":"2014-02-20"}]
[{"$f":"Planilha1!B35","v":524},{"$f":"Planilha1!C35","v":"ANDERSON DE ABREU DA SILVA"},{"$f":"\"***\"&MID(Planilha1!D35,4,9)&\"**\"","v":"***.854.004-**"},"ANALISTA IND. DE HEMOD. E BIOTEC. - FRACION. IND. PLASMA 1",null,"HEMOBRÁS - FILIAL UNID. FABRIL (GOIANA)",{"$f":"Planilha1!I35","v":"CELETISTA"},{"$f":"Planilha1!J35","v":"40 HORAS SEMANAIS"},{"$f":"Planilha1!K35","v":"CONCURSO PÚBLICO"},{"$f":"Planilha1!L35","v":"2022-03-17"}]
[{"$f":"Planilha1!B36","v":447},{"$f":"Planilha1!C36","v":"ANDERSON JOSE DE ARAUJO"},{"$f":"\"***\"&MID(Planilha1!D36,4,9)&\"**\"","v":"***.073.984-**"},"ANALISTA IND. DE HEMOD. E BIOTEC. - CONTROLE QUALIDADE - 3",null,"HEMOBRÁS - FILIAL UNID. FABRIL (GOIANA)",{"$f":"Planilha1!I36","v":"CELETISTA"},{"$f":"Planilha1!J36","v":"40 HORAS SEMANAIS"},{"$f":"Planilha1!K36","v":"CONCURSO PÚBLICO"},{"$f":"Planilha1!L36","v":"2018-04-19"}]
[{"$f":"Planilha1!B37","v":410},{"$f":"Planilha1!C37","v":"ANDERSON RODRIGO GEROMEL"},{"$f":"\"***\"&MID(Planilha1!D37,4,9)&\"**\"","v":"***.915.428-**"},"ANALISTA IND. DE HEMOD. E BIOTEC. - GARANTIA DA QUALIDADE",null,"HEMOBRÁS - FILIAL UNID. FABRIL (GOIANA)",{"$f":"Planilha1!I37","v":"CELETISTA"},{"$f":"Planilha1!J37","v":"40 HORAS SEMANAIS"},{"$f":"Planilha1!K37","v":"CONCURSO PÚBLICO"},{"$f":"Planilha1!L37","v":"2016-08-16"}]
[{"$f":"Planilha1!B38","v":8},{"$f":"Planilha1!C38","v":"ANDRE GOMES CORREA"},{"$f":"\"***\"&MID(Planilha1!D38,4,9)&\"**\"","v":"***.880.074-**"},"ANALISTA DE GES. CORP. - ADVOGADO I",null,"HEMOBRÁS - FILIAL UNID. ADM. (RECIFE)",{"$f":"Planilha1!I38","v":"CELETISTA"},{"$f":"Planilha1!J38","v":"40 HORAS SEMANAIS"},{"$f":"Planilha1!K38","v":"CONCURSO PÚBLICO"},{"$f":"Planilha1!L38","v":"2009-07-03"}]
[{"$f":"Planilha1!B39","v":730},{"$f":"Planilha1!C39","v":"ANDRE LUIZ MOTA PINHO"},{"$f":"\"***\"&MID(Planilha1!D39,4,9)&\"**\"","v":"***.337.154-**"},null,"DIRETOR ADM. E FINANCEIRO","HEMOBRÁS - FILIAL UNID. ADM. (RECIFE)",{"$f":"Planilha1!I39","v":"REGIME PRÓPRIO"},{"$f":"Planilha1!J39","v":"NÃO SE APLICA"},{"$f":"Planilha1!K39","v":"TERMO DE POSSE"},{"$f":"Planilha1!L39","v":"2024-01-30"},"COMPANHIA BRASILEIRA DE TRENS URBANOS (CBTU)"]
[{"$f":"Planilha1!B40","v":561},{"$f":"Planilha1!C40","v":"ANDREZA MARIA CORREIA DA SILVA"},{"$f":"\"***\"&MID(Planilha1!D40,4,9)&\"**\"","v":"***.003.404-**"},"ANALISTA IND. DE HEMOD. E BIOTEC. - GARANTIA DA QUALIDADE 2",null,"HEMOBRÁS - FILIAL UNID. FABRIL (GOIANA)",{"$f":"Planilha1!I40","v":"CELETISTA"},{"$f":"Planilha1!J40","v":"40 HORAS SEMANAIS"},{"$f":"Planilha1!K40","v":"CONCURSO PÚBLICO"},{"$f":"Planilha1!L40","v":"2022-09-20"}]
[{"$f":"Planilha1!B41","v":738},{"$f":"Planilha1!C41","v":"ANNA BEATRIZ RIBEIRO CAVALCANTI BATISTA"},{"$f":"\"***\"&MID(Planilha1!D41,4,9)&\"**\"","v":"***.348.534-**"},"ANALISTA ADM. DE ASSUNTOS CORP. - COMPRAS NAC. E INTERNAC.",null,"HEMOBRÁS - FILIAL UNID. ADM. (RECIFE)",{"$f":"Planilha1!I41","v":"CELETISTA"},{"$f":"Planilha1!J41","v":"40 HORAS SEMANAIS"},{"$f":"Planilha1!K41","v":"CONCURSO PÚBLICO"},{"$f":"Planilha1!L41","v":"2024-03-18"}]
[{"$f":"Planilha1!B42","v":644},{"$f":"Planilha1!C42","v":"ANNE CECILIA NASCIMENTO DA CRUZ"},{"$f":"\"***\"&MID(Planilha1!D42,4,9)&\"**\"","v":"***.527.105-**"},"ANALISTA IND. DE HEMOD. E BIOTEC. - CONTROLE QUALIDADE - 2",null,"HEMOBRÁS - FILIAL UNID. FABRIL (GOIANA)",{"$f":"Planilha1!I42","v":"CELETISTA"},{"$f":"Planilha1!J42","v":"40 HORAS SEMANAIS"},{"$f":"Planilha1!K42","v":"CONCURSO PÚBLICO"},{"$f":"Planilha1!L42","v":"2023-04-25"}]
[{"$f":"Planilha1!B43","v":347},{"$f":"Planilha1!C43","v":"ANNE GLEYCE PEREIRA CERQUEIRA"},"***.910.424-**","TÉCNICO IND. E DE GESTÃO CORP. - TRIAGEM DO PLASMA",null,"HEMOBRÁS - FILIAL UNID. FABRIL (GOIANA)",{"$f":"Planilha1!I43","v":"CELETISTA"},{"$f":"Planilha1!J43","v":"40 HORAS SEMANAIS"},{"$f":"Planilha1!K43","v":"CONCURSO PÚBLICO"},{"$f":"Planilha1!L43","v":"2015-06-16"}]
[{"$f":"Planilha1!B44","v":10},{"$f":"Planilha1!C44","v":"ANNE KATHLEEN DA SILVA PRIMO"},{"$f":"\"***\"&MID(Planilha1!D44,4,9)&\"**\"","v":"***.918.814-**"},"ANALISTA DE GES. CORP. - ENGENHEIRO  DE PRODUÇÃO I",null,"HEMOBRÁS - FILIAL UNID. FABRIL (GOIANA)",{"$f":"Planilha1!I44","v":"CELETISTA"},{"$f":"Planilha1!J44","v":"40 HORAS SEMANAIS"},{"$f":"Planilha1!K44","v":"CONCURSO PÚBLICO"},{"$f":"Planilha1!L44","v":"2009-09-25"}]
[{"$f":"Planilha1!B45","v":685},{"$f":"Planilha1!C45","v":"ANNY CAROLINE FERREIRA GUIMARAES"},{"$f":"\"***\"&MID(Planilha1!D45,4,9)&\"**\"","v":"***.202.903-**"},"ANALISTA IND. DE HEMOD. E BIOTEC. - FRACION. IND. PLASMA 2",null,"HEMOBRÁS - FILIAL UNID. FABRIL (GOIANA)",{"$f":"Planilha1!I45","v":"CELETISTA"},{"$f":"Planilha1!J45","v":"40 HORAS SEMANAIS"},{"$f":"Planilha1!K45","v":"CONCURSO PÚBLICO"},{"$f":"Planilha1!L45","v":"2023-07-24"}]
[{"$f":"Planilha1!B46","v":206},{"$f":"Planilha1!C46","v":"ANTONIO DIOGENES PEREIRA DE OLIVEIRA"},{"$f":"\"***\"&MID(Planilha1!D46,4,9)&\"**\"","v":"***.877.303-**"},"ESPECIALISTA EM PHB - GARANTIA DA QUALIDADE - I",null,"HEMOBRÁS - FILIAL UNID. FABRIL (GOIANA)",{"$f":"Planilha1!I46","v":"CELETISTA"},{"$f":"Planilha1!J46","v":"40 HORAS SEMANAIS"},{"$f":"Planilha1!K46","v":"CONCURSO PÚBLICO"},{"$f":"Planilha1!L46","v":"2014-02-20"}]
[{"$f":"Planilha1!B47","v":12},{"$f":"Planilha1!C47","v":"ANTONIO EDSON DE SOUZA LUCENA"},{"$f":"\"***\"&MID(Planilha1!D47,4,9)&\"**\"","v":"***.987.214-**"},"ESPECIALISTA EM PHB - FRAC. IND. PLASMA 2","DIRETORIA DE DESENVOLVIMENTO INDUSTRIAL","HEMOBRÁS - FILIAL UNID. ADM. (RECIFE)",{"$f":"Planilha1!I47","v":"REGIME PRÓPRIO"},{"$f":"Planilha1!J47","v":"NÃO SE APLICA"},{"$f":"Planilha1!K47","v":"TERMO DE POSSE"},{"$f":"Planilha1!L47","v":"2018-08-30"}]
[{"$f":"Planilha1!B48","v":582},{"$f":"Planilha1!C48","v":"ARISA DOS SANTOS FERREIRA"},{"$f":"\"***\"&MID(Planilha1!D48,4,9)&\"**\"","v":"***.332.594-**"},"ANALISTA IND. DE HEMOD. E BIOTEC. - ASSUNTOS REGULATÓRIOS",null,"HEMOBRÁS - FILIAL UNID. ADM. (RECIFE)",{"$f":"Planilha1!I48","v":"CELETISTA"},{"$f":"Planilha1!J48","v":"40 HORAS SEMANAIS"},{"$f":"Planilha1!K48","v":"CONCURSO PÚBLICO"},{"$f":"Planilha1!L48","v":"2022-11-25"}]
[{"$f":"Planilha1!B49","v":305},{"$f":"Planilha1!C49","v":"ARISTOTELES MOURA TAVARES JUNIOR"},{"$f":"\"***\"&MID(Planilha1!D49,4,9)&\"**\"","v":"***.850.894-**"},"ASSISTENTE IND. E DE GESTÃO CORP - ASSISTENTE ADMINISTRATIVO",null,"HEMOBRÁS - FILIAL UNID. ADM. (RECIFE)",{"$f":"Planilha1!I49","v":"CELETISTA"},{"$f":"Planilha1!J49","v":"40 HORAS SEMANAIS"},{"$f":"Planilha1!K49","v":"CONCURSO PÚBLICO"},{"$f":"Planilha1!L49","v":"2015-01-09"}]
[{"$f":"Planilha1!B50","v":668},{"$f":"Planilha1!C50","v":"AUGUSTO LOPES SOUTO"},{"$f":"\"***\"&MID(Planilha1!D50,4,9)&\"**\"","v":"***.358.054-**"},"ANALISTA IND. DE HEMOD. E BIOTEC. - FRACION. IND. PLASMA 1",null,"HEMOBRÁS - FILIAL UNID. FABRIL (GOIANA)",{"$f":"Planilha1!I50","v":"CELETISTA"},{"$f":"Planilha1!J50","v":"40 HORAS SEMANAIS"},{"$f":"Planilha1!K50","v":"CONCURSO PÚBLICO"},{"$f":"Planilha1!L50","v":"2023-07-24"}]
[{"$f":"Planilha1!B51","v":623},{"$f":"Planilha1!C51","v":"AUREO HENRIQUE CABRAL DE MELO SOUZA"},{"$f":"\"***\"&MID(Planilha1!D51,4,9)&\"**\"","v":"***.202.824-**"},"ANALISTA ADM. DE ASSUNTOS CORP. - CONTABILIDADE",null,"HEMOBRÁS - FILIAL UNID. ADM. (RECIFE)",{"$f":"Planilha1!I51","v":"CELETISTA"},{"$f":"Planilha1!J51","v":"40 HORAS SEMANAIS"},{"$f":"Planilha1!K51","v":"CONCURSO PÚBLICO"},{"$f":"Planilha1!L51","v":"2023-01-25"}]
[{"$f":"Planilha1!B52","v":659},{"$f":"Planilha1!C52","v":"BARBARA ARYELA BEZERRA DA SILVA ROCHA"},{"$f":"\"***\"&MID(Planilha1!D52,4,9)&\"**\"","v":"***.089.404-**"},"ANALISTA IND. DE HEMOD. E BIOTEC. - CONTROLE QUALIDADE - 2",null,"HEMOBRÁS - FILIAL UNID. FABRIL (GOIANA)",{"$f":"Planilha1!I52","v":"CELETISTA"},{"$f":"Planilha1!J52","v":"40 HORAS SEMANAIS"},{"$f":"Planilha1!K52","v":"CONCURSO PÚBLICO"},{"$f":"Planilha1!L52","v":"2023-07-24"}]
[{"$f":"Planilha1!B53","v":671},{"$f":"Planilha1!C53","v":"BARBARA LUISA CHAGAS DA SILVA"},{"$f":"\"***\"&MID(Planilha1!D53,4,9)&\"**\"","v":"***.177.901-**"},"ANALISTA IND. DE HEMOD. E BIOTEC. - FRACION. IND. PLASMA 1",null,"HEMOBRÁS - FILIAL UNID. FABRIL (GOIANA)",{"$f":"Planilha1!I53","v":"CELETISTA"},{"$f":"Planilha1!J53","v":"40 HORAS SEMANAIS"},{"$f":"Planilha1!K53","v":"CONCURSO PÚBLICO"},{"$f":"Planilha1!L53","v":"2023-07-24"}]
[{"$f":"Planilha1!B54","v":76},{"$f":"Planilha1!C54","v":"BERLINCK ENEAS CORREIA ARAUJO DOS SANTOS"},{"$f":"\"***\"&MID(Planilha1!D54,4,9)&\"**\"","v":"***.826.504-**"},"ESPECIALISTA EM PHB - ENG. ELÉTRICO/ELETRÔNICO",null,"HEMOBRÁS - FILIAL UNID. FABRIL (GOIANA)",{"$f":"Planilha1!I54","v":"CELETISTA"},{"$f":"Planilha1!J54","v":"40 HORAS SEMANAIS"},{"$f":"Planilha1!K54","v":"CONCURSO PÚBLICO"},{"$f":"Planilha1!L54","v":"2010-07-01"}]
[{"$f":"Planilha1!B55","v":638},{"$f":"Planilha1!C55","v":"BIANCA WARUAR PAULO LOBO"},{"$f":"\"***\"&MID(Planilha1!D55,4,9)&\"**\"","v":"***.927.377-**"},"ANALISTA IND. DE HEMOD. E BIOTEC. - GARANTIA DA QUALIDADE 2",null,"HEMOBRÁS - FILIAL UNID. FABRIL (GOIANA)",{"$f":"Planilha1!I55","v":"CELETISTA"},{"$f":"Planilha1!J55","v":"40 HORAS SEMANAIS"},{"$f":"Planilha1!K55","v":"CONCURSO PÚBLICO"},{"$f":"Planilha1!L55","v":"2023-02-24"}]
[{"$f":"Planilha1!B56","v":562},{"$f":"Planilha1!C56","v":"BRAULIO CESAR DE SOUSA"},{"$f":"\"***\"&MID(Planilha1!D56,4,9)&\"**\"","v":"***.839.854-**"},"ANALISTA IND. DE HEMOD. E BIOTEC. - GARANTIA DA QUALIDADE 2",null,"HEMOBRÁS - FILIAL UNID. FABRIL (GOIANA)",{"$f":"Planilha1!I56","v":"CELETISTA"},{"$f":"Planilha1!J56","v":"40 HORAS SEMANAIS"},{"$f":"Planilha1!K56","v":"CONCURSO PÚBLICO"},{"$f":"Planilha1!L56","v":"2022-09-20"}]
[{"$f":"Planilha1!B57","v":614},{"$f":"Planilha1!C57","v":"BRENO GOMES DO NASCIMENTO LOPES"},{"$f":"\"***\"&MID(Planilha1!D57,4,9)&\"**\"","v":"***.359.634-**"},"ANALISTA IND. DE HEMOD. E BIOTEC. - CONTROLE QUALIDADE - 2",null,"HEMOBRÁS - FILIAL UNID. FABRIL (GOIANA)",{"$f":"Planilha1!I57","v":"CELETISTA"},{"$f":"Planilha1!J57","v":"40 HORAS SEMANAIS"},{"$f":"Planilha1!K57","v":"CONCURSO PÚBLICO"},{"$f":"Planilha1!L57","v":"2023-01-25"}]
[{"$f":"Planilha1!B58","v":507},{"$f":"Planilha1!C58","v":"BRUNA CAVALCANTI ARRUDA"},{"$f":"\"***\"&MID(Planilha1!D58,4,9)&\"**\"","v":"***.726.754-**"},"ESPECIALISTA EM PHB - CONTROLE QUALIDADE - I",null,"HEMOBRÁS - FILIAL UNID. FABRIL (GOIANA)",{"$f":"Planilha1!I58","v":"CELETISTA"},{"$f":"Planilha1!J58","v":"40 HORAS SEMANAIS"},{"$f":"Planilha1!K58","v":"CONCURSO PÚBLICO"},{"$f":"Planilha1!L58","v":"2008-02-11"}]
[{"$f":"Planilha1!B59","v":660},{"$f":"Planilha1!C59","v":"BRUNO AIRES DOS SANTOS"},{"$f":"\"***\"&MID(Planilha1!D59,4,9)&\"**\"","v":"***.679.004-**"},"ANALISTA IND. DE HEMOD. E BIOTEC. - CONTROLE QUALIDADE - 2",null,"HEMOBRÁS - FILIAL UNID. FABRIL (GOIANA)",{"$f":"Planilha1!I59","v":"CELETISTA"},{"$f":"Planilha1!J59","v":"40 HORAS SEMANAIS"},{"$f":"Planilha1!K59","v":"CONCURSO PÚBLICO"},{"$f":"Planilha1!L59","v":"2023-07-24"}]
[{"$f":"Planilha1!B60","v":208},{"$f":"Planilha1!C60","v":"BRUNO EMANUEL FIGUEIREDO BARBOSA"},{"$f":"\"***\"&MID(Planilha1!D60,4,9)&\"**\"","v":"***.500.315-**"},"ANALISTA IND. DE HEMOD. E BIOTEC. - GARANTIA DA QUALIDADE",null,"HEMOBRÁS - FILIAL UNID. ADM. (RECIFE)",{"$f":"Planilha1!I60","v":"CELETISTA"},{"$f":"Planilha1!J60","v":"40 HORAS SEMANAIS"},{"$f":"Planilha1!K60","v":"CONCURSO PÚBLICO"},{"$f":"Planilha1!L60","v":"2014-02-20"}]
[{"$f":"Planilha1!B61","v":255},{"$f":"Planilha1!C61","v":"BRUNO JOSE SENA SOUZA"},{"$f":"\"***\"&MID(Planilha1!D61,4,9)&\"**\"","v":"***.931.264-**"},"ANALISTA ADM. DE ASSUNTOS CORP. - ORÇAMENTO E FINANÇAS",null,"HEMOBRÁS - FILIAL UNID. ADM. (RECIFE)",{"$f":"Planilha1!I61","v":"CELETISTA"},{"$f":"Planilha1!J61","v":"40 HORAS SEMANAIS"},{"$f":"Planilha1!K61","v":"CONCURSO PÚBLICO"},{"$f":"Planilha1!L61","v":"2014-07-14"}]
[{"$f":"Planilha1!B62","v":510},{"$f":"Planilha1!C62","v":"CAIO CESAR SOARES DE SOUSA"},{"$f":"\"***\"&MID(Planilha1!D62,4,9)&\"**\"","v":"***.792.914-**"},null,"PROCURADOR GERAL","HEMOBRÁS - FILIAL UNID. ADM. (RECIFE)",{"$f":"Planilha1!I62","v":"CELETISTA"},{"$f":"Planilha1!J62","v":"40 HORAS SEMANAIS"},{"$f":"Planilha1!K62","v":"PORTARIA"},{"$f":"Planilha1!L62","v":"2021-10-11"}]
[{"$f":"Planilha1!B63","v":411},{"$f":"Planilha1!C63","v":"CAIO SILVA DUARTE"},{"$f":"\"***\"&MID(Planilha1!D63,4,9)&\"**\"","v":"***.627.534-**"},"TÉCNICO IND. E DE GESTÃO CORP. - FRACIONAMENTO DO PLASMA",null,"HEMOBRÁS - FILIAL UNID. FABRIL (GOIANA)",{"$f":"Planilha1!I63","v":"CELETISTA"},{"$f":"Planilha1!J63","v":"40 HORAS SEMANAIS"},{"$f":"Planilha1!K63","v":"CONCURSO PÚBLICO"},{"$f":"Planilha1!L63","v":"2016-08-16"}]
[{"$f":"Planilha1!B64","v":590},{"$f":"Planilha1!C64","v":"CAMILA BIANCA FERREIRA DA ROCHA"},{"$f":"\"***\"&MID(Planilha1!D64,4,9)&\"**\"","v":"***.192.874-**"},"ANALISTA IND. DE HEMOD. E BIOTEC. - FRACION. IND. PLASMA 2",null,"HEMOBRÁS - FILIAL UNID. FABRIL (GOIANA)",{"$f":"Planilha1!I64","v":"CELETISTA"},{"$f":"Planilha1!J64","v":"40 HORAS SEMANAIS"},{"$f":"Planilha1!K64","v":"CONCURSO PÚBLICO"},{"$f":"Planilha1!L64","v":"2022-11-25"}]
[{"$f":"Planilha1!B65","v":396},{"$f":"Planilha1!C65","v":"CAMILA BRAGA OLIVEIRA"},{"$f":"\"***\"&MID(Planilha1!D65,4,9)&\"**\"","v":"***.224.444-**"},"ANALISTA ADM. DE ASSUNTOS CORP. - CONTRATO",null,"HEMOBRÁS - FILIAL UNID. ADM. (RECIFE)",{"$f":"Planilha1!I65","v":"CELETISTA"},{"$f":"Planilha1!J65","v":"40 HORAS SEMANAIS"},{"$f":"Planilha1!K65","v":"CONCURSO PÚBLICO"},{"$f":"Planilha1!L65","v":"2016-03-17"}]
[{"$f":"Planilha1!B66","v":591},{"$f":"Planilha1!C66","v":"CAMILA CARDOSO RIBEIRO MAIA"},{"$f":"\"***\"&MID(Planilha1!D66,4,9)&\"**\"","v":"***.816.946-**"},"ANALISTA IND. DE HEMOD. E BIOTEC. - FRACION. IND. PLASMA 1",null,"HEMOBRÁS - FILIAL UNID. FABRIL (GOIANA)",{"$f":"Planilha1!I66","v":"CELETISTA"},{"$f":"Planilha1!J66","v":"40 HORAS SEMANAIS"},{"$f":"Planilha1!K66","v":"CONCURSO PÚBLICO"},{"$f":"Planilha1!L66","v":"2022-11-25"}]
[{"$f":"Planilha1!B67","v":209},{"$f":"Planilha1!C67","v":"CAMILA SANTANA PEREIRA"},{"$f":"\"***\"&MID(Planilha1!D67,4,9)&\"**\"","v":"***.506.056-**"},"ANALISTA IND. DE HEMOD. E BIOTEC. - PLASMA E HEMOCOMPONENTES",null,"HEMOBRÁS - FILIAL UNID. ADM. (RECIFE)",{"$f":"Planilha1!I67","v":"CELETISTA"},{"$f":"Planilha1!J67","v":"40 HORAS SEMANAIS"},{"$f":"Planilha1!K67","v":"CONCURSO PÚBLICO"},{"$f":"Planilha1!L67","v":"2014-02-20"}]
[{"$f":"Planilha1!B68","v":676},{"$f":"Planilha1!C68","v":"CAMILA SUGUIURA EVANGELISTA"},{"$f":"\"***\"&MID(Planilha1!D68,4,9)&\"**\"","v":"***.144.541-**"},"ANALISTA IND. DE HEMOD. E BIOTEC. - FRACION. IND. PLASMA 1",null,"HEMOBRÁS - FILIAL UNID. FABRIL (GOIANA)",{"$f":"Planilha1!I68","v":"CELETISTA"},{"$f":"Planilha1!J68","v":"40 HORAS SEMANAIS"},{"$f":"Planilha1!K68","v":"CONCURSO PÚBLICO"},{"$f":"Planilha1!L68","v":"2023-07-24"}]
[{"$f":"Planilha1!B69","v":563},{"$f":"Planilha1!C69","v":"CAMILE CAMINHA ANDRADE MAGALHAES"},{"$f":"\"***\"&MID(Planilha1!D69,4,9)&\"**\"","v":"***.827.803-**"},"ANALISTA IND. DE HEMOD. E BIOTEC. - GARANTIA DA QUALIDADE 2",null,"HEMOBRÁS - FILIAL UNID. FABRIL (GOIANA)",{"$f":"Planilha1!I69","v":"CELETISTA"},{"$f":"Planilha1!J69","v":"40 HORAS SEMANAIS"},{"$f":"Planilha1!K69","v":"CONCURSO PÚBLICO"},{"$f":"Planilha1!L69","v":"2022-09-20"}]
[{"$f":"Planilha1!B70","v":679},{"$f":"Planilha1!C70","v":"CARLA CATARINE SANTOS RODRIGUES"},{"$f":"\"***\"&MID(Planilha1!D70,4,9)&\"**\"","v":"***.055.315-**"},"ANALISTA IND. DE HEMOD. E BIOTEC. - FRACION. IND. PLASMA 1",null,"HEMOBRÁS - FILIAL UNID. FABRIL (GOIANA)",{"$f":"Planilha1!I70","v":"CELETISTA"},{"$f":"Planilha1!J70","v":"40 HORAS SEMANAIS"},{"$f":"Planilha1!K70","v":"CONCURSO PÚBLICO"},{"$f":"Planilha1!L70","v":"2023-07-24"}]
[{"$f":"Planilha1!B71","v":695},{"$f":"Planilha1!C71","v":"CARLOS AMILCAR SALGADO"},{"$f":"\"***\"&MID(Planilha1!D71,4,9)&\"**\"","v":"***.982.626-**"},null,"CONSELHEIRO ADMINISTRATIVO","NÃO SE APLICA",{"$f":"Planilha1!I71","v":"NÃO SE APLICA"},{"$f":"Planilha1!J71","v":"NÃO SE APLICA"},{"$f":"Planilha1!K71","v":"TERMO DE POSSE"},{"$f":"Planilha1!L71","v":"2023-08-11"}]
[{"$f":"Planilha1!B72","v":696},{"$f":"Planilha1!C72","v":"CARLOS AUGUSTO GRABOIS GADELHA"},{"$f":"\"***\"&MID(Planilha1!D72,4,9)&\"**\"","v":"***.047.737-**"},null,"CONSELHEIRO ADMINISTRATIVO","NÃO SE APLICA",{"$f":"Planilha1!I72","v":"NÃO SE APLICA"},{"$f":"Planilha1!J72","v":"NÃO SE APLICA"},{"$f":"Planilha1!K72","v":"TERMO DE POSSE"},{"$f":"Planilha1!L72","v":"2023-08-11"}]
[{"$f":"Planilha1!B73","v":262},{"$f":"Planilha1!C73","v":"CARLOS VINICIUS VIANA DE SOUZA"},{"$f":"\"***\"&MID(Planilha1!D73,4,9)&\"**\"","v":"***.037.904-**"},"ANALISTA IND. DE HEMOD. E BIOTEC. - ENG. MECÂNICA",null,"HEMOBRÁS - FILIAL UNID. FABRIL (GOIANA)",{"$f":"Planilha1!I73","v":"CELETISTA"},{"$f":"Planilha1!J73","v":"40 HORAS SEMANAIS"},{"$f":"Planilha1!K73","v":"CONCURSO PÚBLICO"},{"$f":"Planilha1!L73","v":"2014-07-14"}]
[{"$f":"Planilha1!B74","v":75},{"$f":"Planilha1!C74","v":"CAUEH NUNES JOVINO"},{"$f":"\"***\"&MID(Planilha1!D74,4,9)&\"**\"","v":"***.099.944-**"},"ESPECIALISTA EM PHB - FRAC. IND. PLASMA 2",null,"HEMOBRÁS - FILIAL UNID. FABRIL (GOIANA)",{"$f":"Planilha1!I74","v":"CELETISTA"},{"$f":"Planilha1!J74","v":"40 HORAS SEMANAIS"},{"$f":"Planilha1!K74","v":"CONCURSO PÚBLICO"},{"$f":"Planilha1!L74","v":"2010-07-01"}]
[{"$f":"Planilha1!B75","v":549},{"$f":"Planilha1!C75","v":"CELIA CHARLENE NASCIMENTO DA SILVA"},{"$f":"\"***\"&MID(Planilha1!D75,4,9)&\"**\"","v":"***.330.564-**"},"ANALISTA IND. DE HEMOD. E BIOTEC. - PLASMA E HEMOCOMPONENTES",null,"HEMOBRÁS - FILIAL UNID. FABRIL (GOIANA)",{"$f":"Planilha1!I75","v":"CELETISTA"},{"$f":"Planilha1!J75","v":"40 HORAS SEMANAIS"},{"$f":"Planilha1!K75","v":"CONCURSO PÚBLICO"},{"$f":"Planilha1!L75","v":"2022-09-20"}]
[{"$f":"Planilha1!B76","v":557},{"$f":"Planilha1!C76","v":"CHRISTIAN MELO DE OLIVEIRA"},{"$f":"\"***\"&MID(Planilha1!D76,4,9)&\"**\"","v":"***.094.414-**"},"ANALISTA IND. DE HEMOD. E BIOTEC. - CONTROLE QUALIDADE - 2",null,"HEMOBRÁS - FILIAL UNID. FABRIL (GOIANA)",{"$f":"Planilha1!I76","v":"CELETISTA"},{"$f":"Planilha1!J76","v":"40 HORAS SEMANAIS"},{"$f":"Planilha1!K76","v":"CONCURSO PÚBLICO"},{"$f":"Planilha1!L76","v":"2022-09-20"}]
[{"$f":"Planilha1!B77","v":509},{"$f":"Planilha1!C77","v":"CHRISTIANO STINGLIN MADRUGA"},{"$f":"\"***\"&MID(Planilha1!D77,4,9)&\"**\"","v":"***.954.289-**"},"ESPECIALISTA EM PHB - FRAC. IND. PLASMA 1 - I",null,"HEMOBRÁS - FILIAL UNID. FABRIL (GOIANA)",{"$f":"Planilha1!I77","v":"CELETISTA"},{"$f":"Planilha1!J77","v":"40 HORAS SEMANAIS"},{"$f":"Planilha1!K77","v":"CONCURSO PÚBLICO"},{"$f":"Planilha1!L77","v":"2008-11-03"}]
[{"$f":"Planilha1!B78","v":291},{"$f":"Planilha1!C78","v":"CINTHIA SILVEIRA QUEIROGA"},{"$f":"\"***\"&MID(Planilha1!D78,4,9)&\"**\"","v":"***.174.644-**"},"ANALISTA IND. DE HEMOD. E BIOTEC. - ARMAZ E DISTRIB DE MEDIC",null,"HEMOBRÁS - FILIAL UNID. FABRIL (GOIANA)",{"$f":"Planilha1!I78","v":"CELETISTA"},{"$f":"Planilha1!J78","v":"40 HORAS SEMANAIS"},{"$f":"Planilha1!K78","v":"CONCURSO PÚBLICO"},{"$f":"Planilha1!L78","v":"2014-10-15"}]
[{"$f":"Planilha1!B79","v":585},{"$f":"Planilha1!C79","v":"CIRO BAZILIO FALCAO"},{"$f":"\"***\"&MID(Planilha1!D79,4,9)&\"**\"","v":"***.733.004-**"},"ANALISTA ADM. DE ASSUNTOS CORP. - CONTRATO",null,"HEMOBRÁS - FILIAL UNID. ADM. (RECIFE)",{"$f":"Planilha1!I79","v":"CELETISTA"},{"$f":"Planilha1!J79","v":"40 HORAS SEMANAIS"},{"$f":"Planilha1!K79","v":"CONCURSO PÚBLICO"},{"$f":"Planilha1!L79","v":"2022-11-25"}]
[{"$f":"Planilha1!B80","v":573},{"$f":"Planilha1!C80","v":"CLARA PATRICIA FAGUNDES CABRAL"},{"$f":"\"***\"&MID(Planilha1!D80,4,9)&\"**\"","v":"***.870.484-**"},"ANALISTA IND. DE HEMOD. E BIOTEC. - ARMAZ E DISTRIB DE MEDIC",null,"HEMOBRÁS - FILIAL UNID. FABRIL (GOIANA)",{"$f":"Planilha1!I80","v":"CELETISTA"},{"$f":"Planilha1!J80","v":"40 HORAS SEMANAIS"},{"$f":"Planilha1!K80","v":"CONCURSO PÚBLICO"},{"$f":"Planilha1!L80","v":"2022-09-20"}]
[{"$f":"Planilha1!B81","v":226},{"$f":"Planilha1!C81","v":"CLAUDIA VIVIANE LINS RIBEIRO"},{"$f":"\"***\"&MID(Planilha1!D81,4,9)&\"**\"","v":"***.631.244-**"},"ASSISTENTE IND. E DE GESTÃO CORP - ASSISTENTE ADMINISTRATIVO",null,"HEMOBRÁS - FILIAL UNID. ADM. (RECIFE)",{"$f":"Planilha1!I81","v":"CELETISTA"},{"$f":"Planilha1!J81","v":"40 HORAS SEMANAIS"},{"$f":"Planilha1!K81","v":"CONCURSO PÚBLICO"},{"$f":"Planilha1!L81","v":"2014-02-21"}]
[{"$f":"Planilha1!B82","v":4},{"$f":"Planilha1!C82","v":"CLAUDIO LOPES JUNIOR"},{"$f":"\"***\"&MID(Planilha1!D82,4,9)&\"**\"","v":"***.075.984-**"},"TÉCNICO IND. E DE GESTÃO CORP. - TÉC. EM INFORMÁTICA I",null,"HEMOBRÁS - FILIAL UNID. ADM. (RECIFE)",{"$f":"Planilha1!I82","v":"CELETISTA"},{"$f":"Planilha1!J82","v":"40 HORAS SEMANAIS"},{"$f":"Planilha1!K82","v":"CONCURSO PÚBLICO"},{"$f":"Planilha1!L82","v":"2010-04-19"}]
[{"$f":"Planilha1!B83","v":368},{"$f":"Planilha1!C83","v":"CLAUDIONOR DE CASSIO DOS SANTOS SOUZA JUNIOR"},{"$f":"\"***\"&MID(Planilha1!D83,4,9)&\"**\"","v":"***.162.774-**"},"ANALISTA ADM. DE ASSUNTOS CORP. - LOGÍSTICA FARMACÊUTICA",null,"HEMOBRÁS - FILIAL UNID. ADM. (RECIFE)",{"$f":"Planilha1!I83","v":"CELETISTA"},{"$f":"Planilha1!J83","v":"40 HORAS SEMANAIS"},{"$f":"Planilha1!K83","v":"CONCURSO PÚBLICO"},{"$f":"Planilha1!L83","v":"2015-10-20"}]
[{"$f":"Planilha1!B84","v":140},{"$f":"Planilha1!C84","v":"CLEBER COELHO CARDOSO JUNIOR"},{"$f":"\"***\"&MID(Planilha1!D84,4,9)&\"**\"","v":"***.576.421-**"},null,"ASSISTENTE TÉCNICO ESPECIALIZADO","HEMOBRÁS - MATRIZ (BRASÍLIA)",{"$f":"Planilha1!I84","v":"CELETISTA"},{"$f":"Planilha1!J84","v":"40 HORAS SEMANAIS"},{"$f":"Planilha1!K84","v":"CONCURSO PÚBLICO"},{"$f":"Planilha1!L84","v":"2010-07-21"}]
[{"$f":"Planilha1!B85","v":174},{"$f":"Planilha1!C85","v":"CLEDIVALDO DE BRITO SILVA"},{"$f":"\"***\"&MID(Planilha1!D85,4,9)&\"**\"","v":"***.136.914-**"},null,"ASSISTENTE TÉCNICO ESPECIALIZADO","HEMOBRÁS - FILIAL UNID. ADM. (RECIFE)",{"$f":"Planilha1!I85","v":"CELETISTA"},{"$f":"Planilha1!J85","v":"40 HORAS SEMANAIS"},{"$f":"Planilha1!K85","v":"PORTARIA"},{"$f":"Planilha1!L85","v":"2012-04-09"}]
[{"$f":"Planilha1!B86","v":578},{"$f":"Planilha1!C86","v":"CRISTIANO BELARMINO DA SILVA"},{"$f":"\"***\"&MID(Planilha1!D86,4,9)&\"**\"","v":"***.457.804-**"},"ANALISTA ADM. DE ASSUNTOS CORP. - CONTABILIDADE",null,"HEMOBRÁS - FILIAL UNID. ADM. (RECIFE)",{"$f":"Planilha1!I86","v":"CELETISTA"},{"$f":"Planilha1!J86","v":"40 HORAS SEMANAIS"},{"$f":"Planilha1!K86","v":"CONCURSO PÚBLICO"},{"$f":"Planilha1!L86","v":"2022-10-18"}]
[{"$f":"Planilha1!B87","v":592},{"$f":"Planilha1!C87","v":"CYNTHIA GISELE DE OLIVEIRA COIMBRA"},{"$f":"\"***\"&MID(Planilha1!D87,4,9)&\"**\"","v":"***.403.404-**"},"ANALISTA IND. DE HEMOD. E BIOTEC. - FRACION. IND. PLASMA 2",null,"HEMOBRÁS - FILIAL UNID. FABRIL (GOIANA)",{"$f":"Planilha1!I87","v":"CELETISTA"},{"$f":"Planilha1!J87","v":"40 HORAS SEMANAIS"},{"$f":"Planilha1!K87","v":"CONCURSO PÚBLICO"},{"$f":"Planilha1!L87","v":"2022-11-25"}]
[{"$f":"Planilha1!B88","v":412},{"$f":"Planilha1!C88","v":"DANIEL CARLOS JUNIOR"},{"$f":"\"***\"&MID(Planilha1!D88,4,9)&\"**\"","v":"***.404.304-**"},"TÉCNICO IND. E DE GESTÃO CORP. - FRACIONAMENTO DO PLASMA",null,"HEMOBRÁS - FILIAL UNID. FABRIL (GOIANA)",{"$f":"Planilha1!I88","v":"CELETISTA"},{"$f":"Planilha1!J88","v":"40 HORAS SEMANAIS"},{"$f":"Planilha1!K88","v":"CONCURSO PÚBLICO"},{"$f":"Planilha1!L88","v":"2016-08-16"}]
[{"$f":"Planilha1!B89","v":706},{"$f":"Planilha1!C89","v":"DANIEL MARIO ALVES DE PAULA"},{"$f":"\"***\"&MID(Planilha1!D89,4,9)&\"**\"","v":"***.094.471-**"},null,"CONSELHEIRO FISCAL","NÃO SE APLICA",{"$f":"Planilha1!I89","v":"NÃO SE APLICA"},{"$f":"Planilha1!J89","v":"NÃO SE APLICA"},{"$f":"Planilha1!K89","v":"TERMO DE POSSE"},{"$f":"Planilha1!L89","v":"2023-08-28"}]
[{"$f":"Planilha1!B90","v":681},{"$f":"Planilha1!C90","v":"DANIEL RIBEIRO GRIJO"},{"$f":"\"***\"&MID(Planilha1!D90,4,9)&\"**\"","v":"***.330.117-**"},"ANALISTA IND. DE HEMOD. E BIOTEC. - FRACION. IND. PLASMA 1",null,"HEMOBRÁS - FILIAL UNID. FABRIL (GOIANA)",{"$f":"Planilha1!I90","v":"CELETISTA"},{"$f":"Planilha1!J90","v":"40 HORAS SEMANAIS"},{"$f":"Planilha1!K90","v":"CONCURSO PÚBLICO"},{"$f":"Planilha1!L90","v":"2023-07-24"}]
[{"$f":"Planilha1!B91","v":330},{"$f":"Planilha1!C91","v":"DANIELLA SUZANA DE FARIAS"},{"$f":"\"***\"&MID(Planilha1!D91,4,9)&\"**\"","v":"***.280.844-**"},"ASSISTENTE IND. E DE GESTÃO CORP - ASSISTENTE ADMINISTRATIVO",null,"HEMOBRÁS - FILIAL UNID. ADM. (RECIFE)",{"$f":"Planilha1!I91","v":"CELETISTA"},{"$f":"Planilha1!J91","v":"40 HORAS SEMANAIS"},{"$f":"Planilha1!K91","v":"CONCURSO PÚBLICO"},{"$f":"Planilha1!L91","v":"2015-04-13"}]
[{"$f":"Planilha1!B92","v":295},{"$f":"Planilha1!C92","v":"DANIELLE COUTINHO LORDAO"},{"$f":"\"***\"&MID(Planilha1!D92,4,9)&\"**\"","v":"***.770.364-**"},"ANALISTA IND. DE HEMOD. E BIOTEC. - ARMAZ E DISTRIB DE MEDIC",null,"HEMOBRÁS - FILIAL UNID. FABRIL (GOIANA)",{"$f":"Planilha1!I92","v":"CELETISTA"},{"$f":"Planilha1!J92","v":"40 HORAS SEMANAIS"},{"$f":"Planilha1!K92","v":"CONCURSO PÚBLICO"},{"$f":"Planilha1!L92","v":"2014-12-05"}]
[{"$f":"Planilha1!B93","v":637},{"$f":"Planilha1!C93","v":"DANIELLY ROCHA CAVALCANTI DE LIRA"},{"$f":"\"***\"&MID(Planilha1!D93,4,9)&\"**\"","v":"***.348.294-**"},"ANALISTA IND. DE HEMOD. E BIOTEC. - GARANTIA DA QUALIDADE 2",null,"HEMOBRÁS - FILIAL UNID. FABRIL (GOIANA)",{"$f":"Planilha1!I93","v":"CELETISTA"},{"$f":"Planilha1!J93","v":"40 HORAS SEMANAIS"},{"$f":"Planilha1!K93","v":"CONCURSO PÚBLICO"},{"$f":"Planilha1!L93","v":"2023-02-24"}]
[{"$f":"Planilha1!B94","v":332},{"$f":"Planilha1!C94","v":"DANILO RICARDO SILVA TOSCANO"},{"$f":"\"***\"&MID(Planilha1!D94,4,9)&\"**\"","v":"***.653.534-**"},"ASSISTENTE IND. E DE GESTÃO CORP - TÉC. EM CONTABILIDADE I",null,"HEMOBRÁS - FILIAL UNID. ADM. (RECIFE)",{"$f":"Planilha1!I94","v":"CELETISTA"},{"$f":"Planilha1!J94","v":"40 HORAS SEMANAIS"},{"$f":"Planilha1!K94","v":"CONCURSO PÚBLICO"},{"$f":"Planilha1!L94","v":"2015-04-13"}]
[{"$f":"Planilha1!B95","v":525},{"$f":"Planilha1!C95","v":"DAVI DE FRANCA CARNEIRO"},{"$f":"\"***\"&MID(Planilha1!D95,4,9)&\"**\"","v":"***.024.944-**"},"ANALISTA ADM. DE ASSUNTOS CORP. - TECNOLOGIA DA INFORMAÇÃO",null,"HEMOBRÁS - FILIAL UNID. ADM. (RECIFE)",{"$f":"Planilha1!I95","v":"CELETISTA"},{"$f":"Planilha1!J95","v":"40 HORAS SEMANAIS"},{"$f":"Planilha1!K95","v":"CONCURSO PÚBLICO"},{"$f":"Planilha1!L95","v":"2022-03-17"}]
[{"$f":"Planilha1!B96","v":611},{"$f":"Planilha1!C96","v":"DAVI TITO FARIAS"},{"$f":"\"***\"&MID(Planilha1!D96,4,9)&\"**\"","v":"***.209.584-**"},"ANALISTA ADM. DE ASSUNTOS CORP. - TECNOLOGIA DA INFORMAÇÃO",null,"HEMOBRÁS - FILIAL UNID. ADM. (RECIFE)",{"$f":"Planilha1!I96","v":"CELETISTA"},{"$f":"Planilha1!J96","v":"40 HORAS SEMANAIS"},{"$f":"Planilha1!K96","v":"CONCURSO PÚBLICO"},{"$f":"Planilha1!L96","v":"2023-01-25"}]
[{"$f":"Planilha1!B97","v":544},{"$f":"Planilha1!C97","v":"DAYVSON BRUNO PEREIRA DA SILVA"},{"$f":"\"***\"&MID(Planilha1!D97,4,9)&\"**\"","v":"***.341.284-**"},"ANALISTA ADM. DE ASSUNTOS CORP. - CONTABILIDADE",null,"HEMOBRÁS - FILIAL UNID. ADM. (RECIFE)",{"$f":"Planilha1!I97","v":"CELETISTA"},{"$f":"Planilha1!J97","v":"40 HORAS SEMANAIS"},{"$f":"Planilha1!K97","v":"CONCURSO PÚBLICO"},{"$f":"Planilha1!L97","v":"2022-09-20"}]
[{"$f":"Planilha1!B98","v":700},{"$f":"Planilha1!C98","v":"DEMETRIUS SILVA UMBELINO"},{"$f":"\"***\"&MID(Planilha1!D98,4,9)&\"**\"","v":"***.522.634-**"},"ANALISTA ADM. DE ASSUNTOS CORP. - LOGÍSTICA FARMACÊUTICA 1",null,"HEMOBRÁS - FILIAL UNID. FABRIL (GOIANA)",{"$f":"Planilha1!I98","v":"CELETISTA"},{"$f":"Planilha1!J98","v":"40 HORAS SEMANAIS"},{"$f":"Planilha1!K98","v":"CONCURSO PÚBLICO"},{"$f":"Planilha1!L98","v":"2023-08-23"}]
[{"$f":"Planilha1!B99","v":397},{"$f":"Planilha1!C99","v":"DICEU NAZARIO DE OLIVEIRA"},{"$f":"\"***\"&MID(Planilha1!D99,4,9)&\"**\"","v":"***.442.084-**"},"ANALISTA ADM. DE ASSUNTOS CORP. - DESENVOLVIMENTO DE PESSOAS",null,"HEMOBRÁS - FILIAL UNID. FABRIL (GOIANA)",{"$f":"Planilha1!I99","v":"CELETISTA"},{"$f":"Planilha1!J99","v":"40 HORAS SEMANAIS"},{"$f":"Planilha1!K99","v":"CONCURSO PÚBLICO"},{"$f":"Planilha1!L99","v":"2016-04-06"}]
[{"$f":"Planilha1!B100","v":709},{"$f":"Planilha1!C100","v":"DIEGO PESSOA GOMES"},{"$f":"\"***\"&MID(Planilha1!D100,4,9)&\"**\"","v":"***.961.034-**"},null,"CONSELHEIRO ADMINISTRATIVO","NÃO SE APLICA",{"$f":"Planilha1!I100","v":"NÃO SE APLICA"},{"$f":"Planilha1!J100","v":"NÃO SE APLICA"},{"$f":"Planilha1!K100","v":"TERMO DE POSSE"},{"$f":"Planilha1!L100","v":"2023-09-25"}]
[{"$f":"Planilha1!B101","v":474},{"$f":"Planilha1!C101","v":"DIEGO PHILIPE DOS SANTOS BARBOSA"},{"$f":"\"***\"&MID(Planilha1!D101,4,9)&\"**\"","v":"***.411.634-**"},"ANALISTA IND. DE HEMOD. E BIOTEC. - FRACION. IND. PLASMA 1",null,"HEMOBRÁS - FILIAL UNID. FABRIL (GOIANA)",{"$f":"Planilha1!I101","v":"CELETISTA"},{"$f":"Planilha1!J101","v":"40 HORAS SEMANAIS"},{"$f":"Planilha1!K101","v":"CONCURSO PÚBLICO"},{"$f":"Planilha1!L101","v":"2019-03-01"}]
[{"$f":"Planilha1!B102","v":677},{"$f":"Planilha1!C102","v":"DILIANE HELENA DO NASCIMENTO"},{"$f":"\"***\"&MID(Planilha1!D102,4,9)&\"**\"","v":"***.414.454-**"},"ANALISTA IND. DE HEMOD. E BIOTEC. - FRACION. IND. PLASMA 2",null,"HEMOBRÁS - FILIAL UNID. FABRIL (GOIANA)",{"$f":"Planilha1!I102","v":"CELETISTA"},{"$f":"Planilha1!J102","v":"40 HORAS SEMANAIS"},{"$f":"Planilha1!K102","v":"CONCURSO PÚBLICO"},{"$f":"Planilha1!L102","v":"2023-07-24"}]
[{"$f":"Planilha1!B103","v":440},{"$f":"Planilha1!C103","v":"DIOGO JOSE ALVES BARBOZA"},{"$f":"\"***\"&MID(Planilha1!D103,4,9)&\"**\"","v":"***.749.434-**"},"ANALISTA ADM. DE ASSUNTOS CORP. - LICITAÇÃO E CONTRATOS",null,"HEMOBRÁS - FILIAL UNID. ADM. (RECIFE)",{"$f":"Planilha1!I103","v":"CELETISTA"},{"$f":"Planilha1!J103","v":"40 HORAS SEMANAIS"},{"$f":"Planilha1!K103","v":"CONCURSO PÚBLICO"},{"$f":"Planilha1!L103","v":"2018-01-17"}]
[{"$f":"Planilha1!B104","v":639},{"$f":"Planilha1!C104","v":"DYLO FELICIANO DE JESUS"},{"$f":"\"***\"&MID(Planilha1!D104,4,9)&\"**\"","v":"***.753.957-**"},null,"CHEFE DE SERVIÇO DE ESCRITÓRIO DE PROJETOS DE ENGENHARIA","HEMOBRÁS - FILIAL UNID. FABRIL (GOIANA)",{"$f":"Planilha1!I104","v":"CELETISTA"},{"$f":"Planilha1!J104","v":"40 HORAS SEMANAIS"},{"$f":"Planilha1!K104","v":"CONCURSO PÚBLICO"},{"$f":"Planilha1!L104","v":"2023-04-04"}]
[{"$f":"Planilha1!B105","v":398},{"$f":"Planilha1!C105","v":"DYOGO JOSE BRAGA AZEVEDO DE FARIA"},{"$f":"\"***\"&MID(Planilha1!D105,4,9)&\"**\"","v":"***.089.544-**"},"ASSISTENTE IND. E DE GESTÃO CORP - ASSISTENTE ADMINISTRATIVO","CHEFE DE SERVIÇO DE ADMINISTRAÇÃO DE PESSOAL","HEMOBRÁS - FILIAL UNID. FABRIL (GOIANA)",{"$f":"Planilha1!I105","v":"CELETISTA"},{"$f":"Planilha1!J105","v":"40 HORAS SEMANAIS"},{"$f":"Planilha1!K105","v":"CONCURSO PÚBLICO"},{"$f":"Planilha1!L105","v":"2016-04-18"}]
[{"$f":"Planilha1!B106","v":724},{"$f":"Planilha1!C106","v":"EBERTON HELRY RODRIGUES DA SILVA"},{"$f":"\"***\"&MID(Planilha1!D106,4,9)&\"**\"","v":"***.150.684-**"},"TÉCNICO IND. E DE GESTÃO CORP. - MECANICA","CHEFE DE SERVIÇO DE DESENVOLVIMENTO DE PESSOAS","HEMOBRÁS - FILIAL UNID. FABRIL (GOIANA)",{"$f":"Planilha1!I106","v":"CELETISTA"},{"$f":"Planilha1!J106","v":"40 HORAS SEMANAIS"},{"$f":"Planilha1!K106","v":"PORTARIA"},{"$f":"Planilha1!L106","v":"2024-01-10"}]
[{"$f":"Planilha1!B107","v":734},{"$f":"Planilha1!C107","v":"EDIVALDO LUIZ DE FRANCA"},{"$f":"\"***\"&MID(Planilha1!D107,4,9)&\"**\"","v":"***.682.994-**"},"TÉCNICO IND. E DE GESTÃO CORP. - MECANICA",null,"HEMOBRÁS - FILIAL UNID. FABRIL (GOIANA)",{"$f":"Planilha1!I107","v":"CELETISTA"},{"$f":"Planilha1!J107","v":"40 HORAS SEMANAIS"},{"$f":"Planilha1!K107","v":"CONCURSO PÚBLICO"},{"$f":"Planilha1!L107","v":"2024-02-16"}]
[{"$f":"Planilha1!B108","v":17},{"$f":"Planilha1!C108","v":"EDMAR JOSE BARBOSA ACIOLI"},{"$f":"\"***\"&MID(Planilha1!D108,4,9)&\"**\"","v":"***.579.544-**"},"ESPECIALISTA EM PHB - FRAC. IND. PLASMA 1 - I",null,"HEMOBRÁS - FILIAL UNID. ADM. (RECIFE)",{"$f":"Planilha1!I108","v":"CELETISTA"},{"$f":"Planilha1!J108","v":"40 HORAS SEMANAIS"},{"$f":"Planilha1!K108","v":"CONCURSO PÚBLICO"},{"$f":"Planilha1!L108","v":"2009-08-04"}]
[{"$f":"Planilha1!B109","v":237},{"$f":"Planilha1!C109","v":"EDNALDO BISPO DOS SANTOS"},{"$f":"\"***\"&MID(Planilha1!D109,4,9)&\"**\"","v":"***.728.725-**"},"TÉCNICO IND. E DE GESTÃO CORP. - AUTOMAÇÃO INDUSTRIAL",null,"HEMOBRÁS - FILIAL UNID. FABRIL (GOIANA)",{"$f":"Planilha1!I109","v":"CELETISTA"},{"$f":"Planilha1!J109","v":"40 HORAS SEMANAIS"},{"$f":"Planilha1!K109","v":"CONCURSO PÚBLICO"},{"$f":"Planilha1!L109","v":"2014-02-24"}]
[{"$f":"Planilha1!B110","v":452},{"$f":"Planilha1!C110","v":"EDUARDA VANESSA CAVALCANTE MANGUEIRA"},{"$f":"\"***\"&MID(Planilha1!D110,4,9)&\"**\"","v":"***.793.414-**"},"ANALISTA IND. DE HEMOD. E BIOTEC. - CONTROLE QUALIDADE - 1",null,"HEMOBRÁS - FILIAL UNID. FABRIL (GOIANA)",{"$f":"Planilha1!I110","v":"CELETISTA"},{"$f":"Planilha1!J110","v":"40 HORAS SEMANAIS"},{"$f":"Planilha1!K110","v":"CONCURSO PÚBLICO"},{"$f":"Planilha1!L110","v":"2018-07-09"}]
[{"$f":"Planilha1!B111","v":729},{"$f":"Planilha1!C111","v":"EDUARDO MAERCIO FROES"},{"$f":"\"***\"&MID(Planilha1!D111,4,9)&\"**\"","v":"***.268.946-**"},null,"MEMBRO DO COMITÊ DE AUDITORIA","NÃO SE APLICA",{"$f":"Planilha1!I111","v":"NÃO SE APLICA"},{"$f":"Planilha1!J111","v":"NÃO SE APLICA"},{"$f":"Planilha1!K111","v":"TERMO DE POSSE"},{"$f":"Planilha1!L111","v":"2024-04-12"}]
[{"$f":"Planilha1!B112","v":148},{"$f":"Planilha1!C112","v":"ELEONORA FIGUEIREDO PIRES"},{"$f":"\"***\"&MID(Planilha1!D112,4,9)&\"**\"","v":"***.018.634-**"},"ESPECIALISTA EM PHB - FRAC. IND. PLASMA 2",null,"HEMOBRÁS - FILIAL UNID. FABRIL (GOIANA)",{"$f":"Planilha1!I112","v":"CELETISTA"},{"$f":"Planilha1!J112","v":"40 HORAS SEMANAIS"},{"$f":"Planilha1!K112","v":"CONCURSO PÚBLICO"},{"$f":"Planilha1!L112","v":"2011-04-06"}]
[{"$f":"Planilha1!B113","v":551},{"$f":"Planilha1!C113","v":"ELIAS SOUZA SILVA"},{"$f":"\"***\"&MID(Planilha1!D113,4,9)&\"**\"","v":"***.721.955-**"},"ANALISTA IND. DE HEMOD. E BIOTEC. - PLASMA E HEMOCOMPONENTES",null,"HEMOBRÁS - FILIAL UNID. ADM. (RECIFE)",{"$f":"Planilha1!I113","v":"CELETISTA"},{"$f":"Planilha1!J113","v":"40 HORAS SEMANAIS"},{"$f":"Planilha1!K113","v":"CONCURSO PÚBLICO"},{"$f":"Planilha1!L113","v":"2022-09-20"}]
[{"$f":"Planilha1!B114","v":731},{"$f":"Planilha1!C114","v":"ELLEN GABRIELA CAVALCANTE DA COSTA"},{"$f":"\"***\"&MID(Planilha1!D114,4,9)&\"**\"","v":"***.740.474-**"},"APRENDIZ EM TECNICO SEGURANÇA DO TRABALHO",null,"HEMOBRÁS - FILIAL UNID. FABRIL (GOIANA)",{"$f":"Planilha1!I114","v":"CELETISTA"},{"$f":"Planilha1!J114","v":"20 HORAS SEMANAIS"},{"$f":"Planilha1!K114","v":"SELEÇÃO"},{"$f":"Planilha1!L114","v":"2024-02-05"}]
[{"$f":"Planilha1!B115","v":615},{"$f":"Planilha1!C115","v":"ELOIZA MARCELLE DA COSTA SOUZA"},{"$f":"\"***\"&MID(Planilha1!D115,4,9)&\"**\"","v":"***.640.824-**"},"ANALISTA IND. DE HEMOD. E BIOTEC. - CONTROLE QUALIDADE - 2",null,"HEMOBRÁS - FILIAL UNID. FABRIL (GOIANA)",{"$f":"Planilha1!I115","v":"CELETISTA"},{"$f":"Planilha1!J115","v":"40 HORAS SEMANAIS"},{"$f":"Planilha1!K115","v":"CONCURSO PÚBLICO"},{"$f":"Planilha1!L115","v":"2023-01-25"}]
[{"$f":"Planilha1!B116","v":454},{"$f":"Planilha1!C116","v":"ELTON DA SILVA CHAVES"},{"$f":"\"***\"&MID(Planilha1!D116,4,9)&\"**\"","v":"***.509.892-**"},null,"CONSELHEIRO ADMINISTRATIVO","NÃO SE APLICA",{"$f":"Planilha1!I116","v":"NÃO SE APLICA"},{"$f":"Planilha1!J116","v":"NÃO SE APLICA"},{"$f":"Planilha1!K116","v":"TERMO DE POSSE"},{"$f":"Planilha1!L116","v":"2018-08-30"}]
[{"$f":"Planilha1!B117","v":350},{"$f":"Planilha1!C117","v":"EMANUEL COSTA DO PRADO"},{"$f":"\"***\"&MID(Planilha1!D117,4,9)&\"**\"","v":"***.411.894-**"},"ASSISTENTE IND. E DE GESTÃO CORP - ASSISTENTE ADMINISTRATIVO",null,"HEMOBRÁS - FILIAL UNID. ADM. (RECIFE)",{"$f":"Planilha1!I117","v":"CELETISTA"},{"$f":"Planilha1!J117","v":"40 HORAS SEMANAIS"},{"$f":"Planilha1!K117","v":"CONCURSO PÚBLICO"},{"$f":"Planilha1!L117","v":"2015-06-16"}]
[{"$f":"Planilha1!B118","v":146},{"$f":"Planilha1!C118","v":"EMANUEL RODRIGUES DE MORAIS FILHO"},{"$f":"\"***\"&MID(Planilha1!D118,4,9)&\"**\"","v":"***.541.774-**"},"TÉCNICO EM PHB - I",null,"HEMOBRÁS - FILIAL UNID. ADM. (RECIFE)",{"$f":"Planilha1!I118","v":"CELETISTA"},{"$f":"Planilha1!J118","v":"40 HORAS SEMANAIS"},{"$f":"Planilha1!K118","v":"CONCURSO PÚBLICO"},{"$f":"Planilha1!L118","v":"2011-04-06"}]
[{"$f":"Planilha1!B119","v":293},{"$f":"Planilha1!C119","v":"EMANUELA CORIOLANO SILVA"},{"$f":"\"***\"&MID(Planilha1!D119,4,9)&\"**\"","v":"***.016.693-**"},"ANALISTA ADM. DE ASSUNTOS CORP. - PLANEJAMENTO ESTRATÉGICO",null,"HEMOBRÁS - MATRIZ (BRASÍLIA)",{"$f":"Planilha1!I119","v":"CELETISTA"},{"$f":"Planilha1!J119","v":"40 HORAS SEMANAIS"},{"$f":"Planilha1!K119","v":"CONCURSO PÚBLICO"},{"$f":"Planilha1!L119","v":"2014-12-05"}]
[{"$f":"Planilha1!B120","v":82},{"$f":"Planilha1!C120","v":"EMILIA MEGUMI SHIGUEOKA"},{"$f":"\"***\"&MID(Planilha1!D120,4,9)&\"**\"","v":"***.169.159-**"},"ESPECIALISTA EM PHB - FRAC. IND. PLASMA 2","RESPONSÁVEL TÉCNICO","HEMOBRÁS - FILIAL UNID. FABRIL (GOIANA)",{"$f":"Planilha1!I120","v":"CELETISTA"},{"$f":"Planilha1!J120","v":"40 HORAS SEMANAIS"},{"$f":"Planilha1!K120","v":"CONCURSO PÚBLICO"},{"$f":"Planilha1!L120","v":"2010-08-23"}]
[{"$f":"Planilha1!B121","v":376},{"$f":"Planilha1!C121","v":"EMMANUEL DA SILVA NASCIMENTO"},{"$f":"\"***\"&MID(Planilha1!D121,4,9)&\"**\"","v":"***.686.244-**"},"ANALISTA IND. DE HEMOD. E BIOTEC. - ENG. CIVIL",null,"HEMOBRÁS - FILIAL UNID. FABRIL (GOIANA)",{"$f":"Planilha1!I121","v":"CELETISTA"},{"$f":"Planilha1!J121","v":"40 HORAS SEMANAIS"},{"$f":"Planilha1!K121","v":"CONCURSO PÚBLICO"},{"$f":"Planilha1!L121","v":"2015-10-20"}]
[{"$f":"Planilha1!B122","v":630},{"$f":"Planilha1!C122","v":"ENNY ROSE BEZERRA BRAINER SILVA"},{"$f":"\"***\"&MID(Planilha1!D122,4,9)&\"**\"","v":"***.278.534-**"},"ANALISTA IND. DE HEMOD. E BIOTEC. - CONTROLE QUALIDADE - 2",null,"HEMOBRÁS - FILIAL UNID. FABRIL (GOIANA)",{"$f":"Planilha1!I122","v":"CELETISTA"},{"$f":"Planilha1!J122","v":"40 HORAS SEMANAIS"},{"$f":"Planilha1!K122","v":"CONCURSO PÚBLICO"},{"$f":"Planilha1!L122","v":"2023-02-24"}]
[{"$f":"Planilha1!B123","v":717},{"$f":"Planilha1!C123","v":"ERICK GALDINO MASCARENHAS LEITE"},{"$f":"\"***\"&MID(Planilha1!D123,4,9)&\"**\"","v":"***.015.024-**"},"ASSISTENTE IND. E DE GESTÃO CORP - ASSISTENTE ADMINISTRATIVO",null,"HEMOBRÁS - FILIAL UNID. ADM. (RECIFE)",{"$f":"Planilha1!I123","v":"CELETISTA"},{"$f":"Planilha1!J123","v":"40 HORAS SEMANAIS"},{"$f":"Planilha1!K123","v":"CONCURSO PÚBLICO"},{"$f":"Planilha1!L123","v":"2023-10-09"}]
[{"$f":"Planilha1!B124","v":609},{"$f":"Planilha1!C124","v":"ESSIA DE ALMEIDA LIMA"},{"$f":"\"***\"&MID(Planilha1!D124,4,9)&\"**\"","v":"***.575.604-**"},"TÉCNICO IND. E DE GESTÃO CORP. - TRIAGEM DO PLASMA",null,"HEMOBRÁS - FILIAL UNID. FABRIL (GOIANA)",{"$f":"Planilha1!I124","v":"CELETISTA"},{"$f":"Planilha1!J124","v":"40 HORAS SEMANAIS"},{"$f":"Planilha1!K124","v":"CONCURSO PÚBLICO"},{"$f":"Planilha1!L124","v":"2023-01-25"}]
[{"$f":"Planilha1!B125","v":675},{"$f":"Planilha1!C125","v":"EURIPEDES TARGINO LINHARES NETO"},{"$f":"\"***\"&MID(Planilha1!D125,4,9)&\"**\"","v":"***.480.674-**"},"ANALISTA IND. DE HEMOD. E BIOTEC. - FRACION. IND. PLASMA 2",null,"HEMOBRÁS - FILIAL UNID. FABRIL (GOIANA)",{"$f":"Planilha1!I125","v":"CELETISTA"},{"$f":"Planilha1!J125","v":"40 HORAS SEMANAIS"},{"$f":"Planilha1!K125","v":"CONCURSO PÚBLICO"},{"$f":"Planilha1!L125","v":"2023-07-24"}]
[{"$f":"Planilha1!B126","v":358},{"$f":"Planilha1!C126","v":"EVERTON MAMEDE FREITAS DO SACRAMENTO"},{"$f":"\"***\"&MID(Planilha1!D126,4,9)&\"**\"","v":"***.493.574-**"},"ANALISTA ADM. DE ASSUNTOS CORP. - DESENVOLVIMENTO DE PESSOAS",null,"HEMOBRÁS - FILIAL UNID. ADM. (RECIFE)",{"$f":"Planilha1!I126","v":"CELETISTA"},{"$f":"Planilha1!J126","v":"40 HORAS SEMANAIS"},{"$f":"Planilha1!K126","v":"CONCURSO PÚBLICO"},{"$f":"Planilha1!L126","v":"2015-06-16"}]
[{"$f":"Planilha1!B127","v":583},{"$f":"Planilha1!C127","v":"EWERTON HENRIQUE DA SILVEIRA MORAIS"},{"$f":"\"***\"&MID(Planilha1!D127,4,9)&\"**\"","v":"***.523.314-**"},"ANALISTA ADM. DE ASSUNTOS CORP. - COMPRAS NAC. E INTERNAC.",null,"HEMOBRÁS - FILIAL UNID. ADM. (RECIFE)",{"$f":"Planilha1!I127","v":"CELETISTA"},{"$f":"Planilha1!J127","v":"40 HORAS SEMANAIS"},{"$f":"Planilha1!K127","v":"CONCURSO PÚBLICO"},{"$f":"Planilha1!L127","v":"2022-11-25"}]
[{"$f":"Planilha1!B128","v":456},{"$f":"Planilha1!C128","v":"FABIANA MARIA TEIXEIRA DO REGO BARROS"},{"$f":"\"***\"&MID(Planilha1!D128,4,9)&\"**\"","v":"***.943.494-**"},null,"ASSESSOR JURÍDICO","HEMOBRÁS - FILIAL UNID. ADM. (RECIFE)",{"$f":"Planilha1!I128","v":"CELETISTA"},{"$f":"Planilha1!J128","v":"40 HORAS SEMANAIS"},{"$f":"Planilha1!K128","v":"CONCURSO PÚBLICO"},{"$f":"Planilha1!L128","v":"2018-09-04"}]
[{"$f":"Planilha1!B129","v":642},{"$f":"Planilha1!C129","v":"FABIANA MENEZES DE SOUZA CAMARA"},{"$f":"\"***\"&MID(Planilha1!D129,4,9)&\"**\"","v":"***.428.592-**"},"ANALISTA IND. DE HEMOD. E BIOTEC. - CONTROLE QUALIDADE - 2",null,"HEMOBRÁS - FILIAL UNID. FABRIL (GOIANA)",{"$f":"Planilha1!I129","v":"CELETISTA"},{"$f":"Planilha1!J129","v":"40 HORAS SEMANAIS"},{"$f":"Planilha1!K129","v":"CONCURSO PÚBLICO"},{"$f":"Planilha1!L129","v":"2023-04-25"}]
[{"$f":"Planilha1!B130","v":542},{"$f":"Planilha1!C130","v":"FABIANO ALVES DA SILVA"},{"$f":"\"***\"&MID(Planilha1!D130,4,9)&\"**\"","v":"***.631.274-**"},"ANALISTA ADM. DE ASSUNTOS CORP. - TECNOLOGIA DA INFORMAÇÃO",null,"HEMOBRÁS - FILIAL UNID. FABRIL (GOIANA)",{"$f":"Planilha1!I130","v":"CELETISTA"},{"$f":"Planilha1!J130","v":"40 HORAS SEMANAIS"},{"$f":"Planilha1!K130","v":"CONCURSO PÚBLICO"},{"$f":"Planilha1!L130","v":"2022-09-20"}]
[{"$f":"Planilha1!B131","v":229},{"$f":"Planilha1!C131","v":"FABIO AUGUSTO DA CRUZ LIMA"},{"$f":"\"***\"&MID(Planilha1!D131,4,9)&\"**\"","v":"***.803.014-**"},"ANALISTA ADM. DE ASSUNTOS CORP. - LOGÍSTICA FARMACÊUTICA",null,"HEMOBRÁS - FILIAL UNID. ADM. (RECIFE)",{"$f":"Planilha1!I131","v":"CELETISTA"},{"$f":"Planilha1!J131","v":"40 HORAS SEMANAIS"},{"$f":"Planilha1!K131","v":"CONCURSO PÚBLICO"},{"$f":"Planilha1!L131","v":"2014-02-21"}]
[{"$f":"Planilha1!B132","v":739},{"$f":"Planilha1!C132","v":"FABIOLA FREITAS DOS SANTOS"},{"$f":"\"***\"&MID(Planilha1!D132,4,9)&\"**\"","v":"***.226.894-**"},"ASSISTENTE IND. E DE GESTÃO CORP - ASSISTENTE ADMINISTRATIVO",null,"HEMOBRÁS - FILIAL UNID. FABRIL (GOIANA)",{"$f":"Planilha1!I132","v":"CELETISTA"},{"$f":"Planilha1!J132","v":"40 HORAS SEMANAIS"},{"$f":"Planilha1!K132","v":"CONCURSO PÚBLICO"},{"$f":"Planilha1!L132","v":"2024-03-18"}]
[{"$f":"Planilha1!B133","v":20},{"$f":"Planilha1!C133","v":"FABRICIO CHAVES MARTINS"},{"$f":"\"***\"&MID(Planilha1!D133,4,9)&\"**\"","v":"***.443.685-**"},"ESPECIALISTA EM PHB - CONTROLE QUALIDADE - I",null,"HEMOBRÁS - FILIAL UNID. ADM. (RECIFE)",{"$f":"Planilha1!I133","v":"CELETISTA"},{"$f":"Planilha1!J133","v":"40 HORAS SEMANAIS"},{"$f":"Planilha1!K133","v":"CONCURSO PÚBLICO"},{"$f":"Planilha1!L133","v":"2009-07-10"}]
[{"$f":"Planilha1!B134","v":210},{"$f":"Planilha1!C134","v":"FELIPE ALENCAR DE OLIVEIRA"},{"$f":"\"***\"&MID(Planilha1!D134,4,9)&\"**\"","v":"***.631.734-**"},"ESPECIALISTA EM PHB - ENGENHEIRO MECÂNICO - I",null,"HEMOBRÁS - FILIAL UNID. FABRIL (GOIANA)",{"$f":"Planilha1!I134","v":"CELETISTA"},{"$f":"Planilha1!J134","v":"40 HORAS SEMANAIS"},{"$f":"Planilha1!K134","v":"CONCURSO PÚBLICO"},{"$f":"Planilha1!L134","v":"2014-02-20"}]
[{"$f":"Planilha1!B135","v":593},{"$f":"Planilha1!C135","v":"FELIPE LEONARDO BLEY FIALHO"},{"$f":"\"***\"&MID(Planilha1!D135,4,9)&\"**\"","v":"***.060.021-**"},"ANALISTA IND. DE HEMOD. E BIOTEC. - FRACION. IND. PLASMA 2",null,"HEMOBRÁS - FILIAL UNID. FABRIL (GOIANA)",{"$f":"Planilha1!I135","v":"CELETISTA"},{"$f":"Planilha1!J135","v":"40 HORAS SEMANAIS"},{"$f":"Planilha1!K135","v":"CONCURSO PÚBLICO"},{"$f":"Planilha1!L135","v":"2022-11-25"}]
[{"$f":"Planilha1!B136","v":369},{"$f":"Planilha1!C136","v":"FELIPE NOBREGA SOUSA DE FIGUEIREDO"},{"$f":"\"***\"&MID(Planilha1!D136,4,9)&\"**\"","v":"***.759.504-**"},"ANALISTA IND. DE HEMOD. E BIOTEC. - CONTROLE QUALIDADE - 2",null,"HEMOBRÁS - FILIAL UNID. FABRIL (GOIANA)",{"$f":"Planilha1!I136","v":"CELETISTA"},{"$f":"Planilha1!J136","v":"40 HORAS SEMANAIS"},{"$f":"Planilha1!K136","v":"CONCURSO PÚBLICO"},{"$f":"Planilha1!L136","v":"2015-10-20"}]
[{"$f":"Planilha1!B137","v":375},{"$f":"Planilha1!C137","v":"FELIPE TIAGO JOSE DOS SANTOS"},{"$f":"\"***\"&MID(Planilha1!D137,4,9)&\"**\"","v":"***.868.544-**"},"ANALISTA IND. DE HEMOD. E BIOTEC. - GARANTIA DA QUALIDADE",null,"HEMOBRÁS - FILIAL UNID. FABRIL (GOIANA)",{"$f":"Planilha1!I137","v":"CELETISTA"},{"$f":"Planilha1!J137","v":"40 HORAS SEMANAIS"},{"$f":"Planilha1!K137","v":"CONCURSO PÚBLICO"},{"$f":"Planilha1!L137","v":"2015-10-20"}]
[{"$f":"Planilha1!B138","v":462},{"$f":"Planilha1!C138","v":"FERNANDA ALVES MORAES"},{"$f":"\"***\"&MID(Planilha1!D138,4,9)&\"**\"","v":"***.029.234-**"},null,"ASSESSOR ESPECIAL","HEMOBRÁS - FILIAL UNID. ADM. (RECIFE)",{"$f":"Planilha1!I138","v":"CELETISTA"},{"$f":"Planilha1!J138","v":"40 HORAS SEMANAIS"},{"$f":"Planilha1!K138","v":"PORTARIA"},{"$f":"Planilha1!L138","v":"2018-11-05"}]
[{"$f":"Planilha1!B139","v":270},{"$f":"Planilha1!C139","v":"FERNANDA SEVERO DE REZENDE RIBEIRO"},{"$f":"\"***\"&MID(Planilha1!D139,4,9)&\"**\"","v":"***.230.776-**"},"ANALISTA IND. DE HEMOD. E BIOTEC. - FRACION. IND. PLASMA 1",null,"HEMOBRÁS - FILIAL UNID. FABRIL (GOIANA)",{"$f":"Planilha1!I139","v":"CELETISTA"},{"$f":"Planilha1!J139","v":"40 HORAS SEMANAIS"},{"$f":"Planilha1!K139","v":"CONCURSO PÚBLICO"},{"$f":"Planilha1!L139","v":"2014-07-14"}]
[{"$f":"Planilha1!B140","v":597},{"$f":"Planilha1!C140","v":"FERNANDO HENRIQUE ALVES DE CARVALHO"},{"$f":"\"***\"&MID(Planilha1!D140,4,9)&\"**\"","v":"***.006.834-**"},"ANALISTA IND. DE HEMOD. E BIOTEC. - FRACION. IND. PLASMA 1",null,"HEMOBRÁS - FILIAL UNID. FABRIL (GOIANA)",{"$f":"Planilha1!I140","v":"CELETISTA"},{"$f":"Planilha1!J140","v":"40 HORAS SEMANAIS"},{"$f":"Planilha1!K140","v":"CONCURSO PÚBLICO"},{"$f":"Planilha1!L140","v":"2022-11-25"}]
[{"$f":"Planilha1!B141","v":271},{"$f":"Planilha1!C141","v":"FERNANDO KENJI JACOJACO"},{"$f":"\"***\"&MID(Planilha1!D141,4,9)&\"**\"","v":"***.151.479-**"},"ANALISTA IND. DE HEMOD. E BIOTEC. - FRACION. IND. PLASMA 1",null,"HEMOBRÁS - FILIAL UNID. FABRIL (GOIANA)",{"$f":"Planilha1!I141","v":"CELETISTA"},{"$f":"Planilha1!J141","v":"40 HORAS SEMANAIS"},{"$f":"Planilha1!K141","v":"CONCURSO PÚBLICO"},{"$f":"Planilha1!L141","v":"2014-07-14"}]
[{"$f":"Planilha1!B142","v":576},{"$f":"Planilha1!C142","v":"FILIPE GALVAO AZEVEDO CHAVES"},{"$f":"\"***\"&MID(Planilha1!D142,4,9)&\"**\"","v":"***.879.854-**"},"ANALISTA ADM. DE ASSUNTOS CORP. - ORÇAMENTO E FINANÇAS",null,"HEMOBRÁS - FILIAL UNID. ADM. (RECIFE)",{"$f":"Planilha1!I142","v":"CELETISTA"},{"$f":"Planilha1!J142","v":"40 HORAS SEMANAIS"},{"$f":"Planilha1!K142","v":"CONCURSO PÚBLICO"},{"$f":"Planilha1!L142","v":"2022-10-18"}]
[{"$f":"Planilha1!B143","v":584},{"$f":"Planilha1!C143","v":"FLAVIA CAROLINA FERNANDES CABRAL"},{"$f":"\"***\"&MID(Planilha1!D143,4,9)&\"**\"","v":"***.960.464-**"},"ANALISTA ADM. DE ASSUNTOS CORP. - COMPRAS NAC. E INTERNAC.",null,"HEMOBRÁS - FILIAL UNID. ADM. (RECIFE)",{"$f":"Planilha1!I143","v":"CELETISTA"},{"$f":"Planilha1!J143","v":"40 HORAS SEMANAIS"},{"$f":"Planilha1!K143","v":"CONCURSO PÚBLICO"},{"$f":"Planilha1!L143","v":"2022-11-25"}]
[{"$f":"Planilha1!B144","v":564},{"$f":"Planilha1!C144","v":"FLAVIELLE MARTINS DE MELO"},{"$f":"\"***\"&MID(Planilha1!D144,4,9)&\"**\"","v":"***.426.239-**"},"ANALISTA IND. DE HEMOD. E BIOTEC. - GARANTIA DA QUALIDADE 2",null,"HEMOBRÁS - FILIAL UNID. FABRIL (GOIANA)",{"$f":"Planilha1!I144","v":"CELETISTA"},{"$f":"Planilha1!J144","v":"40 HORAS SEMANAIS"},{"$f":"Planilha1!K144","v":"CONCURSO PÚBLICO"},{"$f":"Planilha1!L144","v":"2022-09-20"}]
[{"$f":"Planilha1!B145","v":200},{"$f":"Planilha1!C145","v":"FLORENTINA DE ALBUQUERQUE MARANHAO SIMOES"},{"$f":"\"***\"&MID(Planilha1!D145,4,9)&\"**\"","v":"***.443.204-**"},null,"CHEFE DE SERVIÇO DE ADMINISTRAÇÃO DE PESSOAL","HEMOBRÁS - FILIAL UNID. ADM. (RECIFE)",{"$f":"Planilha1!I145","v":"CELETISTA"},{"$f":"Planilha1!J145","v":"40 HORAS SEMANAIS"},{"$f":"Planilha1!K145","v":"PORTARIA"},{"$f":"Planilha1!L145","v":"2013-10-14"}]
[{"$f":"Planilha1!B146","v":230},{"$f":"Planilha1!C146","v":"FRANCINE DOMICIANO DUARTE SANTOS"},{"$f":"\"***\"&MID(Planilha1!D146,4,9)&\"**\"","v":"***.552.094-**"},"ANALISTA DE GES. CORP. - COMPRAS NACIONAIS E INTERNACIONAIS",null,"HEMOBRÁS - FILIAL UNID. ADM. (RECIFE)",{"$f":"Planilha1!I146","v":"CELETISTA"},{"$f":"Planilha1!J146","v":"40 HORAS SEMANAIS"},{"$f":"Planilha1!K146","v":"CONCURSO PÚBLICO"},{"$f":"Planilha1!L146","v":"2014-02-21"}]
[{"$f":"Planilha1!B147","v":231},{"$f":"Planilha1!C147","v":"FRANCISCO FLAVIO OLIVEIRA DE ARAUJO"},{"$f":"\"***\"&MID(Planilha1!D147,4,9)&\"**\"","v":"***.747.683-**"},"TÉCNICO IND. E DE GESTÃO CORP. - ELÉTRICA",null,"HEMOBRÁS - FILIAL UNID. FABRIL (GOIANA)",{"$f":"Planilha1!I147","v":"CELETISTA"},{"$f":"Planilha1!J147","v":"40 HORAS SEMANAIS"},{"$f":"Planilha1!K147","v":"CONCURSO PÚBLICO"},{"$f":"Planilha1!L147","v":"2014-02-21"}]
[{"$f":"Planilha1!B148","v":556},{"$f":"Planilha1!C148","v":"FRANCIVANDI COELHO BARBOSA"},{"$f":"\"***\"&MID(Planilha1!D148,4,9)&\"**\"","v":"***.932.294-**"},"ANALISTA IND. DE HEMOD. E BIOTEC. - CONTROLE QUALIDADE - 2",null,"HEMOBRÁS - FILIAL UNID. FABRIL (GOIANA)",{"$f":"Planilha1!I148","v":"CELETISTA"},{"$f":"Planilha1!J148","v":"40 HORAS SEMANAIS"},{"$f":"Planilha1!K148","v":"CONCURSO PÚBLICO"},{"$f":"Planilha1!L148","v":"2022-09-20"}]
[{"$f":"Planilha1!B149","v":102},{"$f":"Planilha1!C149","v":"FRANKLIN CAVALCANTE DA SILVA SANTOS"},{"$f":"\"***\"&MID(Planilha1!D149,4,9)&\"**\"","v":"***.783.564-**"},"ANALISTA DE GES. CORP. - CONTADOR I",null,"HEMOBRÁS - FILIAL UNID. ADM. (RECIFE)",{"$f":"Planilha1!I149","v":"CELETISTA"},{"$f":"Planilha1!J149","v":"40 HORAS SEMANAIS"},{"$f":"Planilha1!K149","v":"CONCURSO PÚBLICO"},{"$f":"Planilha1!L149","v":"2011-02-23"}]
[{"$f":"Planilha1!B150","v":143},{"$f":"Planilha1!C150","v":"FREDERICO BATISTA MONTEIRO"},{"$f":"\"***\"&MID(Planilha1!D150,4,9)&\"**\"","v":"***.849.344-**"},"ESPECIALISTA EM PHB - FRAC. IND. PLASMA 1 - I","CHEFE DE SERVIÇO DE RELACIONAMENTO COM HEMORREDES","HEMOBRÁS - FILIAL UNID. ADM. (RECIFE)",{"$f":"Planilha1!I150","v":"CELETISTA"},{"$f":"Planilha1!J150","v":"40 HORAS SEMANAIS"},{"$f":"Planilha1!K150","v":"CONCURSO PÚBLICO"},{"$f":"Planilha1!L150","v":"2011-04-06"}]
[{"$f":"Planilha1!B151","v":598},{"$f":"Planilha1!C151","v":"FREDERICO LEITE GOUVEIA"},{"$f":"\"***\"&MID(Planilha1!D151,4,9)&\"**\"","v":"***.657.464-**"},"ANALISTA IND. DE HEMOD. E BIOTEC. - FRACION. IND. PLASMA 2",null,"HEMOBRÁS - FILIAL UNID. FABRIL (GOIANA)",{"$f":"Planilha1!I151","v":"CELETISTA"},{"$f":"Planilha1!J151","v":"40 HORAS SEMANAIS"},{"$f":"Planilha1!K151","v":"CONCURSO PÚBLICO"},{"$f":"Planilha1!L151","v":"2022-11-25"}]
[{"$f":"Planilha1!B152","v":413},{"$f":"Planilha1!C152","v":"FREDERICO NICOLAS ANTONINO DE SOUZA"},{"$f":"\"***\"&MID(Planilha1!D152,4,9)&\"**\"","v":"***.230.734-**"},"ANALISTA IND. DE HEMOD. E BIOTEC. - GARANTIA DA QUALIDADE",null,"HEMOBRÁS - FILIAL UNID. ADM. (RECIFE)",{"$f":"Planilha1!I152","v":"CELETISTA"},{"$f":"Planilha1!J152","v":"40 HORAS SEMANAIS"},{"$f":"Planilha1!K152","v":"CONCURSO PÚBLICO"},{"$f":"Planilha1!L152","v":"2016-08-16"}]
[{"$f":"Planilha1!B153","v":666},{"$f":"Planilha1!C153","v":"GABRIELA AMARAL DE SOUZA"},{"$f":"\"***\"&MID(Planilha1!D153,4,9)&\"**\"","v":"***.094.524-**"},"ANALISTA IND. DE HEMOD. E BIOTEC. - FRACION. IND. PLASMA 1",null,"HEMOBRÁS - FILIAL UNID. FABRIL (GOIANA)",{"$f":"Planilha1!I153","v":"CELETISTA"},{"$f":"Planilha1!J153","v":"40 HORAS SEMANAIS"},{"$f":"Planilha1!K153","v":"CONCURSO PÚBLICO"},{"$f":"Planilha1!L153","v":"2023-07-24"}]
[{"$f":"Planilha1!B154","v":308},{"$f":"Planilha1!C154","v":"GALBA LOPES DE OLIVEIRA"},{"$f":"\"***\"&MID(Planilha1!D154,4,9)&\"**\"","v":"***.786.964-**"},"ANALISTA ADM. DE ASSUNTOS CORP. - ORÇAMENTO E FINANÇAS",null,"HEMOBRÁS - FILIAL UNID. ADM. (RECIFE)",{"$f":"Planilha1!I154","v":"CELETISTA"},{"$f":"Planilha1!J154","v":"40 HORAS SEMANAIS"},{"$f":"Planilha1!K154","v":"CONCURSO PÚBLICO"},{"$f":"Planilha1!L154","v":"2015-01-09"}]
[{"$f":"Planilha1!B155","v":298},{"$f":"Planilha1!C155","v":"GEAN EWERTON SOARES DA SILVA"},{"$f":"\"***\"&MID(Planilha1!D155,4,9)&\"**\"","v":"***.197.004-**"},"ASSISTENTE IND. E DE GESTÃO CORP - ASSISTENTE ADMINISTRATIVO",null,"HEMOBRÁS - FILIAL UNID. FABRIL (GOIANA)",{"$f":"Planilha1!I155","v":"CELETISTA"},{"$f":"Planilha1!J155","v":"40 HORAS SEMANAIS"},{"$f":"Planilha1!K155","v":"CONCURSO PÚBLICO"},{"$f":"Planilha1!L155","v":"2014-12-05"}]
[{"$f":"Planilha1!B156","v":586},{"$f":"Planilha1!C156","v":"GEIVERSON NEVES SENA"},{"$f":"\"***\"&MID(Planilha1!D156,4,9)&\"**\"","v":"***.853.574-**"},"ANALISTA ADM. DE ASSUNTOS CORP. - CONTRATO",null,"HEMOBRÁS - FILIAL UNID. ADM. (RECIFE)",{"$f":"Planilha1!I156","v":"CELETISTA"},{"$f":"Planilha1!J156","v":"40 HORAS SEMANAIS"},{"$f":"Planilha1!K156","v":"CONCURSO PÚBLICO"},{"$f":"Planilha1!L156","v":"2022-11-25"}]
[{"$f":"Planilha1!B157","v":104},{"$f":"Planilha1!C157","v":"GERLANE NOGUEIRA DE CARVALHO MAGALHAES"},{"$f":"\"***\"&MID(Planilha1!D157,4,9)&\"**\"","v":"***.930.594-**"},"ANALISTA DE GES. CORP. - COM. SOCIAL RELAÇÕES PUBLICAS I",null,"HEMOBRÁS - FILIAL UNID. ADM. (RECIFE)",{"$f":"Planilha1!I157","v":"CELETISTA"},{"$f":"Planilha1!J157","v":"40 HORAS SEMANAIS"},{"$f":"Planilha1!K157","v":"CONCURSO PÚBLICO"},{"$f":"Planilha1!L157","v":"2011-02-23"}]
[{"$f":"Planilha1!B158","v":335},{"$f":"Planilha1!C158","v":"GETULIO LIRA DE FARIAS"},{"$f":"\"***\"&MID(Planilha1!D158,4,9)&\"**\"","v":"***.426.314-**"},"TÉCNICO IND. E DE GESTÃO CORP. - AUTOMAÇÃO INDUSTRIAL",null,"HEMOBRÁS - FILIAL UNID. FABRIL (GOIANA)",{"$f":"Planilha1!I158","v":"CELETISTA"},{"$f":"Planilha1!J158","v":"40 HORAS SEMANAIS"},{"$f":"Planilha1!K158","v":"CONCURSO PÚBLICO"},{"$f":"Planilha1!L158","v":"2015-04-13"}]
[{"$f":"Planilha1!B159","v":309},{"$f":"Planilha1!C159","v":"GILSINELE SILVA SOUSA"},{"$f":"\"***\"&MID(Planilha1!D159,4,9)&\"**\"","v":"***.365.474-**"},"ASSISTENTE IND. E DE GESTÃO CORP - ASSISTENTE ADMINISTRATIVO",null,"HEMOBRÁS - FILIAL UNID. FABRIL (GOIANA)",{"$f":"Planilha1!I159","v":"CELETISTA"},{"$f":"Planilha1!J159","v":"40 HORAS SEMANAIS"},{"$f":"Planilha1!K159","v":"CONCURSO PÚBLICO"},{"$f":"Planilha1!L159","v":"2015-01-09"}]
[{"$f":"Planilha1!B160","v":420},{"$f":"Planilha1!C160","v":"GIOVANNI FERNANDES DE ALBUQUERQUE JUNIOR"},{"$f":"\"***\"&MID(Planilha1!D160,4,9)&\"**\"","v":"***.669.647-**"},null,"ASSESSOR ESPECIAL","HEMOBRÁS - FILIAL UNID. ADM. (RECIFE)",{"$f":"Planilha1!I160","v":"CELETISTA"},{"$f":"Planilha1!J160","v":"40 HORAS SEMANAIS"},{"$f":"Planilha1!K160","v":"PORTARIA"},{"$f":"Planilha1!L160","v":"2016-11-10"}]
[{"$f":"Planilha1!B161","v":460},{"$f":"Planilha1!C161","v":"GLAUBEN TEIXEIRA DE CARVALHO"},{"$f":"\"***\"&MID(Planilha1!D161,4,9)&\"**\"","v":"***.174.244-**"},null,"MEMBRO DO COMITÊ DE AUDITORIA","NÃO SE APLICA",{"$f":"Planilha1!I161","v":"NÃO SE APLICA"},{"$f":"Planilha1!J161","v":"NÃO SE APLICA"},{"$f":"Planilha1!K161","v":"TERMO DE POSSE"},{"$f":"Planilha1!L161","v":"2018-10-01"}]
[{"$f":"Planilha1!B162","v":172},{"$f":"Planilha1!C162","v":"GLAUBER BARROS DA SILVA SANTIAGO"},{"$f":"\"***\"&MID(Planilha1!D162,4,9)&\"**\"","v":"***.699.044-**"},null,"ASSESSOR TÉCNICO ESPECIALIZADO","HEMOBRÁS - FILIAL UNID. FABRIL (GOIANA)",{"$f":"Planilha1!I162","v":"CELETISTA"},{"$f":"Planilha1!J162","v":"40 HORAS SEMANAIS"},{"$f":"Planilha1!K162","v":"PORTARIA"},{"$f":"Planilha1!L162","v":"2012-03-15"}]
[{"$f":"Planilha1!B163","v":352},{"$f":"Planilha1!C163","v":"GLEMISON HONORATO DA SILVA"},{"$f":"\"***\"&MID(Planilha1!D163,4,9)&\"**\"","v":"***.237.564-**"},"ASSISTENTE IND. E DE GESTÃO CORP - ASSISTENTE CONTÁBIL",null,"HEMOBRÁS - FILIAL UNID. ADM. (RECIFE)",{"$f":"Planilha1!I163","v":"CELETISTA"},{"$f":"Planilha1!J163","v":"40 HORAS SEMANAIS"},{"$f":"Planilha1!K163","v":"CONCURSO PÚBLICO"},{"$f":"Planilha1!L163","v":"2015-06-16"}]
[{"$f":"Planilha1!B164","v":254},{"$f":"Planilha1!C164","v":"GRACIELLA ALVES DOS SANTOS"},{"$f":"\"***\"&MID(Planilha1!D164,4,9)&\"**\"","v":"***.722.904-**"},"ASSISTENTE IND. E DE GESTÃO CORP - ASSISTENTE CONTÁBIL",null,"HEMOBRÁS - FILIAL UNID. ADM. (RECIFE)",{"$f":"Planilha1!I164","v":"CELETISTA"},{"$f":"Planilha1!J164","v":"40 HORAS SEMANAIS"},{"$f":"Planilha1!K164","v":"CONCURSO PÚBLICO"},{"$f":"Planilha1!L164","v":"2014-07-14"}]
[{"$f":"Planilha1!B165","v":725},{"$f":"Planilha1!C165","v":"GRACIETE BATISTA ALVES"},{"$f":"\"***\"&MID(Planilha1!D165,4,9)&\"**\"","v":"***.895.904-**"},"ANALISTA ADM. DE ASSUNTOS CORP. - DESENVOLVIMENTO DE PESSOAS",null,"HEMOBRÁS - FILIAL UNID. FABRIL (GOIANA)",{"$f":"Planilha1!I165","v":"CELETISTA"},{"$f":"Planilha1!J165","v":"40 HORAS SEMANAIS"},{"$f":"Planilha1!K165","v":"CONCURSO PÚBLICO"},{"$f":"Planilha1!L165","v":"2024-01-10"}]
[{"$f":"Planilha1!B166","v":710},{"$f":"Planilha1!C166","v":"GUILHERME LAUX"},{"$f":"\"***\"&MID(Planilha1!D166,4,9)&\"**\"","v":"***.159.418-**"},null,"CONSELHEIRO ADMINISTRATIVO","NÃO SE APLICA",{"$f":"Planilha1!I166","v":"NÃO SE APLICA"},{"$f":"Planilha1!J166","v":"NÃO SE APLICA"},{"$f":"Planilha1!K166","v":"TERMO DE POSSE"},{"$f":"Planilha1!L166","v":"2023-09-25"}]
[{"$f":"Planilha1!B167","v":256},{"$f":"Planilha1!C167","v":"GUILHERME MAIA GADELHA"},{"$f":"\"***\"&MID(Planilha1!D167,4,9)&\"**\"","v":"***.839.664-**"},"ANALISTA ADM. DE ASSUNTOS CORP. - CONTRATO",null,"HEMOBRÁS - FILIAL UNID. ADM. (RECIFE)",{"$f":"Planilha1!I167","v":"CELETISTA"},{"$f":"Planilha1!J167","v":"40 HORAS SEMANAIS"},{"$f":"Planilha1!K167","v":"CONCURSO PÚBLICO"},{"$f":"Planilha1!L167","v":"2014-07-14"}]
[{"$f":"Planilha1!B168","v":87},{"$f":"Planilha1!C168","v":"GUSTAVO CAVALCANTI SIMONI"},{"$f":"\"***\"&MID(Planilha1!D168,4,9)&\"**\"","v":"***.133.904-**"},"ANALISTA ADM. DE ASSUNTOS CORP. - CONTADOR I","GERENTE DE ADMINISTRAÇÃO ","HEMOBRÁS - FILIAL UNID. ADM. (RECIFE)",{"$f":"Planilha1!I168","v":"CELETISTA"},{"$f":"Planilha1!J168","v":"40 HORAS SEMANAIS"},{"$f":"Planilha1!K168","v":"CONCURSO PÚBLICO"},{"$f":"Planilha1!L168","v":"2010-09-15"}]
[{"$f":"Planilha1!B169","v":370},{"$f":"Planilha1!C169","v":"HECTOR GALDINO RODRIGUES"},{"$f":"\"***\"&MID(Planilha1!D169,4,9)&\"**\"","v":"***.909.273-**"},"ANALISTA IND. DE HEMOD. E BIOTEC. - CONTROLE QUALIDADE - 1",null,"HEMOBRÁS - FILIAL UNID. FABRIL (GOIANA)",{"$f":"Planilha1!I169","v":"CELETISTA"},{"$f":"Planilha1!J169","v":"40 HORAS SEMANAIS"},{"$f":"Planilha1!K169","v":"CONCURSO PÚBLICO"},{"$f":"Planilha1!L169","v":"2015-10-20"}]
[{"$f":"Planilha1!B170","v":168},{"$f":"Planilha1!C170","v":"HELIO RICARDO FERREIRA DO COUTO"},{"$f":"\"***\"&MID(Planilha1!D170,4,9)&\"**\"","v":"***.563.677-**"},"ANALISTA DE GES. CORP. - CONTADOR I",null,"HEMOBRÁS - FILIAL UNID. FABRIL (GOIANA)",{"$f":"Planilha1!I170","v":"CELETISTA"},{"$f":"Planilha1!J170","v":"40 HORAS SEMANAIS"},{"$f":"Planilha1!K170","v":"CONCURSO PÚBLICO"},{"$f":"Planilha1!L170","v":"2010-01-26"}]
[{"$f":"Planilha1!B171","v":348},{"$f":"Planilha1!C171","v":"HELOINA DE SOUSA FALCAO"},{"$f":"\"***\"&MID(Planilha1!D171,4,9)&\"**\"","v":"***.823.574-**"},"TÉCNICO IND. E DE GESTÃO CORP. - TRIAGEM DO PLASMA",null,"HEMOBRÁS - FILIAL UNID. FABRIL (GOIANA)",{"$f":"Planilha1!I171","v":"CELETISTA"},{"$f":"Planilha1!J171","v":"40 HORAS SEMANAIS"},{"$f":"Planilha1!K171","v":"CONCURSO PÚBLICO"},{"$f":"Planilha1!L171","v":"2015-06-16"}]
[{"$f":"Planilha1!B172","v":310},{"$f":"Planilha1!C172","v":"HENRIQUE SALES GUEDES"},{"$f":"\"***\"&MID(Planilha1!D172,4,9)&\"**\"","v":"***.432.488-**"},"ANALISTA ADM. DE ASSUNTOS CORP. - LOGÍSTICA FARMACÊUTICA",null,"HEMOBRÁS - FILIAL UNID. FABRIL (GOIANA)",{"$f":"Planilha1!I172","v":"CELETISTA"},{"$f":"Planilha1!J172","v":"40 HORAS SEMANAIS"},{"$f":"Planilha1!K172","v":"CONCURSO PÚBLICO"},{"$f":"Planilha1!L172","v":"2015-01-09"}]
[{"$f":"Planilha1!B173","v":558},{"$f":"Planilha1!C173","v":"HYWRE CESAR DE BRITO PINTO"},{"$f":"\"***\"&MID(Planilha1!D173,4,9)&\"**\"","v":"***.291.174-**"},"ANALISTA IND. DE HEMOD. E BIOTEC. - CONTROLE QUALIDADE - 2",null,"HEMOBRÁS - FILIAL UNID. FABRIL (GOIANA)",{"$f":"Planilha1!I173","v":"CELETISTA"},{"$f":"Planilha1!J173","v":"40 HORAS SEMANAIS"},{"$f":"Planilha1!K173","v":"CONCURSO PÚBLICO"},{"$f":"Planilha1!L173","v":"2022-09-20"}]
[{"$f":"Planilha1!B174","v":27},{"$f":"Planilha1!C174","v":"ILCENY PEREIRA DE OLIVEIRA"},{"$f":"\"***\"&MID(Planilha1!D174,4,9)&\"**\"","v":"***.110.121-**"},"ESPECIALISTA EM PHB - FRAC. IND. PLASMA 1 - I",null,"HEMOBRÁS - FILIAL UNID. ADM. (RECIFE)",{"$f":"Planilha1!I174","v":"CELETISTA"},{"$f":"Planilha1!J174","v":"40 HORAS SEMANAIS"},{"$f":"Planilha1!K174","v":"CONCURSO PÚBLICO"},{"$f":"Planilha1!L174","v":"2009-06-26"}]
[{"$f":"Planilha1!B175","v":338},{"$f":"Planilha1!C175","v":"INALDO BRITO NUNES"},{"$f":"\"***\"&MID(Planilha1!D175,4,9)&\"**\"","v":"***.223.735-**"},"ASSISTENTE IND. E DE GESTÃO CORP - ASSISTENTE ADMINISTRATIVO",null,"HEMOBRÁS - FILIAL UNID. FABRIL (GOIANA)",{"$f":"Planilha1!I175","v":"CELETISTA"},{"$f":"Planilha1!J175","v":"40 HORAS SEMANAIS"},{"$f":"Planilha1!K175","v":"CONCURSO PÚBLICO"},{"$f":"Planilha1!L175","v":"2015-04-16"}]
[{"$f":"Planilha1!B176","v":532},{"$f":"Planilha1!C176","v":"INGRID MAIA MONTEIRO"},{"$f":"\"***\"&MID(Planilha1!D176,4,9)&\"**\"","v":"***.257.874-**"},"ANALISTA ADM. DE ASSUNTOS CORP. - CONTRATO",null,"HEMOBRÁS - FILIAL UNID. ADM. (RECIFE)",{"$f":"Planilha1!I176","v":"CELETISTA"},{"$f":"Planilha1!J176","v":"40 HORAS SEMANAIS"},{"$f":"Planilha1!K176","v":"CONCURSO PÚBLICO"},{"$f":"Planilha1!L176","v":"2022-05-03"}]
[{"$f":"Planilha1!B177","v":349},{"$f":"Planilha1!C177","v":"ISABELLA SANTOS"},{"$f":"\"***\"&MID(Planilha1!D177,4,9)&\"**\"","v":"***.458.264-**"},"ANALISTA IND. DE HEMOD. E BIOTEC. - FRACION. IND. PLASMA 2",null,"HEMOBRÁS - FILIAL UNID. FABRIL (GOIANA)",{"$f":"Planilha1!I177","v":"CELETISTA"},{"$f":"Planilha1!J177","v":"40 HORAS SEMANAIS"},{"$f":"Planilha1!K177","v":"CONCURSO PÚBLICO"},{"$f":"Planilha1!L177","v":"2015-06-16"}]
[{"$f":"Planilha1!B178","v":601},{"$f":"Planilha1!C178","v":"IVALDA XAVIER DE CARVALHO"},{"$f":"\"***\"&MID(Planilha1!D178,4,9)&\"**\"","v":"***.106.014-**"},"ANALISTA IND. DE HEMOD. E BIOTEC. - FRACION. IND. PLASMA 2",null,"HEMOBRÁS - FILIAL UNID. FABRIL (GOIANA)",{"$f":"Planilha1!I178","v":"CELETISTA"},{"$f":"Planilha1!J178","v":"40 HORAS SEMANAIS"},{"$f":"Planilha1!K178","v":"CONCURSO PÚBLICO"},{"$f":"Planilha1!L178","v":"2022-11-25"}]
[{"$f":"Planilha1!B179","v":663},{"$f":"Planilha1!C179","v":"JADER MARTINS MARQUES"},{"$f":"\"***\"&MID(Planilha1!D179,4,9)&\"**\"","v":"***.430.444-**"},"ANALISTA IND. DE HEMOD. E BIOTEC. - FRACION. IND. PLASMA 1",null,"HEMOBRÁS - FILIAL UNID. FABRIL (GOIANA)",{"$f":"Planilha1!I179","v":"CELETISTA"},{"$f":"Planilha1!J179","v":"40 HORAS SEMANAIS"},{"$f":"Planilha1!K179","v":"CONCURSO PÚBLICO"},{"$f":"Planilha1!L179","v":"2023-07-24"}]
[{"$f":"Planilha1!B180","v":68},{"$f":"Planilha1!C180","v":"JAMES ANDRADE DA ROCHA MENEZES"},{"$f":"\"***\"&MID(Planilha1!D180,4,9)&\"**\"","v":"***.655.094-**"},"ANALISTA DE GES. CORP. - CONTADOR I",null,"HEMOBRÁS - FILIAL UNID. ADM. (RECIFE)",{"$f":"Planilha1!I180","v":"CELETISTA"},{"$f":"Planilha1!J180","v":"40 HORAS SEMANAIS"},{"$f":"Planilha1!K180","v":"CONCURSO PÚBLICO"},{"$f":"Planilha1!L180","v":"2010-03-01"}]
[{"$f":"Planilha1!B181","v":405},{"$f":"Planilha1!C181","v":"JAMILE DE MORAIS NASCIMENTO"},{"$f":"\"***\"&MID(Planilha1!D181,4,9)&\"**\"","v":"***.686.255-**"},"ANALISTA ADM. DE ASSUNTOS CORP. - CONTRATO",null,"HEMOBRÁS - FILIAL UNID. ADM. (RECIFE)",{"$f":"Planilha1!I181","v":"CELETISTA"},{"$f":"Planilha1!J181","v":"40 HORAS SEMANAIS"},{"$f":"Planilha1!K181","v":"CONCURSO PÚBLICO"},{"$f":"Planilha1!L181","v":"2016-07-14"}]
[{"$f":"Planilha1!B182","v":547},{"$f":"Planilha1!C182","v":"JEAN CARLOS RAMALHO DE SA."},{"$f":"\"***\"&MID(Planilha1!D182,4,9)&\"**\"","v":"***.619.095-**"},"ANALISTA ADM. DE ASSUNTOS CORP. - LOGÍSTICA FARMACÊUTICA 2",null,"HEMOBRÁS - FILIAL UNID. FABRIL (GOIANA)",{"$f":"Planilha1!I182","v":"CELETISTA"},{"$f":"Planilha1!J182","v":"40 HORAS SEMANAIS"},{"$f":"Planilha1!K182","v":"CONCURSO PÚBLICO"},{"$f":"Planilha1!L182","v":"2022-09-20"}]
[{"$f":"Planilha1!B183","v":674},{"$f":"Planilha1!C183","v":"JESSICA REBOUCAS SILVA"},{"$f":"\"***\"&MID(Planilha1!D183,4,9)&\"**\"","v":"***.718.035-**"},"ANALISTA IND. DE HEMOD. E BIOTEC. - FRACION. IND. PLASMA 1",null,"HEMOBRÁS - FILIAL UNID. FABRIL (GOIANA)",{"$f":"Planilha1!I183","v":"CELETISTA"},{"$f":"Planilha1!J183","v":"40 HORAS SEMANAIS"},{"$f":"Planilha1!K183","v":"CONCURSO PÚBLICO"},{"$f":"Planilha1!L183","v":"2023-07-24"}]
[{"$f":"Planilha1!B184","v":713},{"$f":"Planilha1!C184","v":"JOANA CARLA SANCHES RAMOS"},{"$f":"\"***\"&MID(Planilha1!D184,4,9)&\"**\"","v":"***.904.637-**"},"ANALISTA IND. DE HEMOD. E BIOTEC. - ASSUNTOS REGULATÓRIOS",null,"HEMOBRÁS - FILIAL UNID. ADM. (RECIFE)",{"$f":"Planilha1!I184","v":"CELETISTA"},{"$f":"Planilha1!J184","v":"40 HORAS SEMANAIS"},{"$f":"Planilha1!K184","v":"CONCURSO PÚBLICO"},{"$f":"Planilha1!L184","v":"2023-10-09"}]
[{"$f":"Planilha1!B185","v":263},{"$f":"Planilha1!C185","v":"JOAO MARIA ALVES DA CRUZ JUNIOR"},{"$f":"\"***\"&MID(Planilha1!D185,4,9)&\"**\"","v":"***.844.454-**"},"TÉCNICO IND. E DE GESTÃO CORP. - AUTOMAÇÃO INDUSTRIAL",null,"HEMOBRÁS - FILIAL UNID. FABRIL (GOIANA)",{"$f":"Planilha1!I185","v":"CELETISTA"},{"$f":"Planilha1!J185","v":"40 HORAS SEMANAIS"},{"$f":"Planilha1!K185","v":"CONCURSO PÚBLICO"},{"$f":"Planilha1!L185","v":"2014-07-14"}]
[{"$f":"Planilha1!B186","v":701},{"$f":"Planilha1!C186","v":"JOAO VICTOR NASCIMENTO REIS"},{"$f":"\"***\"&MID(Planilha1!D186,4,9)&\"**\"","v":"***.985.054-**"},"ANALISTA IND. DE HEMOD. E BIOTEC. - ENG. MECÂNICA",null,"HEMOBRÁS - FILIAL UNID. FABRIL (GOIANA)",{"$f":"Planilha1!I186","v":"CELETISTA"},{"$f":"Planilha1!J186","v":"40 HORAS SEMANAIS"},{"$f":"Planilha1!K186","v":"CONCURSO PÚBLICO"},{"$f":"Planilha1!L186","v":"2023-08-23"}]
[{"$f":"Planilha1!B187","v":527},{"$f":"Planilha1!C187","v":"JOAO VITOR LIMA DA SILVA"},{"$f":"\"***\"&MID(Planilha1!D187,4,9)&\"**\"","v":"***.874.954-**"},"ANALISTA IND. DE HEMOD. E BIOTEC. - FRACION. IND. PLASMA 1",null,"HEMOBRÁS - FILIAL UNID. FABRIL (GOIANA)",{"$f":"Planilha1!I187","v":"CELETISTA"},{"$f":"Planilha1!J187","v":"40 HORAS SEMANAIS"},{"$f":"Planilha1!K187","v":"CONCURSO PÚBLICO"},{"$f":"Planilha1!L187","v":"2022-03-17"}]
[{"$f":"Planilha1!B188","v":3},{"$f":"Planilha1!C188","v":"JONAS LUIZ CABRAL DA SILVA"},{"$f":"\"***\"&MID(Planilha1!D188,4,9)&\"**\"","v":"***.909.744-**"},"ANALISTA ADM. DE ASSUNTOS CORP. - CONTADOR I","CHEFE DE SERVIÇO DE CONTABILIDADE","HEMOBRÁS - FILIAL UNID. ADM. (RECIFE)",{"$f":"Planilha1!I188","v":"CELETISTA"},{"$f":"Planilha1!J188","v":"40 HORAS SEMANAIS"},{"$f":"Planilha1!K188","v":"CONCURSO PÚBLICO"},{"$f":"Planilha1!L188","v":"2010-04-19"}]
[{"$f":"Planilha1!B189","v":714},{"$f":"Planilha1!C189","v":"JORGE ANTONIO CHAVES DE OLIVEIRA"},{"$f":"\"***\"&MID(Planilha1!D189,4,9)&\"**\"","v":"***.888.144-**"},"ANALISTA ADM. DE ASSUNTOS CORP. - LOGÍSTICA FARMACÊUTICA 1",null,"HEMOBRÁS - FILIAL UNID. ADM. (RECIFE)",{"$f":"Planilha1!I189","v":"CELETISTA"},{"$f":"Planilha1!J189","v":"40 HORAS SEMANAIS"},{"$f":"Planilha1!K189","v":"CONCURSO PÚBLICO"},{"$f":"Planilha1!L189","v":"2023-10-09"}]
[{"$f":"Planilha1!B190","v":632},{"$f":"Planilha1!C190","v":"JOSE CLEBERSON SANTOS SOARES"},{"$f":"\"***\"&MID(Planilha1!D190,4,9)&\"**\"","v":"***.980.694-**"},"ANALISTA IND. DE HEMOD. E BIOTEC. - CONTROLE QUALIDADE - 2",null,"HEMOBRÁS - FILIAL UNID. FABRIL (GOIANA)",{"$f":"Planilha1!I190","v":"CELETISTA"},{"$f":"Planilha1!J190","v":"40 HORAS SEMANAIS"},{"$f":"Planilha1!K190","v":"CONCURSO PÚBLICO"},{"$f":"Planilha1!L190","v":"2023-02-24"}]
[{"$f":"Planilha1!B191","v":699},{"$f":"Planilha1!C191","v":"JOSE DIEGO SILVA NUNES"},{"$f":"\"***\"&MID(Planilha1!D191,4,9)&\"**\"","v":"***.843.544-**"},"TÉCNICO IND. E DE GESTÃO CORP. - MECÂNICA",null,"HEMOBRÁS - FILIAL UNID. FABRIL (GOIANA)",{"$f":"Planilha1!I191","v":"CELETISTA"},{"$f":"Planilha1!J191","v":"40 HORAS SEMANAIS"},{"$f":"Planilha1!K191","v":"CONCURSO PÚBLICO"},{"$f":"Planilha1!L191","v":"2023-08-23"}]
[{"$f":"Planilha1!B192","v":249},{"$f":"Planilha1!C192","v":"JOSE EDSON CARDOSO DA COSTA"},{"$f":"\"***\"&MID(Planilha1!D192,4,9)&\"**\"","v":"***.896.824-**"},"TÉCNICO IND. E DE GESTÃO CORP. - TRIAGEM DO PLASMA","ASSISTENTE TÉCNICO","HEMOBRÁS - FILIAL UNID. FABRIL (GOIANA)",{"$f":"Planilha1!I192","v":"CELETISTA"},{"$f":"Planilha1!J192","v":"40 HORAS SEMANAIS"},{"$f":"Planilha1!K192","v":"CONCURSO PÚBLICO"},{"$f":"Planilha1!L192","v":"2014-05-12"}]
[{"$f":"Planilha1!B193","v":196},{"$f":"Planilha1!C193","v":"JOSE EDUARDO SEVERINO MARTINS"},{"$f":"\"***\"&MID(Planilha1!D193,4,9)&\"**\"","v":"***.141.721-**"},"ANALISTA IND. DE HEMOD. E BIOTEC. - FRACION. IND. PLASMA 2","ASSESSOR TÉCNICO ESPECIALIZADO ","HEMOBRÁS - FILIAL UNID. ADM. (RECIFE)",{"$f":"Planilha1!I193","v":"CELETISTA"},{"$f":"Planilha1!J193","v":"40 HORAS SEMANAIS"},{"$f":"Planilha1!K193","v":"CONCURSO PÚBLICO"},{"$f":"Planilha1!L193","v":"2013-04-18"}]
[{"$f":"Planilha1!B194","v":33},{"$f":"Planilha1!C194","v":"JOSE MANOEL DO NASCIMENTO"},{"$f":"\"***\"&MID(Planilha1!D194,4,9)&\"**\"","v":"***.084.314-**"},"ANALISTA DE GES. CORP. - ADMINISTRADOR I",null,"HEMOBRÁS - FILIAL UNID. ADM. (RECIFE)",{"$f":"Planilha1!I194","v":"CELETISTA"},{"$f":"Planilha1!J194","v":"40 HORAS SEMANAIS"},{"$f":"Planilha1!K194","v":"CONCURSO PÚBLICO"},{"$f":"Planilha1!L194","v":"2009-07-10"}]
[{"$f":"Planilha1!B195","v":543},{"$f":"Planilha1!C195","v":"JOSE MARIA ARAUJO CORREIA LIMA"},{"$f":"\"***\"&MID(Planilha1!D195,4,9)&\"**\"","v":"***.998.014-**"},"ANALISTA ADM. DE ASSUNTOS CORP. - CONTABILIDADE",null,"HEMOBRÁS - FILIAL UNID. ADM. (RECIFE)",{"$f":"Planilha1!I195","v":"CELETISTA"},{"$f":"Planilha1!J195","v":"40 HORAS SEMANAIS"},{"$f":"Planilha1!K195","v":"CONCURSO PÚBLICO"},{"$f":"Planilha1!L195","v":"2022-09-20"}]
[{"$f":"Planilha1!B196","v":693},{"$f":"Planilha1!C196","v":"JOSE RAFAEL DO NASCIMENTO"},{"$f":"\"***\"&MID(Planilha1!D196,4,9)&\"**\"","v":"***.244.534-**"},"ANALISTA IND. DE HEMOD. E BIOTEC. - FRACION. IND. PLASMA 2",null,"HEMOBRÁS - FILIAL UNID. FABRIL (GOIANA)",{"$f":"Planilha1!I196","v":"CELETISTA"},{"$f":"Planilha1!J196","v":"40 HORAS SEMANAIS"},{"$f":"Planilha1!K196","v":"CONCURSO PÚBLICO"},{"$f":"Planilha1!L196","v":"2023-07-24"}]
[{"$f":"Planilha1!B197","v":553},{"$f":"Planilha1!C197","v":"JOSE WANDERLAN PONTES ESPINDOLA"},{"$f":"\"***\"&MID(Planilha1!D197,4,9)&\"**\"","v":"***.758.424-**"},"ANALISTA IND. DE HEMOD. E BIOTEC. - CONTROLE QUALIDADE - 2",null,"HEMOBRÁS - FILIAL UNID. FABRIL (GOIANA)",{"$f":"Planilha1!I197","v":"CELETISTA"},{"$f":"Planilha1!J197","v":"40 HORAS SEMANAIS"},{"$f":"Planilha1!K197","v":"CONCURSO PÚBLICO"},{"$f":"Planilha1!L197","v":"2022-09-20"}]
[{"$f":"Planilha1!B198","v":661},{"$f":"Planilha1!C198","v":"JOSE WELLITHOM VITURINO DA SILVA"},{"$f":"\"***\"&MID(Planilha1!D198,4,9)&\"**\"","v":"***.928.404-**"},"ANALISTA IND. DE HEMOD. E BIOTEC. - CONTROLE QUALIDADE - 2",null,"HEMOBRÁS - FILIAL UNID. FABRIL (GOIANA)",{"$f":"Planilha1!I198","v":"CELETISTA"},{"$f":"Planilha1!J198","v":"40 HORAS SEMANAIS"},{"$f":"Planilha1!K198","v":"CONCURSO PÚBLICO"},{"$f":"Planilha1!L198","v":"2023-07-24"}]
[{"$f":"Planilha1!B199","v":574},{"$f":"Planilha1!C199","v":"JULIA CURZEL DALLAGASPERINA"},{"$f":"\"***\"&MID(Planilha1!D199,4,9)&\"**\"","v":"***.699.430-**"},"ANALISTA IND. DE HEMOD. E BIOTEC. - ENG. AMBIENTAL",null,"HEMOBRÁS - FILIAL UNID. FABRIL (GOIANA)",{"$f":"Planilha1!I199","v":"CELETISTA"},{"$f":"Planilha1!J199","v":"40 HORAS SEMANAIS"},{"$f":"Planilha1!K199","v":"CONCURSO PÚBLICO"},{"$f":"Planilha1!L199","v":"2022-10-18"}]
[{"$f":"Planilha1!B200","v":684},{"$f":"Planilha1!C200","v":"JULIANA DE OLIVEIRA TEIXEIRA"},{"$f":"\"***\"&MID(Planilha1!D200,4,9)&\"**\"","v":"***.218.737-**"},"ANALISTA IND. DE HEMOD. E BIOTEC. - FRACION. IND. PLASMA 1",null,"HEMOBRÁS - FILIAL UNID. FABRIL (GOIANA)",{"$f":"Planilha1!I200","v":"CELETISTA"},{"$f":"Planilha1!J200","v":"40 HORAS SEMANAIS"},{"$f":"Planilha1!K200","v":"CONCURSO PÚBLICO"},{"$f":"Planilha1!L200","v":"2023-07-24"}]
[{"$f":"Planilha1!B201","v":594},{"$f":"Planilha1!C201","v":"JULIANA MENDES MOURA DE FIGUEIREDO"},{"$f":"\"***\"&MID(Planilha1!D201,4,9)&\"**\"","v":"***.851.554-**"},"ANALISTA IND. DE HEMOD. E BIOTEC. - FRACION. IND. PLASMA 2",null,"HEMOBRÁS - FILIAL UNID. FABRIL (GOIANA)",{"$f":"Planilha1!I201","v":"CELETISTA"},{"$f":"Planilha1!J201","v":"40 HORAS SEMANAIS"},{"$f":"Planilha1!K201","v":"CONCURSO PÚBLICO"},{"$f":"Planilha1!L201","v":"2022-11-25"}]
[{"$f":"Planilha1!B202","v":692},{"$f":"Planilha1!C202","v":"JULIANA PAZ MAGALHAES"},{"$f":"\"***\"&MID(Planilha1!D202,4,9)&\"**\"","v":"***.905.844-**"},"ANALISTA IND. DE HEMOD. E BIOTEC. - FRACION. IND. PLASMA 2",null,"HEMOBRÁS - FILIAL UNID. FABRIL (GOIANA)",{"$f":"Planilha1!I202","v":"CELETISTA"},{"$f":"Planilha1!J202","v":"40 HORAS SEMANAIS"},{"$f":"Planilha1!K202","v":"CONCURSO PÚBLICO"},{"$f":"Planilha1!L202","v":"2023-07-24"}]
[{"$f":"Planilha1!B203","v":144},{"$f":"Planilha1!C203","v":"JULIANA RODRIGUES CINTRA"},{"$f":"\"***\"&MID(Planilha1!D203,4,9)&\"**\"","v":"***.808.638-**"},"ESPECIALISTA EM PHB - FRAC. IND. PLASMA 1 - I",null,"HEMOBRÁS - FILIAL UNID. FABRIL (GOIANA)",{"$f":"Planilha1!I203","v":"CELETISTA"},{"$f":"Planilha1!J203","v":"40 HORAS SEMANAIS"},{"$f":"Planilha1!K203","v":"CONCURSO PÚBLICO"},{"$f":"Planilha1!L203","v":"2011-04-06"}]
[{"$f":"Planilha1!B204","v":625},{"$f":"Planilha1!C204","v":"JULIENE DOS SANTOS DAVI MUNIZ"},{"$f":"\"***\"&MID(Planilha1!D204,4,9)&\"**\"","v":"***.629.104-**"},"ANALISTA IND. DE HEMOD. E BIOTEC. - ENG. AUTOMAÇÃO E CONTROLE",null,"HEMOBRÁS - FILIAL UNID. FABRIL (GOIANA)",{"$f":"Planilha1!I204","v":"CELETISTA"},{"$f":"Planilha1!J204","v":"40 HORAS SEMANAIS"},{"$f":"Planilha1!K204","v":"CONCURSO PÚBLICO"},{"$f":"Planilha1!L204","v":"2023-01-25"}]
[{"$f":"Planilha1!B205","v":602},{"$f":"Planilha1!C205","v":"JULIETH MESQUITA LACERDA"},{"$f":"\"***\"&MID(Planilha1!D205,4,9)&\"**\"","v":"***.667.023-**"},"ANALISTA IND. DE HEMOD. E BIOTEC. - FRACION. IND. PLASMA 2",null,"HEMOBRÁS - FILIAL UNID. FABRIL (GOIANA)",{"$f":"Planilha1!I205","v":"CELETISTA"},{"$f":"Planilha1!J205","v":"40 HORAS SEMANAIS"},{"$f":"Planilha1!K205","v":"CONCURSO PÚBLICO"},{"$f":"Planilha1!L205","v":"2022-11-25"}]
[{"$f":"Planilha1!B206","v":589},{"$f":"Planilha1!C206","v":"KALYNE AZEVEDO DE FRANCA"},{"$f":"\"***\"&MID(Planilha1!D206,4,9)&\"**\"","v":"***.029.234-**"},"ANALISTA ADM. DE ASSUNTOS CORP. - PLANEJAMENTO ESTRATÉGICO",null,"HEMOBRÁS - FILIAL UNID. ADM. (RECIFE)",{"$f":"Planilha1!I206","v":"CELETISTA"},{"$f":"Planilha1!J206","v":"40 HORAS SEMANAIS"},{"$f":"Planilha1!K206","v":"CONCURSO PÚBLICO"},{"$f":"Planilha1!L206","v":"2023-01-25"}]
[{"$f":"Planilha1!B207","v":669},{"$f":"Planilha1!C207","v":"KAREN YASMIM PEREIRA DOS SANTOS AVELINO"},{"$f":"\"***\"&MID(Planilha1!D207,4,9)&\"**\"","v":"***.580.524-**"},"ANALISTA IND. DE HEMOD. E BIOTEC. - FRACION. IND. PLASMA 2",null,"HEMOBRÁS - FILIAL UNID. FABRIL (GOIANA)",{"$f":"Planilha1!I207","v":"CELETISTA"},{"$f":"Planilha1!J207","v":"40 HORAS SEMANAIS"},{"$f":"Planilha1!K207","v":"CONCURSO PÚBLICO"},{"$f":"Planilha1!L207","v":"2023-07-24"}]
[{"$f":"Planilha1!B208","v":565},{"$f":"Planilha1!C208","v":"KARLLINY WALESKA DA SILVA LIMA"},{"$f":"\"***\"&MID(Planilha1!D208,4,9)&\"**\"","v":"***.641.614-**"},"ANALISTA IND. DE HEMOD. E BIOTEC. - GARANTIA DA QUALIDADE 2",null,"HEMOBRÁS - FILIAL UNID. FABRIL (GOIANA)",{"$f":"Planilha1!I208","v":"CELETISTA"},{"$f":"Planilha1!J208","v":"40 HORAS SEMANAIS"},{"$f":"Planilha1!K208","v":"CONCURSO PÚBLICO"},{"$f":"Planilha1!L208","v":"2022-09-20"}]
[{"$f":"Planilha1!B209","v":550},{"$f":"Planilha1!C209","v":"KATIA RAQUEL DE ALMEIDA OLIVEIRA"},{"$f":"\"***\"&MID(Planilha1!D209,4,9)&\"**\"","v":"***.586.344-**"},"ANALISTA IND. DE HEMOD. E BIOTEC. - GARANTIA DA QUALIDADE 2",null,"HEMOBRÁS - FILIAL UNID. FABRIL (GOIANA)",{"$f":"Planilha1!I209","v":"CELETISTA"},{"$f":"Planilha1!J209","v":"40 HORAS SEMANAIS"},{"$f":"Planilha1!K209","v":"CONCURSO PÚBLICO"},{"$f":"Planilha1!L209","v":"2022-09-20"}]
[{"$f":"Planilha1!B210","v":728},{"$f":"Planilha1!C210","v":"KAUANE NAYARA BAHR LEDEBUHR"},{"$f":"\"***\"&MID(Planilha1!D210,4,9)&\"**\"","v":"***.288.110-**"},"ANALISTA IND. DE HEMOD. E BIOTEC. - FRACION. IND. PLASMA 1",null,"HEMOBRÁS - FILIAL UNID. FABRIL (GOIANA)",{"$f":"Planilha1!I210","v":"CELETISTA"},{"$f":"Planilha1!J210","v":"40 HORAS SEMANAIS"},{"$f":"Planilha1!K210","v":"CONCURSO PÚBLICO"},{"$f":"Planilha1!L210","v":"2024-01-10"}]
[{"$f":"Planilha1!B211","v":446},{"$f":"Planilha1!C211","v":"KLEBSON MACEDO DA SILVA"},{"$f":"\"***\"&MID(Planilha1!D211,4,9)&\"**\"","v":"***.359.454-**"},"TÉCNICO IND. E DE GESTÃO CORP. - REFRIGERAÇÃO",null,"HEMOBRÁS - FILIAL UNID. FABRIL (GOIANA)",{"$f":"Planilha1!I211","v":"CELETISTA"},{"$f":"Planilha1!J211","v":"40 HORAS SEMANAIS"},{"$f":"Planilha1!K211","v":"CONCURSO PÚBLICO"},{"$f":"Planilha1!L211","v":"2018-04-02"}]
[{"$f":"Planilha1!B212","v":667},{"$f":"Planilha1!C212","v":"LAIANNE CARLA BATISTA ALENCAR"},{"$f":"\"***\"&MID(Planilha1!D212,4,9)&\"**\"","v":"***.313.103-**"},"ANALISTA IND. DE HEMOD. E BIOTEC. - FRACION. IND. PLASMA 2",null,"HEMOBRÁS - FILIAL UNID. FABRIL (GOIANA)",{"$f":"Planilha1!I212","v":"CELETISTA"},{"$f":"Planilha1!J212","v":"40 HORAS SEMANAIS"},{"$f":"Planilha1!K212","v":"CONCURSO PÚBLICO"},{"$f":"Planilha1!L212","v":"2023-07-24"}]
[{"$f":"Planilha1!B213","v":286},{"$f":"Planilha1!C213","v":"LAUDEMIR ERNESTO DA SILVA"},{"$f":"\"***\"&MID(Planilha1!D213,4,9)&\"**\"","v":"***.422.364-**"},"TÉCNICO IND. E DE GESTÃO CORP. - REFRIGERAÇÃO",null,"HEMOBRÁS - FILIAL UNID. FABRIL (GOIANA)",{"$f":"Planilha1!I213","v":"CELETISTA"},{"$f":"Planilha1!J213","v":"40 HORAS SEMANAIS"},{"$f":"Planilha1!K213","v":"CONCURSO PÚBLICO"},{"$f":"Planilha1!L213","v":"2014-08-04"}]
[{"$f":"Planilha1!B214","v":35},{"$f":"Planilha1!C214","v":"LAURA BARRETO CARNEIRO"},{"$f":"\"***\"&MID(Planilha1!D214,4,9)&\"**\"","v":"***.685.661-**"},"ESPECIALISTA EM PHB - CONTROLE QUALIDADE - I",null,"HEMOBRÁS - FILIAL UNID. FABRIL (GOIANA)",{"$f":"Planilha1!I214","v":"CELETISTA"},{"$f":"Planilha1!J214","v":"40 HORAS SEMANAIS"},{"$f":"Planilha1!K214","v":"CONCURSO PÚBLICO"},{"$f":"Planilha1!L214","v":"2009-06-23"}]
[{"$f":"Planilha1!B215","v":371},{"$f":"Planilha1!C215","v":"LAURA LICIA MARCOS DA COSTA"},{"$f":"\"***\"&MID(Planilha1!D215,4,9)&\"**\"","v":"***.124.093-**"},"ANALISTA IND. DE HEMOD. E BIOTEC. - ARMAZ E DISTRIB DE MEDIC",null,"HEMOBRÁS - FILIAL UNID. ADM. (RECIFE)",{"$f":"Planilha1!I215","v":"CELETISTA"},{"$f":"Planilha1!J215","v":"40 HORAS SEMANAIS"},{"$f":"Planilha1!K215","v":"CONCURSO PÚBLICO"},{"$f":"Planilha1!L215","v":"2015-10-20"}]
[{"$f":"Planilha1!B216","v":707},{"$f":"Planilha1!C216","v":"LEANDRO PINHEIRO SAFATLE"},{"$f":"\"***\"&MID(Planilha1!D216,4,9)&\"**\"","v":"***.746.591-**"},null,"CONSELHEIRO FISCAL","NÃO SE APLICA",{"$f":"Planilha1!I216","v":"NÃO SE APLICA"},{"$f":"Planilha1!J216","v":"NÃO SE APLICA"},{"$f":"Planilha1!K216","v":"TERMO DE POSSE"},{"$f":"Planilha1!L216","v":"2023-08-28"}]
[{"$f":"Planilha1!B217","v":417},{"$f":"Planilha1!C217","v":"LEONARDO DE ALBUQUERQUE DANTAS"},{"$f":"\"***\"&MID(Planilha1!D217,4,9)&\"**\"","v":"***.923.334-**"},"ANALISTA IND. DE HEMOD. E BIOTEC. - PLASMA E HEMOCOMPONENTES","CHEFE DE SERVIÇO DE GESTÃO INTERNA DO PLASMA","HEMOBRÁS - FILIAL UNID. FABRIL (GOIANA)",{"$f":"Planilha1!I217","v":"CELETISTA"},{"$f":"Planilha1!J217","v":"40 HORAS SEMANAIS"},{"$f":"Planilha1!K217","v":"CONCURSO PÚBLICO"},{"$f":"Planilha1!L217","v":"2016-09-15"}]
[{"$f":"Planilha1!B218","v":484},{"$f":"Planilha1!C218","v":"LEONARDO MOURA VILELA"},{"$f":"\"***\"&MID(Planilha1!D218,4,9)&\"**\"","v":"***.045.541-**"},null,"CONSELHEIRO ADMINISTRATIVO","NÃO SE APLICA",{"$f":"Planilha1!I218","v":"NÃO SE APLICA"},{"$f":"Planilha1!J218","v":"NÃO SE APLICA"},{"$f":"Planilha1!K218","v":"TERMO DE POSSE"},{"$f":"Planilha1!L218","v":"2019-07-23"}]
[{"$f":"Planilha1!B219","v":265},{"$f":"Planilha1!C219","v":"LEONARDO PINHEIRO LANDIM"},{"$f":"\"***\"&MID(Planilha1!D219,4,9)&\"**\"","v":"***.432.513-**"},"ANALISTA IND. DE HEMOD. E BIOTEC. - GARANTIA DA QUALIDADE",null,"HEMOBRÁS - FILIAL UNID. FABRIL (GOIANA)",{"$f":"Planilha1!I219","v":"CELETISTA"},{"$f":"Planilha1!J219","v":"40 HORAS SEMANAIS"},{"$f":"Planilha1!K219","v":"CONCURSO PÚBLICO"},{"$f":"Planilha1!L219","v":"2014-07-14"}]
[{"$f":"Planilha1!B220","v":232},{"$f":"Planilha1!C220","v":"LETICIA AGRA MONTEIRO"},{"$f":"\"***\"&MID(Planilha1!D220,4,9)&\"**\"","v":"***.249.294-**"},"ANALISTA IND. DE HEMOD. E BIOTEC. - FRACION. IND. PLASMA 2","RESPONSÁVEL TÉCNICO SUBSTITUTO","HEMOBRÁS - FILIAL UNID. FABRIL (GOIANA)",{"$f":"Planilha1!I220","v":"CELETISTA"},{"$f":"Planilha1!J220","v":"40 HORAS SEMANAIS"},{"$f":"Planilha1!K220","v":"CONCURSO PÚBLICO"},{"$f":"Planilha1!L220","v":"2014-02-21"}]
[{"$f":"Planilha1!B221","v":603},{"$f":"Planilha1!C221","v":"LETICIA DA COSTA ARAUJO"},{"$f":"\"***\"&MID(Planilha1!D221,4,9)&\"**\"","v":"***.314.803-**"},"ANALISTA IND. DE HEMOD. E BIOTEC. - FRACION. IND. PLASMA 2",null,"HEMOBRÁS - FILIAL UNID. FABRIL (GOIANA)",{"$f":"Planilha1!I221","v":"CELETISTA"},{"$f":"Planilha1!J221","v":"40 HORAS SEMANAIS"},{"$f":"Planilha1!K221","v":"CONCURSO PÚBLICO"},{"$f":"Planilha1!L221","v":"2022-11-25"}]
[{"$f":"Planilha1!B222","v":301},{"$f":"Planilha1!C222","v":"LIDIANE REBECA PEREIRA DE LIMA"},{"$f":"\"***\"&MID(Planilha1!D222,4,9)&\"**\"","v":"***.562.544-**"},"ASSISTENTE IND. E DE GESTÃO CORP - ASSISTENTE ADMINISTRATIVO",null,"HEMOBRÁS - FILIAL UNID. ADM. (RECIFE)",{"$f":"Planilha1!I222","v":"CELETISTA"},{"$f":"Planilha1!J222","v":"40 HORAS SEMANAIS"},{"$f":"Planilha1!K222","v":"CONCURSO PÚBLICO"},{"$f":"Planilha1!L222","v":"2014-12-05"}]
[{"$f":"Planilha1!B223","v":648},{"$f":"Planilha1!C223","v":"LIDIANY APARECIDA COSTA FREIRE"},{"$f":"\"***\"&MID(Planilha1!D223,4,9)&\"**\"","v":"***.815.094-**"},"ANALISTA IND. DE HEMOD. E BIOTEC. - GARANTIA DA QUALIDADE 2",null,"HEMOBRÁS - FILIAL UNID. FABRIL (GOIANA)",{"$f":"Planilha1!I223","v":"CELETISTA"},{"$f":"Planilha1!J223","v":"40 HORAS SEMANAIS"},{"$f":"Planilha1!K223","v":"CONCURSO PÚBLICO"},{"$f":"Planilha1!L223","v":"2023-04-25"}]
[{"$f":"Planilha1!B224","v":715},{"$f":"Planilha1!C224","v":"LILIANA DE MELO MACHADO BEHAR"},{"$f":"\"***\"&MID(Planilha1!D224,4,9)&\"**\"","v":"***.111.634-**"},"ANALISTA ADM. DE ASSUNTOS CORP. - DESENVOLVIMENTO DE PESSOAS",null,"HEMOBRÁS - FILIAL UNID. FABRIL (GOIANA)",{"$f":"Planilha1!I224","v":"CELETISTA"},{"$f":"Planilha1!J224","v":"40 HORAS SEMANAIS"},{"$f":"Planilha1!K224","v":"CONCURSO PÚBLICO"},{"$f":"Planilha1!L224","v":"2023-10-09"}]
[{"$f":"Planilha1!B225","v":448},{"$f":"Planilha1!C225","v":"LIVIA MARIA BARBOSA REYNAUX"},{"$f":"\"***\"&MID(Planilha1!D225,4,9)&\"**\"","v":"***.665.464-**"},"ANALISTA IND. DE HEMOD. E BIOTEC. - CONTROLE QUALIDADE - 2",null,"HEMOBRÁS - FILIAL UNID. FABRIL (GOIANA)",{"$f":"Planilha1!I225","v":"CELETISTA"},{"$f":"Planilha1!J225","v":"40 HORAS SEMANAIS"},{"$f":"Planilha1!K225","v":"CONCURSO PÚBLICO"},{"$f":"Planilha1!L225","v":"2018-04-19"}]
[{"$f":"Planilha1!B226","v":441},{"$f":"Planilha1!C226","v":"LIVIA MARIA SOUZA DE OLIVEIRA"},{"$f":"\"***\"&MID(Planilha1!D226,4,9)&\"**\"","v":"***.267.544-**"},"ANALISTA ADM. DE ASSUNTOS CORP. - ASSESSORIA ADMINISTRATIVA",null,"HEMOBRÁS - FILIAL UNID. ADM. (RECIFE)",{"$f":"Planilha1!I226","v":"CELETISTA"},{"$f":"Planilha1!J226","v":"40 HORAS SEMANAIS"},{"$f":"Planilha1!K226","v":"CONCURSO PÚBLICO"},{"$f":"Planilha1!L226","v":"2018-01-17"}]
[{"$f":"Planilha1!B227","v":520},{"$f":"Planilha1!C227","v":"LUANA CAMILLA CORDEIRO BRAZ"},{"$f":"\"***\"&MID(Planilha1!D227,4,9)&\"**\"","v":"***.885.594-**"},"ANALISTA IND. DE HEMOD. E BIOTEC. - FRACION. IND. PLASMA 1",null,"HEMOBRÁS - FILIAL UNID. FABRIL (GOIANA)",{"$f":"Planilha1!I227","v":"CELETISTA"},{"$f":"Planilha1!J227","v":"40 HORAS SEMANAIS"},{"$f":"Planilha1!K227","v":"CONCURSO PÚBLICO"},{"$f":"Planilha1!L227","v":"2022-03-17"}]
[{"$f":"Planilha1!B228","v":521},{"$f":"Planilha1!C228","v":"LUCAS ALECRIM AMORIM VIANA"},{"$f":"\"***\"&MID(Planilha1!D228,4,9)&\"**\"","v":"***.412.335-**"},"ANALISTA IND. DE HEMOD. E BIOTEC. - FRACION. IND. PLASMA 1",null,"HEMOBRÁS - FILIAL UNID. FABRIL (GOIANA)",{"$f":"Planilha1!I228","v":"CELETISTA"},{"$f":"Planilha1!J228","v":"40 HORAS SEMANAIS"},{"$f":"Planilha1!K228","v":"CONCURSO PÚBLICO"},{"$f":"Planilha1!L228","v":"2022-03-17"}]
[{"$f":"Planilha1!B229","v":712},{"$f":"Planilha1!C229","v":"LUCAS ALEXANDRE SILVA"},{"$f":"\"***\"&MID(Planilha1!D229,4,9)&\"**\"","v":"***.611.344-**"},"TÉCNICO IND. E DE GESTÃO CORP. - SEGURANÇA DO TRABALHO",null,"HEMOBRÁS - FILIAL UNID. FABRIL (GOIANA)",{"$f":"Planilha1!I229","v":"CELETISTA"},{"$f":"Planilha1!J229","v":"40 HORAS SEMANAIS"},{"$f":"Planilha1!K229","v":"CONCURSO PÚBLICO"},{"$f":"Planilha1!L229","v":"2023-10-09"}]
[{"$f":"Planilha1!B230","v":683},{"$f":"Planilha1!C230","v":"LUCAS ALISON DO NASCIMENTO SANTOS"},{"$f":"\"***\"&MID(Planilha1!D230,4,9)&\"**\"","v":"***.414.924-**"},"ANALISTA IND. DE HEMOD. E BIOTEC. - FRACION. IND. PLASMA 1",null,"HEMOBRÁS - FILIAL UNID. FABRIL (GOIANA)",{"$f":"Planilha1!I230","v":"CELETISTA"},{"$f":"Planilha1!J230","v":"40 HORAS SEMANAIS"},{"$f":"Planilha1!K230","v":"CONCURSO PÚBLICO"},{"$f":"Planilha1!L230","v":"2023-07-24"}]
[{"$f":"Planilha1!B231","v":213},{"$f":"Planilha1!C231","v":"LUCAS RICCI BIANCO"},{"$f":"\"***\"&MID(Planilha1!D231,4,9)&\"**\"","v":"***.819.314-**"},"ESPECIALISTA EM PHB - FRAC. IND. PLASMA 1 - I","GERENTE DE PRODUÇÃO","HEMOBRÁS - FILIAL UNID. FABRIL (GOIANA)",{"$f":"Planilha1!I231","v":"CELETISTA"},{"$f":"Planilha1!J231","v":"40 HORAS SEMANAIS"},{"$f":"Planilha1!K231","v":"CONCURSO PÚBLICO"},{"$f":"Planilha1!L231","v":"2014-02-20"}]
[{"$f":"Planilha1!B232","v":402},{"$f":"Planilha1!C232","v":"LUCIANA TRANQUILINO DE MELO"},{"$f":"\"***\"&MID(Planilha1!D232,4,9)&\"**\"","v":"***.734.954-**"},"ANALISTA ADM. DE ASSUNTOS CORP. - ANALISTA JURÍDICO",null,"HEMOBRÁS - FILIAL UNID. ADM. (RECIFE)",{"$f":"Planilha1!I232","v":"CELETISTA"},{"$f":"Planilha1!J232","v":"40 HORAS SEMANAIS"},{"$f":"Planilha1!K232","v":"CONCURSO PÚBLICO"},{"$f":"Planilha1!L232","v":"2016-06-06"}]
[{"$f":"Planilha1!B233","v":333},{"$f":"Planilha1!C233","v":"LUIZ CARLOS DO NASCIMENTO"},{"$f":"\"***\"&MID(Planilha1!D233,4,9)&\"**\"","v":"***.195.934-**"},"ASSISTENTE IND. E DE GESTÃO CORP - TÉC. EM CONTABILIDADE I",null,"HEMOBRÁS - FILIAL UNID. ADM. (RECIFE)",{"$f":"Planilha1!I233","v":"CELETISTA"},{"$f":"Planilha1!J233","v":"40 HORAS SEMANAIS"},{"$f":"Planilha1!K233","v":"CONCURSO PÚBLICO"},{"$f":"Planilha1!L233","v":"2015-04-13"}]
[{"$f":"Planilha1!B234","v":477},{"$f":"Planilha1!C234","v":"LUIZ EDUARDO BEZERRA SILVA"},{"$f":"\"***\"&MID(Planilha1!D234,4,9)&\"**\"","v":"***.108.444-**"},null,"AUDITOR GERAL","HEMOBRÁS - FILIAL UNID. ADM. (RECIFE)",{"$f":"Planilha1!I234","v":"REGIME PRÓPRIO"},{"$f":"Planilha1!J234","v":"NÃO SE APLICA"},{"$f":"Planilha1!K234","v":"RESOLUÇÃO"},{"$f":"Planilha1!L234","v":"2019-03-07"},"CONTROLADORIA-GERAL DA UNIÃO (CGU)"]
[{"$f":"Planilha1!B235","v":414},{"$f":"Planilha1!C235","v":"LUIZ FELIPE LINS DANTAS"},{"$f":"\"***\"&MID(Planilha1!D235,4,9)&\"**\"","v":"***.011.744-**"},"ANALISTA ADM. DE ASSUNTOS CORP. - COMPRAS NAC. E INTERNAC.",null,"HEMOBRÁS - FILIAL UNID. ADM. (RECIFE)",{"$f":"Planilha1!I235","v":"CELETISTA"},{"$f":"Planilha1!J235","v":"40 HORAS SEMANAIS"},{"$f":"Planilha1!K235","v":"CONCURSO PÚBLICO"},{"$f":"Planilha1!L235","v":"2016-08-16"}]
[{"$f":"Planilha1!B236","v":664},{"$f":"Planilha1!C236","v":"LUIZ FILIPE TEIXEIRA NUNES"},{"$f":"\"***\"&MID(Planilha1!D236,4,9)&\"**\"","v":"***.709.424-**"},"ANALISTA IND. DE HEMOD. E BIOTEC. - FRACION. IND. PLASMA 1",null,"HEMOBRÁS - FILIAL UNID. FABRIL (GOIANA)",{"$f":"Planilha1!I236","v":"CELETISTA"},{"$f":"Planilha1!J236","v":"40 HORAS SEMANAIS"},{"$f":"Planilha1!K236","v":"CONCURSO PÚBLICO"},{"$f":"Planilha1!L236","v":"2023-07-24"}]
[{"$f":"Planilha1!B237","v":569},{"$f":"Planilha1!C237","v":"LUIZA BEATRIZ DE MEDEIROS SANTOS"},{"$f":"\"***\"&MID(Planilha1!D237,4,9)&\"**\"","v":"***.809.684-**"},"ANALISTA IND. DE HEMOD. E BIOTEC. - GARANTIA DA QUALIDADE 2",null,"HEMOBRÁS - FILIAL UNID. FABRIL (GOIANA)",{"$f":"Planilha1!I237","v":"CELETISTA"},{"$f":"Planilha1!J237","v":"40 HORAS SEMANAIS"},{"$f":"Planilha1!K237","v":"CONCURSO PÚBLICO"},{"$f":"Planilha1!L237","v":"2022-09-20"}]
[{"$f":"Planilha1!B238","v":649},{"$f":"Planilha1!C238","v":"MAIRA LUDNA DUARTE"},{"$f":"\"***\"&MID(Planilha1!D238,4,9)&\"**\"","v":"***.959.744-**"},"ANALISTA IND. DE HEMOD. E BIOTEC. - GARANTIA DA QUALIDADE 2",null,"HEMOBRÁS - FILIAL UNID. FABRIL (GOIANA)",{"$f":"Planilha1!I238","v":"CELETISTA"},{"$f":"Planilha1!J238","v":"40 HORAS SEMANAIS"},{"$f":"Planilha1!K238","v":"CONCURSO PÚBLICO"},{"$f":"Planilha1!L238","v":"2023-04-25"}]
[{"$f":"Planilha1!B239","v":628},{"$f":"Planilha1!C239","v":"MANOELA BRASIL FERNANDES DE ALBUQUERQUE"},{"$f":"\"***\"&MID(Planilha1!D239,4,9)&\"**\"","v":"***.232.504-**"},null,"ASSISTENTE TÉCNICO ESPECIALIZADO","HEMOBRÁS - FILIAL UNID. ADM. (RECIFE)",{"$f":"Planilha1!I239","v":"CELETISTA"},{"$f":"Planilha1!J239","v":"40 HORAS SEMANAIS"},{"$f":"Planilha1!K239","v":"CONCURSO PÚBLICO"},{"$f":"Planilha1!L239","v":"2023-02-15"}]
[{"$f":"Planilha1!B240","v":672},{"$f":"Planilha1!C240","v":"MARCELO FRANCISCO GALDINO DA SILVA"},{"$f":"\"***\"&MID(Planilha1!D240,4,9)&\"**\"","v":"***.284.614-**"},"ANALISTA IND. DE HEMOD. E BIOTEC. - FRACION. IND. PLASMA 2",null,"HEMOBRÁS - FILIAL UNID. FABRIL (GOIANA)",{"$f":"Planilha1!I240","v":"CELETISTA"},{"$f":"Planilha1!J240","v":"40 HORAS SEMANAIS"},{"$f":"Planilha1!K240","v":"CONCURSO PÚBLICO"},{"$f":"Planilha1!L240","v":"2023-07-24"}]
[{"$f":"Planilha1!B241","v":260},{"$f":"Planilha1!C241","v":"MARCELO GOES LIBERAL FILHO"},{"$f":"\"***\"&MID(Planilha1!D241,4,9)&\"**\"","v":"***.550.664-**"},"TÉCNICO IND. E DE GESTÃO CORP. - SEGURANÇA DO TRABALHO",null,"HEMOBRÁS - FILIAL UNID. ADM. (RECIFE)",{"$f":"Planilha1!I241","v":"CELETISTA"},{"$f":"Planilha1!J241","v":"40 HORAS SEMANAIS"},{"$f":"Planilha1!K241","v":"CONCURSO PÚBLICO"},{"$f":"Planilha1!L241","v":"2014-07-14"}]
[{"$f":"Planilha1!B242","v":653},{"$f":"Planilha1!C242","v":"MARCIA APARECIDA DA SILVA"},{"$f":"\"***\"&MID(Planilha1!D242,4,9)&\"**\"","v":"***.323.796-**"},"ANALISTA IND. DE HEMOD. E BIOTEC. - ASSUNTOS REGULATÓRIOS",null,"HEMOBRÁS - FILIAL UNID. ADM. (RECIFE)",{"$f":"Planilha1!I242","v":"CELETISTA"},{"$f":"Planilha1!J242","v":"40 HORAS SEMANAIS"},{"$f":"Planilha1!K242","v":"CONCURSO PÚBLICO"},{"$f":"Planilha1!L242","v":"2023-07-24"}]
[{"$f":"Planilha1!B243","v":389},{"$f":"Planilha1!C243","v":"MARCIA RODRIGUES VIANA SCHIPPERS"},{"$f":"\"***\"&MID(Planilha1!D243,4,9)&\"**\"","v":"***.600.713-**"},"ANALISTA ADM. DE ASSUNTOS CORP. - COMPRAS NAC. E INTERNAC.",null,"HEMOBRÁS - FILIAL UNID. ADM. (RECIFE)",{"$f":"Planilha1!I243","v":"CELETISTA"},{"$f":"Planilha1!J243","v":"40 HORAS SEMANAIS"},{"$f":"Planilha1!K243","v":"CONCURSO PÚBLICO"},{"$f":"Planilha1!L243","v":"2016-02-16"}]
[{"$f":"Planilha1!B244","v":740},{"$f":"Planilha1!C244","v":"MARCIO MARKMAN"},{"$f":"\"***\"&MID(Planilha1!D244,4,9)&\"**\"","v":"***.499.784-**"},null,"ASSESSOR DE COMUNICAÇÃO, MARKETING E EVENTOS","HEMOBRÁS - FILIAL UNID. ADM. (RECIFE)",{"$f":"Planilha1!I244","v":"CELETISTA"},{"$f":"Planilha1!J244","v":"40 HORAS SEMANAIS"},{"$f":"Planilha1!K244","v":"PORTARIA"},{"$f":"Planilha1!L244","v":"2024-03-25"}]
[{"$f":"Planilha1!B245","v":259},{"$f":"Planilha1!C245","v":"MARCIO VAZ DE OLIVEIRA"},{"$f":"\"***\"&MID(Planilha1!D245,4,9)&\"**\"","v":"***.479.814-**"},"ASSISTENTE IND. E DE GESTÃO CORP - ASSISTENTE ADMINISTRATIVO",null,"HEMOBRÁS - FILIAL UNID. FABRIL (GOIANA)",{"$f":"Planilha1!I245","v":"CELETISTA"},{"$f":"Planilha1!J245","v":"40 HORAS SEMANAIS"},{"$f":"Planilha1!K245","v":"CONCURSO PÚBLICO"},{"$f":"Planilha1!L245","v":"2014-07-14"}]
[{"$f":"Planilha1!B246","v":610},{"$f":"Planilha1!C246","v":"MARCOPOLO DA SILVA MARINHO"},{"$f":"\"***\"&MID(Planilha1!D246,4,9)&\"**\"","v":"***.726.774-**"},"ANALISTA ADM. DE ASSUNTOS CORP. - PLANEJAMENTO ESTRATÉGICO",null,"HEMOBRÁS - FILIAL UNID. ADM. (RECIFE)",{"$f":"Planilha1!I246","v":"CELETISTA"},{"$f":"Planilha1!J246","v":"40 HORAS SEMANAIS"},{"$f":"Planilha1!K246","v":"CONCURSO PÚBLICO"},{"$f":"Planilha1!L246","v":"2023-01-25"}]
[{"$f":"Planilha1!B247","v":247},{"$f":"Planilha1!C247","v":"MARCOS LUIZ DE OLIVEIRA FILHO"},{"$f":"\"***\"&MID(Planilha1!D247,4,9)&\"**\"","v":"***.208.534-**"},"ANALISTA DE GES. CORP. - ORÇAMENTO E FINANÇAS",null,"HEMOBRÁS - FILIAL UNID. FABRIL (GOIANA)",{"$f":"Planilha1!I247","v":"CELETISTA"},{"$f":"Planilha1!J247","v":"40 HORAS SEMANAIS"},{"$f":"Planilha1!K247","v":"CONCURSO PÚBLICO"},{"$f":"Planilha1!L247","v":"2014-04-22"}]
[{"$f":"Planilha1!B248","v":694},{"$f":"Planilha1!C248","v":"MARIA FERNANDA RAMOS COELHO"},{"$f":"\"***\"&MID(Planilha1!D248,4,9)&\"**\"","v":"***.455.334-**"},null,"CONSELHEIRO ADMINISTRATIVO","NÃO SE APLICA",{"$f":"Planilha1!I248","v":"NÃO SE APLICA"},{"$f":"Planilha1!J248","v":"NÃO SE APLICA"},{"$f":"Planilha1!K248","v":"TERMO DE POSSE"},{"$f":"Planilha1!L248","v":"2023-07-13"}]
[{"$f":"Planilha1!B249","v":587},{"$f":"Planilha1!C249","v":"MARIA LUCIA MAIA DE FREITAS"},{"$f":"\"***\"&MID(Planilha1!D249,4,9)&\"**\"","v":"***.376.104-**"},"ANALISTA ADM. DE ASSUNTOS CORP. - DESENVOLVIMENTO DE PESSOAS",null,"HEMOBRÁS - FILIAL UNID. FABRIL (GOIANA)",{"$f":"Planilha1!I249","v":"CELETISTA"},{"$f":"Planilha1!J249","v":"40 HORAS SEMANAIS"},{"$f":"Planilha1!K249","v":"CONCURSO PÚBLICO"},{"$f":"Planilha1!L249","v":"2022-11-25"}]
[{"$f":"Planilha1!B250","v":523},{"$f":"Planilha1!C250","v":"MARIA LUIZA CAVALCANTI LUCENA"},{"$f":"\"***\"&MID(Planilha1!D250,4,9)&\"**\"","v":"***.528.984-**"},"ANALISTA IND. DE HEMOD. E BIOTEC. - FRACION. IND. PLASMA 1",null,"HEMOBRÁS - FILIAL UNID. FABRIL (GOIANA)",{"$f":"Planilha1!I250","v":"CELETISTA"},{"$f":"Planilha1!J250","v":"40 HORAS SEMANAIS"},{"$f":"Planilha1!K250","v":"CONCURSO PÚBLICO"},{"$f":"Planilha1!L250","v":"2022-03-17"}]
[{"$f":"Planilha1!B251","v":395},{"$f":"Planilha1!C251","v":"MARIA MENDES DA SILVA"},{"$f":"\"***\"&MID(Planilha1!D251,4,9)&\"**\"","v":"***.265.864-**"},null,"ASSISTENTE TÉCNICO","HEMOBRÁS - FILIAL UNID. ADM. (RECIFE)",{"$f":"Planilha1!I251","v":"CELETISTA"},{"$f":"Planilha1!J251","v":"40 HORAS SEMANAIS"},{"$f":"Planilha1!K251","v":"PORTARIA"},{"$f":"Planilha1!L251","v":"2015-03-10"}]
[{"$f":"Planilha1!B252","v":372},{"$f":"Planilha1!C252","v":"MARIA SUELY DE LIMA"},{"$f":"\"***\"&MID(Planilha1!D252,4,9)&\"**\"","v":"***.384.294-**"},"ANALISTA ADM. DE ASSUNTOS CORP. - CONTRATO",null,"HEMOBRÁS - FILIAL UNID. ADM. (RECIFE)",{"$f":"Planilha1!I252","v":"CELETISTA"},{"$f":"Planilha1!J252","v":"40 HORAS SEMANAIS"},{"$f":"Planilha1!K252","v":"CONCURSO PÚBLICO"},{"$f":"Planilha1!L252","v":"2015-10-20"}]
[{"$f":"Planilha1!B253","v":721},{"$f":"Planilha1!C253","v":"MARIANA MAZZA GUIMARAES DE ARAUJO"},{"$f":"\"***\"&MID(Planilha1!D253,4,9)&\"**\"","v":"***.441.104-**"},"ANALISTA ADM. DE ASSUNTOS CORP. - JORNALISMO",null,"HEMOBRÁS - FILIAL UNID. ADM. (RECIFE)",{"$f":"Planilha1!I253","v":"CELETISTA"},{"$f":"Planilha1!J253","v":"40 HORAS SEMANAIS"},{"$f":"Planilha1!K253","v":"CONCURSO PÚBLICO"},{"$f":"Planilha1!L253","v":"2024-01-10"}]
[{"$f":"Planilha1!B254","v":662},{"$f":"Planilha1!C254","v":"MARIE CLAIRE CARNEIRO ALBUQUERQUE"},{"$f":"\"***\"&MID(Planilha1!D254,4,9)&\"**\"","v":"***.116.184-**"},"ANALISTA IND. DE HEMOD. E BIOTEC. - CONTROLE QUALIDADE - 2",null,"HEMOBRÁS - FILIAL UNID. FABRIL (GOIANA)",{"$f":"Planilha1!I254","v":"CELETISTA"},{"$f":"Planilha1!J254","v":"40 HORAS SEMANAIS"},{"$f":"Planilha1!K254","v":"CONCURSO PÚBLICO"},{"$f":"Planilha1!L254","v":"2023-07-24"}]
[{"$f":"Planilha1!B255","v":214},{"$f":"Planilha1!C255","v":"MARILIA BARBOSA DO NASCIMENTO"},{"$f":"\"***\"&MID(Planilha1!D255,4,9)&\"**\"","v":"***.096.624-**"},"ESPECIALISTA EM PHB - CONTROLE QUALIDADE - I",null,"HEMOBRÁS - FILIAL UNID. FABRIL (GOIANA)",{"$f":"Planilha1!I255","v":"CELETISTA"},{"$f":"Planilha1!J255","v":"40 HORAS SEMANAIS"},{"$f":"Planilha1!K255","v":"CONCURSO PÚBLICO"},{"$f":"Planilha1!L255","v":"2014-02-20"}]
[{"$f":"Planilha1!B256","v":678},{"$f":"Planilha1!C256","v":"MARILIA EVELLYN DE SANTANA DIAS"},{"$f":"\"***\"&MID(Planilha1!D256,4,9)&\"**\"","v":"***.457.044-**"},"ANALISTA IND. DE HEMOD. E BIOTEC. - FRACION. IND. PLASMA 2",null,"HEMOBRÁS - FILIAL UNID. FABRIL (GOIANA)",{"$f":"Planilha1!I256","v":"CELETISTA"},{"$f":"Planilha1!J256","v":"40 HORAS SEMANAIS"},{"$f":"Planilha1!K256","v":"CONCURSO PÚBLICO"},{"$f":"Planilha1!L256","v":"2023-07-24"}]
[{"$f":"Planilha1!B257","v":629},{"$f":"Planilha1!C257","v":"MARILIA KALINNE DA SILVA TORRES"},{"$f":"\"***\"&MID(Planilha1!D257,4,9)&\"**\"","v":"***.593.894-**"},"TÉCNICO IND. E DE GESTÃO CORP. - TRIAGEM DO PLASMA",null,"HEMOBRÁS - FILIAL UNID. FABRIL (GOIANA)",{"$f":"Planilha1!I257","v":"CELETISTA"},{"$f":"Planilha1!J257","v":"40 HORAS SEMANAIS"},{"$f":"Planilha1!K257","v":"CONCURSO PÚBLICO"},{"$f":"Planilha1!L257","v":"2023-03-07"}]
[{"$f":"Planilha1!B258","v":233},{"$f":"Planilha1!C258","v":"MARILIA MARQUES DA SILVA ANDRADE"},{"$f":"\"***\"&MID(Planilha1!D258,4,9)&\"**\"","v":"***.654.384-**"},"TÉCNICO IND. E DE GESTÃO CORP. - TRIAGEM DO PLASMA",null,"HEMOBRÁS - FILIAL UNID. FABRIL (GOIANA)",{"$f":"Planilha1!I258","v":"CELETISTA"},{"$f":"Planilha1!J258","v":"40 HORAS SEMANAIS"},{"$f":"Planilha1!K258","v":"CONCURSO PÚBLICO"},{"$f":"Planilha1!L258","v":"2014-02-21"}]
[{"$f":"Planilha1!B259","v":742},{"$f":"Planilha1!C259","v":"MARILIA SILVA PEREIRA DE LYRA"},{"$f":"\"***\"&MID(Planilha1!D259,4,9)&\"**\"","v":"***.824.274-**"},null,"ASSESSOR JURÍDICO","HEMOBRÁS - FILIAL UNID. FABRIL (GOIANA)",{"$f":"Planilha1!I259","v":"CELETISTA"},{"$f":"Planilha1!J259","v":"40 HORAS SEMANAIS"},{"$f":"Planilha1!K259","v":"PORTARIA"},{"$f":"Planilha1!L259","v":"2024-05-13"}]
[{"$f":"Planilha1!B260","v":442},{"$f":"Planilha1!C260","v":"MARINA ROCHA ALVES DE ANDRADE"},{"$f":"\"***\"&MID(Planilha1!D260,4,9)&\"**\"","v":"***.159.975-**"},"ANALISTA IND. DE HEMOD. E BIOTEC. - PLASMA E HEMOCOMPONENTES",null,"HEMOBRÁS - FILIAL UNID. FABRIL (GOIANA)",{"$f":"Planilha1!I260","v":"CELETISTA"},{"$f":"Planilha1!J260","v":"40 HORAS SEMANAIS"},{"$f":"Planilha1!K260","v":"CONCURSO PÚBLICO"},{"$f":"Planilha1!L260","v":"2018-01-17"}]
[{"$f":"Planilha1!B261","v":189},{"$f":"Planilha1!C261","v":"MARINETE CANDIDO DE GOUVEIA"},{"$f":"\"***\"&MID(Planilha1!D261,4,9)&\"**\"","v":"***.165.504-**"},null,"CHEFE DE SERVIÇO DE DESENVOLVIMENTO DE PESSOAS","HEMOBRÁS - FILIAL UNID. FABRIL (GOIANA)",{"$f":"Planilha1!I261","v":"CELETISTA"},{"$f":"Planilha1!J261","v":"40 HORAS SEMANAIS"},{"$f":"Planilha1!K261","v":"PORTARIA"},{"$f":"Planilha1!L261","v":"2013-01-10"}]
[{"$f":"Planilha1!B262","v":656},{"$f":"Planilha1!C262","v":"MARLON ANDERSON CESAR DA SILVA"},{"$f":"\"***\"&MID(Planilha1!D262,4,9)&\"**\"","v":"***.126.834-**"},"ANALISTA ADM. DE ASSUNTOS CORP. - TECNOLOGIA DA INFORMAÇÃO",null,"HEMOBRÁS - FILIAL UNID. FABRIL (GOIANA)",{"$f":"Planilha1!I262","v":"CELETISTA"},{"$f":"Planilha1!J262","v":"40 HORAS SEMANAIS"},{"$f":"Planilha1!K262","v":"CONCURSO PÚBLICO"},{"$f":"Planilha1!L262","v":"2023-07-24"}]
[{"$f":"Planilha1!B263","v":403},{"$f":"Planilha1!C263","v":"MARLUCE ARAUJO DE LUNA"},{"$f":"\"***\"&MID(Planilha1!D263,4,9)&\"**\"","v":"***.221.474-**"},"ANALISTA ADM. DE ASSUNTOS CORP. - AUDITORIA INTERNA",null,"HEMOBRÁS - FILIAL UNID. ADM. (RECIFE)",{"$f":"Planilha1!I263","v":"CELETISTA"},{"$f":"Planilha1!J263","v":"40 HORAS SEMANAIS"},{"$f":"Planilha1!K263","v":"CONCURSO PÚBLICO"},{"$f":"Planilha1!L263","v":"2016-06-06"}]
[{"$f":"Planilha1!B264","v":445},{"$f":"Planilha1!C264","v":"MATEUS PEREIRA SALVATORI"},{"$f":"\"***\"&MID(Planilha1!D264,4,9)&\"**\"","v":"***.906.020-**"},"ANALISTA IND. DE HEMOD. E BIOTEC. - CONTROLE QUALIDADE - 1",null,"HEMOBRÁS - FILIAL UNID. FABRIL (GOIANA)",{"$f":"Planilha1!I264","v":"CELETISTA"},{"$f":"Planilha1!J264","v":"40 HORAS SEMANAIS"},{"$f":"Planilha1!K264","v":"CONCURSO PÚBLICO"},{"$f":"Planilha1!L264","v":"2018-03-07"}]
[{"$f":"Planilha1!B265","v":577},{"$f":"Planilha1!C265","v":"MATHEUS RODRIGUES SILVA"},{"$f":"\"***\"&MID(Planilha1!D265,4,9)&\"**\"","v":"***.844.014-**"},"ANALISTA ADM. DE ASSUNTOS CORP. - ORÇAMENTO E FINANÇAS",null,"HEMOBRÁS - FILIAL UNID. ADM. (RECIFE)",{"$f":"Planilha1!I265","v":"CELETISTA"},{"$f":"Planilha1!J265","v":"40 HORAS SEMANAIS"},{"$f":"Planilha1!K265","v":"CONCURSO PÚBLICO"},{"$f":"Planilha1!L265","v":"2022-10-18"}]
[{"$f":"Planilha1!B266","v":517},{"$f":"Planilha1!C266","v":"MAURICIO BARROS OTTONI"},{"$f":"\"***\"&MID(Planilha1!D266,4,9)&\"**\"","v":"***.959.571-**"},null,"GERENTE DE TECNOLOGIA DE INFORMAÇÃO E COMUNICAÇÃO","HEMOBRÁS - FILIAL UNID. FABRIL (GOIANA)",{"$f":"Planilha1!I266","v":"CELETISTA"},{"$f":"Planilha1!J266","v":"40 HORAS SEMANAIS"},{"$f":"Planilha1!K266","v":"PORTARIA"},{"$f":"Planilha1!L266","v":"2022-01-03"}]
[{"$f":"Planilha1!B267","v":691},{"$f":"Planilha1!C267","v":"MAX FELIPPE NERI LINS"},{"$f":"\"***\"&MID(Planilha1!D267,4,9)&\"**\"","v":"***.165.024-**"},"ANALISTA IND. DE HEMOD. E BIOTEC. - FRACION. IND. PLASMA 2",null,"HEMOBRÁS - FILIAL UNID. FABRIL (GOIANA)",{"$f":"Planilha1!I267","v":"CELETISTA"},{"$f":"Planilha1!J267","v":"40 HORAS SEMANAIS"},{"$f":"Planilha1!K267","v":"CONCURSO PÚBLICO"},{"$f":"Planilha1!L267","v":"2023-07-24"}]
[{"$f":"Planilha1!B268","v":215},{"$f":"Planilha1!C268","v":"MELISSA PAPALEO ROCHA DE LIMA"},{"$f":"\"***\"&MID(Planilha1!D268,4,9)&\"**\"","v":"***.988.364-**"},"ESPECIALISTA EM PHB - PLASMA E HEMOCOMPONENTES ","GERENTE DE PRODUTOS E SUPRIMENTOS FARMACÊUTICOS","HEMOBRÁS - FILIAL UNID. ADM. (RECIFE)",{"$f":"Planilha1!I268","v":"CELETISTA"},{"$f":"Planilha1!J268","v":"40 HORAS SEMANAIS"},{"$f":"Planilha1!K268","v":"CONCURSO PÚBLICO"},{"$f":"Planilha1!L268","v":"2014-02-20"}]
[{"$f":"Planilha1!B269","v":285},{"$f":"Planilha1!C269","v":"MESSIAS LIMA DA SILVA"},{"$f":"\"***\"&MID(Planilha1!D269,4,9)&\"**\"","v":"***.064.234-**"},"TÉCNICO IND. E DE GESTÃO CORP. - ELÉTRICA",null,"HEMOBRÁS - FILIAL UNID. FABRIL (GOIANA)",{"$f":"Planilha1!I269","v":"CELETISTA"},{"$f":"Planilha1!J269","v":"40 HORAS SEMANAIS"},{"$f":"Planilha1!K269","v":"CONCURSO PÚBLICO"},{"$f":"Planilha1!L269","v":"2014-08-04"}]
[{"$f":"Planilha1!B270","v":645},{"$f":"Planilha1!C270","v":"MIGUEL WILSON REGUEIRA RIBEIRO"},{"$f":"\"***\"&MID(Planilha1!D270,4,9)&\"**\"","v":"***.663.804-**"},"ANALISTA IND. DE HEMOD. E BIOTEC. - CONTROLE QUALIDADE - 2",null,"HEMOBRÁS - FILIAL UNID. FABRIL (GOIANA)",{"$f":"Planilha1!I270","v":"CELETISTA"},{"$f":"Planilha1!J270","v":"40 HORAS SEMANAIS"},{"$f":"Planilha1!K270","v":"CONCURSO PÚBLICO"},{"$f":"Planilha1!L270","v":"2023-05-17"}]
[{"$f":"Planilha1!B271","v":595},{"$f":"Planilha1!C271","v":"MILENA TEREZA TORRES DO COUTO"},{"$f":"\"***\"&MID(Planilha1!D271,4,9)&\"**\"","v":"***.402.984-**"},"ANALISTA IND. DE HEMOD. E BIOTEC. - FRACION. IND. PLASMA 2",null,"HEMOBRÁS - FILIAL UNID. FABRIL (GOIANA)",{"$f":"Planilha1!I271","v":"CELETISTA"},{"$f":"Planilha1!J271","v":"40 HORAS SEMANAIS"},{"$f":"Planilha1!K271","v":"CONCURSO PÚBLICO"},{"$f":"Planilha1!L271","v":"2022-11-25"}]
[{"$f":"Planilha1!B272","v":346},{"$f":"Planilha1!C272","v":"MIRELLA MUZZI DE LIMA"},{"$f":"\"***\"&MID(Planilha1!D272,4,9)&\"**\"","v":"***.909.704-**"},"ANALISTA ADM. DE ASSUNTOS CORP. - LICITAÇÃO E CONTRATOS","ASSISTENTE TECNICO ESPECIALIZADO","HEMOBRÁS - FILIAL UNID. ADM. (RECIFE)",{"$f":"Planilha1!I272","v":"CELETISTA"},{"$f":"Planilha1!J272","v":"40 HORAS SEMANAIS"},{"$f":"Planilha1!K272","v":"CONCURSO PÚBLICO"},{"$f":"Planilha1!L272","v":"2015-06-16"}]
[{"$f":"Planilha1!B273","v":438},{"$f":"Planilha1!C273","v":"MIRELLA SOARES DA SILVA BEZERRA"},{"$f":"\"***\"&MID(Planilha1!D273,4,9)&\"**\"","v":"***.848.714-**"},"ANALISTA IND. DE HEMOD. E BIOTEC. - ENG. AMBIENTAL",null,"HEMOBRÁS - FILIAL UNID. FABRIL (GOIANA)",{"$f":"Planilha1!I273","v":"CELETISTA"},{"$f":"Planilha1!J273","v":"40 HORAS SEMANAIS"},{"$f":"Planilha1!K273","v":"CONCURSO PÚBLICO"},{"$f":"Planilha1!L273","v":"2018-01-15"}]
[{"$f":"Planilha1!B274","v":457},{"$f":"Planilha1!C274","v":"MONICA ASFORA MOREIRA"},{"$f":"\"***\"&MID(Planilha1!D274,4,9)&\"**\"","v":"***.055.394-**"},null,"SECRETÁRIA EXECUTIVA","HEMOBRÁS - FILIAL UNID. ADM. (RECIFE)",{"$f":"Planilha1!I274","v":"CELETISTA"},{"$f":"Planilha1!J274","v":"40 HORAS SEMANAIS"},{"$f":"Planilha1!K274","v":"PORTARIA"},{"$f":"Planilha1!L274","v":"2018-09-04"}]
[{"$f":"Planilha1!B275","v":690},{"$f":"Planilha1!C275","v":"MONICA CORREIA SANTOS"},{"$f":"\"***\"&MID(Planilha1!D275,4,9)&\"**\"","v":"***.804.474-**"},"ANALISTA IND. DE HEMOD. E BIOTEC. - FRACION. IND. PLASMA 2",null,"HEMOBRÁS - FILIAL UNID. FABRIL (GOIANA)",{"$f":"Planilha1!I275","v":"CELETISTA"},{"$f":"Planilha1!J275","v":"40 HORAS SEMANAIS"},{"$f":"Planilha1!K275","v":"CONCURSO PÚBLICO"},{"$f":"Planilha1!L275","v":"2023-07-24"}]
[{"$f":"Planilha1!B276","v":720},{"$f":"Planilha1!C276","v":"MONIELLY MIRELLY LEITE DA SILVA"},{"$f":"\"***\"&MID(Planilha1!D276,4,9)&\"**\"","v":"***.877.224-**"},"APRENDIZ EM ASSISTENTE ADMINISTRATIVO",null,"HEMOBRÁS - FILIAL UNID. ADM. (RECIFE)",{"$f":"Planilha1!I276","v":"CELETISTA"},{"$f":"Planilha1!J276","v":"20 HORAS SEMANAIS"},{"$f":"Planilha1!K276","v":"SELEÇÃO"},{"$f":"Planilha1!L276","v":"2023-11-13"}]
[{"$f":"Planilha1!B277","v":555},{"$f":"Planilha1!C277","v":"MYLENA FELIX DE LIRA"},{"$f":"\"***\"&MID(Planilha1!D277,4,9)&\"**\"","v":"***.656.134-**"},"ANALISTA IND. DE HEMOD. E BIOTEC. - CONTROLE QUALIDADE - 2",null,"HEMOBRÁS - FILIAL UNID. FABRIL (GOIANA)",{"$f":"Planilha1!I277","v":"CELETISTA"},{"$f":"Planilha1!J277","v":"40 HORAS SEMANAIS"},{"$f":"Planilha1!K277","v":"CONCURSO PÚBLICO"},{"$f":"Planilha1!L277","v":"2022-09-20"}]
[{"$f":"Planilha1!B278","v":373},{"$f":"Planilha1!C278","v":"NADJA NAIRA DE FREITAS GONCALVES"},{"$f":"\"***\"&MID(Planilha1!D278,4,9)&\"**\"","v":"***.939.774-**"},"TÉCNICO IND. E DE GESTÃO CORP. - TRIAGEM DO PLASMA",null,"HEMOBRÁS - FILIAL UNID. FABRIL (GOIANA)",{"$f":"Planilha1!I278","v":"CELETISTA"},{"$f":"Planilha1!J278","v":"40 HORAS SEMANAIS"},{"$f":"Planilha1!K278","v":"CONCURSO PÚBLICO"},{"$f":"Planilha1!L278","v":"2015-10-20"}]
[{"$f":"Planilha1!B279","v":267},{"$f":"Planilha1!C279","v":"NARAYANNA MARTINS DANTAS"},{"$f":"\"***\"&MID(Planilha1!D279,4,9)&\"**\"","v":"***.044.764-**"},"ANALISTA IND. DE HEMOD. E BIOTEC. - GARANTIA DA QUALIDADE",null,"HEMOBRÁS - FILIAL UNID. FABRIL (GOIANA)",{"$f":"Planilha1!I279","v":"CELETISTA"},{"$f":"Planilha1!J279","v":"40 HORAS SEMANAIS"},{"$f":"Planilha1!K279","v":"CONCURSO PÚBLICO"},{"$f":"Planilha1!L279","v":"2014-07-14"}]
[{"$f":"Planilha1!B280","v":337},{"$f":"Planilha1!C280","v":"NATALIA TAURINO DA SILVA"},{"$f":"\"***\"&MID(Planilha1!D280,4,9)&\"**\"","v":"***.614.334-**"},"ASSISTENTE IND. E DE GESTÃO CORP - ASSISTENTE ADMINISTRATIVO",null,"HEMOBRÁS - FILIAL UNID. ADM. (RECIFE)",{"$f":"Planilha1!I280","v":"CELETISTA"},{"$f":"Planilha1!J280","v":"40 HORAS SEMANAIS"},{"$f":"Planilha1!K280","v":"CONCURSO PÚBLICO"},{"$f":"Planilha1!L280","v":"2015-04-16"}]
[{"$f":"Planilha1!B281","v":354},{"$f":"Planilha1!C281","v":"NATHALIA BRITO JATAI"},{"$f":"\"***\"&MID(Planilha1!D281,4,9)&\"**\"","v":"***.451.743-**"},"ANALISTA IND. DE HEMOD. E BIOTEC. - GARANTIA DA QUALIDADE",null,"HEMOBRÁS - FILIAL UNID. FABRIL (GOIANA)",{"$f":"Planilha1!I281","v":"CELETISTA"},{"$f":"Planilha1!J281","v":"40 HORAS SEMANAIS"},{"$f":"Planilha1!K281","v":"CONCURSO PÚBLICO"},{"$f":"Planilha1!L281","v":"2015-06-16"}]
[{"$f":"Planilha1!B282","v":353},{"$f":"Planilha1!C282","v":"NATHALIA MACIEL BEZERRA CAVALCANTI"},{"$f":"\"***\"&MID(Planilha1!D282,4,9)&\"**\"","v":"***.275.094-**"},"ANALISTA ADM. DE ASSUNTOS CORP. - LOGÍSTICA FARMACÊUTICA","CHEFE DE SERVIÇO DE LOGÍSTICA FARMACÊUTICA","HEMOBRÁS - FILIAL UNID. ADM. (RECIFE)",{"$f":"Planilha1!I282","v":"CELETISTA"},{"$f":"Planilha1!J282","v":"40 HORAS SEMANAIS"},{"$f":"Planilha1!K282","v":"CONCURSO PÚBLICO"},{"$f":"Planilha1!L282","v":"2015-06-16"}]
[{"$f":"Planilha1!B283","v":216},{"$f":"Planilha1!C283","v":"NATHALIA ROCHA LIMA"},{"$f":"\"***\"&MID(Planilha1!D283,4,9)&\"**\"","v":"***.063.723-**"},"ESPECIALISTA EM PHB - CONTROLE QUALIDADE - I","CHEFA DE SERVIÇO DE LABORATÓRIO","HEMOBRÁS - FILIAL UNID. FABRIL (GOIANA)",{"$f":"Planilha1!I283","v":"CELETISTA"},{"$f":"Planilha1!J283","v":"40 HORAS SEMANAIS"},{"$f":"Planilha1!K283","v":"CONCURSO PÚBLICO"},{"$f":"Planilha1!L283","v":"2014-02-20"}]
[{"$f":"Planilha1!B284","v":339},{"$f":"Planilha1!C284","v":"NAYANE BRANDAO DE MIRANDA"},{"$f":"\"***\"&MID(Planilha1!D284,4,9)&\"**\"","v":"***.327.794-**"},"ANALISTA ADM. DE ASSUNTOS CORP. - ORÇAMENTO E FINANÇAS",null,"HEMOBRÁS - FILIAL UNID. ADM. (RECIFE)",{"$f":"Planilha1!I284","v":"CELETISTA"},{"$f":"Planilha1!J284","v":"40 HORAS SEMANAIS"},{"$f":"Planilha1!K284","v":"CONCURSO PÚBLICO"},{"$f":"Planilha1!L284","v":"2015-04-16"}]
[{"$f":"Planilha1!B285","v":697},{"$f":"Planilha1!C285","v":"NAYARA BARBOSA TORRES DA SILVA"},{"$f":"\"***\"&MID(Planilha1!D285,4,9)&\"**\"","v":"***.708.874-**"},"ANALISTA IND. DE HEMOD. E BIOTEC. - FRACION. IND. PLASMA 1",null,"HEMOBRÁS - FILIAL UNID. FABRIL (GOIANA)",{"$f":"Planilha1!I285","v":"CELETISTA"},{"$f":"Planilha1!J285","v":"40 HORAS SEMANAIS"},{"$f":"Planilha1!K285","v":"CONCURSO PÚBLICO"},{"$f":"Planilha1!L285","v":"2023-08-23"}]
[{"$f":"Planilha1!B286","v":566},{"$f":"Planilha1!C286","v":"NEEMIAS SANTANA DA CONCEICAO OLIVEIRA"},{"$f":"\"***\"&MID(Planilha1!D286,4,9)&\"**\"","v":"***.477.515-**"},"ANALISTA IND. DE HEMOD. E BIOTEC. - GARANTIA DA QUALIDADE 2",null,"HEMOBRÁS - FILIAL UNID. FABRIL (GOIANA)",{"$f":"Planilha1!I286","v":"CELETISTA"},{"$f":"Planilha1!J286","v":"40 HORAS SEMANAIS"},{"$f":"Planilha1!K286","v":"CONCURSO PÚBLICO"},{"$f":"Planilha1!L286","v":"2022-09-20"}]
[{"$f":"Planilha1!B287","v":312},{"$f":"Planilha1!C287","v":"NELSON GUTEMBERG ROCHA DA SILVA"},{"$f":"\"***\"&MID(Planilha1!D287,4,9)&\"**\"","v":"***.517.034-**"},"ANALISTA ADM. DE ASSUNTOS CORP. - TECNOLOGIA DA INFORMAÇÃO",null,"HEMOBRÁS - FILIAL UNID. FABRIL (GOIANA)",{"$f":"Planilha1!I287","v":"CELETISTA"},{"$f":"Planilha1!J287","v":"40 HORAS SEMANAIS"},{"$f":"Planilha1!K287","v":"CONCURSO PÚBLICO"},{"$f":"Planilha1!L287","v":"2015-01-09"}]
[{"$f":"Planilha1!B288","v":650},{"$f":"Planilha1!C288","v":"NICOLLAS ANGELO JUSTINO LUNA"},{"$f":"\"***\"&MID(Planilha1!D288,4,9)&\"**\"","v":"***.662.414-**"},"ANALISTA IND. DE HEMOD. E BIOTEC. - GARANTIA DA QUALIDADE 2",null,"HEMOBRÁS - FILIAL UNID. FABRIL (GOIANA)",{"$f":"Planilha1!I288","v":"CELETISTA"},{"$f":"Planilha1!J288","v":"40 HORAS SEMANAIS"},{"$f":"Planilha1!K288","v":"CONCURSO PÚBLICO"},{"$f":"Planilha1!L288","v":"2023-04-25"}]
[{"$f":"Planilha1!B289","v":43},{"$f":"Planilha1!C289","v":"NORMA BACELAR BARBALHO"},{"$f":"\"***\"&MID(Planilha1!D289,4,9)&\"**\"","v":"***.116.684-**"},"ANALISTA ADM. DE ASSUNTOS CORP. - CONTADOR I","CHEFE DE SERVIÇO DE ORÇAMENTO E FINANÇAS","HEMOBRÁS - FILIAL UNID. ADM. (RECIFE)",{"$f":"Planilha1!I289","v":"CELETISTA"},{"$f":"Planilha1!J289","v":"40 HORAS SEMANAIS"},{"$f":"Planilha1!K289","v":"CONCURSO PÚBLICO"},{"$f":"Planilha1!L289","v":"2009-10-01"}]
[{"$f":"Planilha1!B290","v":243},{"$f":"Planilha1!C290","v":"OSMAR BONNOMI"},{"$f":"\"***\"&MID(Planilha1!D290,4,9)&\"**\"","v":"***.588.288-**"},"ANALISTA ADM. DE ASSUNTOS CORP. - COMPRAS NAC. E INTERNAC.",null,"HEMOBRÁS - FILIAL UNID. ADM. (RECIFE)",{"$f":"Planilha1!I290","v":"CELETISTA"},{"$f":"Planilha1!J290","v":"40 HORAS SEMANAIS"},{"$f":"Planilha1!K290","v":"CONCURSO PÚBLICO"},{"$f":"Planilha1!L290","v":"2014-03-24"}]
[{"$f":"Planilha1!B291","v":634},{"$f":"Planilha1!C291","v":"PATRICIA ANDRADE SOUSA"},{"$f":"\"***\"&MID(Planilha1!D291,4,9)&\"**\"","v":"***.779.592-**"},"ANALISTA IND. DE HEMOD. E BIOTEC. - GARANTIA DA QUALIDADE 2",null,"HEMOBRÁS - FILIAL UNID. FABRIL (GOIANA)",{"$f":"Planilha1!I291","v":"CELETISTA"},{"$f":"Planilha1!J291","v":"40 HORAS SEMANAIS"},{"$f":"Planilha1!K291","v":"CONCURSO PÚBLICO"},{"$f":"Planilha1!L291","v":"2023-02-24"}]
[{"$f":"Planilha1!B292","v":217},{"$f":"Planilha1!C292","v":"PATRICIA BARROS DOS SANTOS"},{"$f":"\"***\"&MID(Planilha1!D292,4,9)&\"**\"","v":"***.467.347-**"},"ESPECIALISTA EM PHB - FRAC. IND. PLASMA 2","ASSESSORA ESPECIAL","HEMOBRÁS - FILIAL UNID. ADM. (RECIFE)",{"$f":"Planilha1!I292","v":"CELETISTA"},{"$f":"Planilha1!J292","v":"40 HORAS SEMANAIS"},{"$f":"Planilha1!K292","v":"CONCURSO PÚBLICO"},{"$f":"Planilha1!L292","v":"2014-02-20"}]
[{"$f":"Planilha1!B293","v":539},{"$f":"Planilha1!C293","v":"PATRYCK SILVA FARIAS"},{"$f":"\"***\"&MID(Planilha1!D293,4,9)&\"**\"","v":"***.082.003-**"},"ANALISTA ADM. DE ASSUNTOS CORP. - LOGÍSTICA FARMACÊUTICA 1",null,"HEMOBRÁS - FILIAL UNID. ADM. (RECIFE)",{"$f":"Planilha1!I293","v":"CELETISTA"},{"$f":"Planilha1!J293","v":"40 HORAS SEMANAIS"},{"$f":"Planilha1!K293","v":"CONCURSO PÚBLICO"},{"$f":"Planilha1!L293","v":"2022-09-20"}]
[{"$f":"Planilha1!B294","v":280},{"$f":"Planilha1!C294","v":"PAULA RAYANE DE SOUZA"},{"$f":"\"***\"&MID(Planilha1!D294,4,9)&\"**\"","v":"***.294.724-**"},"TÉCNICO IND. E DE GESTÃO CORP. - TRIAGEM DO PLASMA",null,"HEMOBRÁS - FILIAL UNID. FABRIL (GOIANA)",{"$f":"Planilha1!I294","v":"CELETISTA"},{"$f":"Planilha1!J294","v":"40 HORAS SEMANAIS"},{"$f":"Planilha1!K294","v":"CONCURSO PÚBLICO"},{"$f":"Planilha1!L294","v":"2014-07-14"}]
[{"$f":"Planilha1!B295","v":272},{"$f":"Planilha1!C295","v":"PAULO RICARDO FREIRE DE PAIVA JUNIOR"},{"$f":"\"***\"&MID(Planilha1!D295,4,9)&\"**\"","v":"***.638.603-**"},"ANALISTA IND. DE HEMOD. E BIOTEC. - FRACION. IND. PLASMA 1",null,"HEMOBRÁS - FILIAL UNID. FABRIL (GOIANA)",{"$f":"Planilha1!I295","v":"CELETISTA"},{"$f":"Planilha1!J295","v":"40 HORAS SEMANAIS"},{"$f":"Planilha1!K295","v":"CONCURSO PÚBLICO"},{"$f":"Planilha1!L295","v":"2014-07-14"}]
[{"$f":"Planilha1!B296","v":599},{"$f":"Planilha1!C296","v":"PEDRO AFONSO TOMAZ DE OLIVEIRA"},{"$f":"\"***\"&MID(Planilha1!D296,4,9)&\"**\"","v":"***.712.194-**"},"ANALISTA IND. DE HEMOD. E BIOTEC. - FRACION. IND. PLASMA 1",null,"HEMOBRÁS - FILIAL UNID. FABRIL (GOIANA)",{"$f":"Planilha1!I296","v":"CELETISTA"},{"$f":"Planilha1!J296","v":"40 HORAS SEMANAIS"},{"$f":"Planilha1!K296","v":"CONCURSO PÚBLICO"},{"$f":"Planilha1!L296","v":"2022-11-25"}]
[{"$f":"Planilha1!B297","v":488},{"$f":"Planilha1!C297","v":"PEDRO CANISIO BINSFELD"},{"$f":"\"***\"&MID(Planilha1!D297,4,9)&\"**\"","v":"***.025.170-**"},null,"CONSELHEIRO ADMINISTRATIVO","NÃO SE APLICA",{"$f":"Planilha1!I297","v":"NÃO SE APLICA"},{"$f":"Planilha1!J297","v":"NÃO SE APLICA"},{"$f":"Planilha1!K297","v":"TERMO DE POSSE"},{"$f":"Planilha1!L297","v":"2020-01-17"}]
[{"$f":"Planilha1!B298","v":93},{"$f":"Planilha1!C298","v":"PEDRO CANUTO VIEIRA DA COSTA"},{"$f":"\"***\"&MID(Planilha1!D298,4,9)&\"**\"","v":"***.950.974-**"},"ESPECIALISTA EM PHB - CONTROLE QUALIDADE - I","GERENTE DE CONTROLE DA QUALIDADE ","HEMOBRÁS - FILIAL UNID. FABRIL (GOIANA)",{"$f":"Planilha1!I298","v":"CELETISTA"},{"$f":"Planilha1!J298","v":"40 HORAS SEMANAIS"},{"$f":"Planilha1!K298","v":"CONCURSO PÚBLICO"},{"$f":"Planilha1!L298","v":"2010-11-22"}]
[{"$f":"Planilha1!B299","v":703},{"$f":"Planilha1!C299","v":"PEDRO HENRIQUE CELESTINO DE OLIVEIRA"},{"$f":"\"***\"&MID(Planilha1!D299,4,9)&\"**\"","v":"***.705.014-**"},"ANALISTA ADM. DE ASS CORP. - AUDIT. INTERNA,GESTAO RISC.CONF",null,"HEMOBRÁS - FILIAL UNID. ADM. (RECIFE)",{"$f":"Planilha1!I299","v":"CELETISTA"},{"$f":"Planilha1!J299","v":"40 HORAS SEMANAIS"},{"$f":"Planilha1!K299","v":"CONCURSO PÚBLICO"},{"$f":"Planilha1!L299","v":"2023-08-23"}]
[{"$f":"Planilha1!B300","v":570},{"$f":"Planilha1!C300","v":"PEDRO HENRIQUE DA SILVA"},{"$f":"\"***\"&MID(Planilha1!D300,4,9)&\"**\"","v":"***.772.111-**"},"ANALISTA IND. DE HEMOD. E BIOTEC. - GARANTIA DA QUALIDADE 2",null,"HEMOBRÁS - FILIAL UNID. FABRIL (GOIANA)",{"$f":"Planilha1!I300","v":"CELETISTA"},{"$f":"Planilha1!J300","v":"40 HORAS SEMANAIS"},{"$f":"Planilha1!K300","v":"CONCURSO PÚBLICO"},{"$f":"Planilha1!L300","v":"2022-09-20"}]
[{"$f":"Planilha1!B301","v":655},{"$f":"Planilha1!C301","v":"PEDRO HENRIQUE GONCALVES DE MELO"},{"$f":"\"***\"&MID(Planilha1!D301,4,9)&\"**\"","v":"***.418.114-**"},"TÉCNICO IND. E DE GESTÃO CORP. - REFRIGERAÇÃO",null,"HEMOBRÁS - FILIAL UNID. FABRIL (GOIANA)",{"$f":"Planilha1!I301","v":"CELETISTA"},{"$f":"Planilha1!J301","v":"40 HORAS SEMANAIS"},{"$f":"Planilha1!K301","v":"CONCURSO PÚBLICO"},{"$f":"Planilha1!L301","v":"2023-07-24"}]
[{"$f":"Planilha1!B302","v":528},{"$f":"Planilha1!C302","v":"PERLIA ZAIRINE DE CASTRO HERACLIO LIRA"},{"$f":"\"***\"&MID(Planilha1!D302,4,9)&\"**\"","v":"***.553.004-**"},"ANALISTA IND. DE HEMOD. E BIOTEC. - FRACION. IND. PLASMA 1",null,"HEMOBRÁS - FILIAL UNID. FABRIL (GOIANA)",{"$f":"Planilha1!I302","v":"CELETISTA"},{"$f":"Planilha1!J302","v":"40 HORAS SEMANAIS"},{"$f":"Planilha1!K302","v":"CONCURSO PÚBLICO"},{"$f":"Planilha1!L302","v":"2022-03-17"}]
[{"$f":"Planilha1!B303","v":244},{"$f":"Planilha1!C303","v":"PLUTARCO REIS DE MACEDO GRANJA"},{"$f":"\"***\"&MID(Planilha1!D303,4,9)&\"**\"","v":"***.015.054-**"},"ANALISTA DE GES. CORP. - LOGÍSTICA FARMACÊUTICA","OUVIDOR","HEMOBRÁS - FILIAL UNID. ADM. (RECIFE)",{"$f":"Planilha1!I303","v":"CELETISTA"},{"$f":"Planilha1!J303","v":"40 HORAS SEMANAIS"},{"$f":"Planilha1!K303","v":"CONCURSO PÚBLICO"},{"$f":"Planilha1!L303","v":"2014-03-24"}]
[{"$f":"Planilha1!B304","v":416},{"$f":"Planilha1!C304","v":"POLIANNA ALVES DE CASTRO"},{"$f":"\"***\"&MID(Planilha1!D304,4,9)&\"**\"","v":"***.923.801-**"},"ANALISTA IND. DE HEMOD. E BIOTEC. - GARANTIA DA QUALIDADE",null,"HEMOBRÁS - FILIAL UNID. FABRIL (GOIANA)",{"$f":"Planilha1!I304","v":"CELETISTA"},{"$f":"Planilha1!J304","v":"40 HORAS SEMANAIS"},{"$f":"Planilha1!K304","v":"CONCURSO PÚBLICO"},{"$f":"Planilha1!L304","v":"2016-08-16"}]
[{"$f":"Planilha1!B305","v":621},{"$f":"Planilha1!C305","v":"POLLYANA MARIA BARROS DE FRANCA"},{"$f":"\"***\"&MID(Planilha1!D305,4,9)&\"**\"","v":"***.046.124-**"},"ANALISTA ADM. DE ASS CORP. - AUDIT. INTERNA,GESTAO RISC.CONF",null,"HEMOBRÁS - FILIAL UNID. ADM. (RECIFE)",{"$f":"Planilha1!I305","v":"CELETISTA"},{"$f":"Planilha1!J305","v":"40 HORAS SEMANAIS"},{"$f":"Planilha1!K305","v":"CONCURSO PÚBLICO"},{"$f":"Planilha1!L305","v":"2023-01-25"}]
[{"$f":"Planilha1!B306","v":529},{"$f":"Planilha1!C306","v":"POLLYANNA LEITE FERREIRA DA COSTA"},{"$f":"\"***\"&MID(Planilha1!D306,4,9)&\"**\"","v":"***.006.744-**"},"ANALISTA IND. DE HEMOD. E BIOTEC. - FRACION. IND. PLASMA 1",null,"HEMOBRÁS - FILIAL UNID. FABRIL (GOIANA)",{"$f":"Planilha1!I306","v":"CELETISTA"},{"$f":"Planilha1!J306","v":"40 HORAS SEMANAIS"},{"$f":"Planilha1!K306","v":"CONCURSO PÚBLICO"},{"$f":"Planilha1!L306","v":"2022-03-17"}]
[{"$f":"Planilha1!B307","v":643},{"$f":"Planilha1!C307","v":"PRISCILA ROBERTA DE AZEVEDO"},{"$f":"\"***\"&MID(Planilha1!D307,4,9)&\"**\"","v":"***.700.514-**"},"ANALISTA IND. DE HEMOD. E BIOTEC. - CONTROLE QUALIDADE - 2",null,"HEMOBRÁS - FILIAL UNID. FABRIL (GOIANA)",{"$f":"Planilha1!I307","v":"CELETISTA"},{"$f":"Planilha1!J307","v":"40 HORAS SEMANAIS"},{"$f":"Planilha1!K307","v":"CONCURSO PÚBLICO"},{"$f":"Planilha1!L307","v":"2023-04-25"}]
[{"$f":"Planilha1!B308","v":657},{"$f":"Planilha1!C308","v":"RAFAEL CALDAS PEREIRA"},{"$f":"\"***\"&MID(Planilha1!D308,4,9)&\"**\"","v":"***.164.134-**"},"ANALISTA IND. DE HEMOD. E BIOTEC. - CONTROLE QUALIDADE - 2",null,"HEMOBRÁS - FILIAL UNID. FABRIL (GOIANA)",{"$f":"Planilha1!I308","v":"CELETISTA"},{"$f":"Planilha1!J308","v":"40 HORAS SEMANAIS"},{"$f":"Planilha1!K308","v":"CONCURSO PÚBLICO"},{"$f":"Planilha1!L308","v":"2023-07-24"}]
[{"$f":"Planilha1!B309","v":682},{"$f":"Planilha1!C309","v":"RAFAEL CANDIDO ALVES AGUIAR"},{"$f":"\"***\"&MID(Planilha1!D309,4,9)&\"**\"","v":"***.252.816-**"},"ANALISTA IND. DE HEMOD. E BIOTEC. - FRACION. IND. PLASMA 1",null,"HEMOBRÁS - FILIAL UNID. ADM. (RECIFE)",{"$f":"Planilha1!I309","v":"CELETISTA"},{"$f":"Planilha1!J309","v":"40 HORAS SEMANAIS"},{"$f":"Planilha1!K309","v":"CONCURSO PÚBLICO"},{"$f":"Planilha1!L309","v":"2023-07-24"}]
[{"$f":"Planilha1!B310","v":313},{"$f":"Planilha1!C310","v":"RAFAEL ELIAS SALOMAO JAEGGER"},{"$f":"\"***\"&MID(Planilha1!D310,4,9)&\"**\"","v":"***.252.684-**"},"ANALISTA ADM. DE ASSUNTOS CORP. - ADMINISTRAÇÃO DE PESSOAL","GERENTE DE GESTÃO DE PESSOAS ","HEMOBRÁS - FILIAL UNID. ADM. (RECIFE)",{"$f":"Planilha1!I310","v":"CELETISTA"},{"$f":"Planilha1!J310","v":"40 HORAS SEMANAIS"},{"$f":"Planilha1!K310","v":"CONCURSO PÚBLICO"},{"$f":"Planilha1!L310","v":"2015-01-09"}]
[{"$f":"Planilha1!B311","v":686},{"$f":"Planilha1!C311","v":"RAFAELA BARCELOS DOS SANTOS"},{"$f":"\"***\"&MID(Planilha1!D311,4,9)&\"**\"","v":"***.067.911-**"},"ANALISTA IND. DE HEMOD. E BIOTEC. - FRACION. IND. PLASMA 2",null,"HEMOBRÁS - FILIAL UNID. FABRIL (GOIANA)",{"$f":"Planilha1!I311","v":"CELETISTA"},{"$f":"Planilha1!J311","v":"40 HORAS SEMANAIS"},{"$f":"Planilha1!K311","v":"CONCURSO PÚBLICO"},{"$f":"Planilha1!L311","v":"2023-07-24"}]
[{"$f":"Planilha1!B312","v":631},{"$f":"Planilha1!C312","v":"RAILA DE ARAUJO SABINO"},{"$f":"\"***\"&MID(Planilha1!D312,4,9)&\"**\"","v":"***.780.474-**"},"ANALISTA IND. DE HEMOD. E BIOTEC. - CONTROLE QUALIDADE - 2",null,"HEMOBRÁS - FILIAL UNID. FABRIL (GOIANA)",{"$f":"Planilha1!I312","v":"CELETISTA"},{"$f":"Planilha1!J312","v":"40 HORAS SEMANAIS"},{"$f":"Planilha1!K312","v":"CONCURSO PÚBLICO"},{"$f":"Planilha1!L312","v":"2023-02-24"}]
[{"$f":"Planilha1!B313","v":618},{"$f":"Planilha1!C313","v":"RAIMUNDO CARDOSO DE OLIVEIRA NETO"},{"$f":"\"***\"&MID(Planilha1!D313,4,9)&\"**\"","v":"***.319.073-**"},"ANALISTA IND. DE HEMOD. E BIOTEC. - CONTROLE QUALIDADE - 3",null,"HEMOBRÁS - FILIAL UNID. FABRIL (GOIANA)",{"$f":"Planilha1!I313","v":"CELETISTA"},{"$f":"Planilha1!J313","v":"40 HORAS SEMANAIS"},{"$f":"Planilha1!K313","v":"CONCURSO PÚBLICO"},{"$f":"Planilha1!L313","v":"2023-01-25"}]
[{"$f":"Planilha1!B314","v":733},{"$f":"Planilha1!C314","v":"RAISSA RODRIGUES RIBEIRO DOS SANTOS"},{"$f":"\"***\"&MID(Planilha1!D314,4,9)&\"**\"","v":"***.567.924-**"},"APRENDIZ EM ASSISTENTE ADMINISTRATIVO",null,"HEMOBRÁS - FILIAL UNID. FABRIL (GOIANA)",{"$f":"Planilha1!I314","v":"CELETISTA"},{"$f":"Planilha1!J314","v":"20 HORAS SEMANAIS"},{"$f":"Planilha1!K314","v":"SELEÇÃO"},{"$f":"Planilha1!L314","v":"2024-02-05"}]
[{"$f":"Planilha1!B315","v":276},{"$f":"Planilha1!C315","v":"RAPHAEL VALE MENDES"},{"$f":"\"***\"&MID(Planilha1!D315,4,9)&\"**\"","v":"***.951.837-**"},"ANALISTA ADM. DE ASSUNTOS CORP. - ECONOMIA","ASSESSOR DE PLANEJAMENTO E PROJETOS","HEMOBRÁS - FILIAL UNID. ADM. (RECIFE)",{"$f":"Planilha1!I315","v":"CELETISTA"},{"$f":"Planilha1!J315","v":"40 HORAS SEMANAIS"},{"$f":"Planilha1!K315","v":"CONCURSO PÚBLICO"},{"$f":"Planilha1!L315","v":"2014-07-14"}]
[{"$f":"Planilha1!B316","v":732},{"$f":"Planilha1!C316","v":"RAQUEL DO ESPIRITO SANTO SILVA"},{"$f":"\"***\"&MID(Planilha1!D316,4,9)&\"**\"","v":"***.428.234-**"},"APRENDIZ EM ASSISTENTE ADMINISTRATIVO",null,"HEMOBRÁS - FILIAL UNID. ADM. (RECIFE)",{"$f":"Planilha1!I316","v":"CELETISTA"},{"$f":"Planilha1!J316","v":"20 HORAS SEMANAIS"},{"$f":"Planilha1!K316","v":"SELEÇÃO"},{"$f":"Planilha1!L316","v":"2024-02-05"}]
[{"$f":"Planilha1!B317","v":552},{"$f":"Planilha1!C317","v":"RAQUEL GOIS BASTOS"},{"$f":"\"***\"&MID(Planilha1!D317,4,9)&\"**\"","v":"***.918.105-**"},"ANALISTA IND. DE HEMOD. E BIOTEC. - PLASMA E HEMOCOMPONENTES",null,"HEMOBRÁS - FILIAL UNID. ADM. (RECIFE)",{"$f":"Planilha1!I317","v":"CELETISTA"},{"$f":"Planilha1!J317","v":"40 HORAS SEMANAIS"},{"$f":"Planilha1!K317","v":"CONCURSO PÚBLICO"},{"$f":"Planilha1!L317","v":"2022-09-20"}]
[{"$f":"Planilha1!B318","v":51},{"$f":"Planilha1!C318","v":"RAQUEL JACQUES DE FARIAS MADRUGA"},{"$f":"\"***\"&MID(Planilha1!D318,4,9)&\"**\"","v":"***.045.824-**"},"ESPECIALISTA EM PHB - GARANTIA DA QUALIDADE - I","CHEFE DE SERVIÇO DE PRODUÇÃO DE BIOTECNOLÓGICOS","HEMOBRÁS - FILIAL UNID. FABRIL (GOIANA)",{"$f":"Planilha1!I318","v":"CELETISTA"},{"$f":"Planilha1!J318","v":"40 HORAS SEMANAIS"},{"$f":"Planilha1!K318","v":"CONCURSO PÚBLICO"},{"$f":"Planilha1!L318","v":"2009-08-04"}]
[{"$f":"Planilha1!B319","v":687},{"$f":"Planilha1!C319","v":"RAYSSA TOSCANO DUARTE"},{"$f":"\"***\"&MID(Planilha1!D319,4,9)&\"**\"","v":"***.349.074-**"},"ANALISTA IND. DE HEMOD. E BIOTEC. - FRACION. IND. PLASMA 1",null,"HEMOBRÁS - FILIAL UNID. FABRIL (GOIANA)",{"$f":"Planilha1!I319","v":"CELETISTA"},{"$f":"Planilha1!J319","v":"40 HORAS SEMANAIS"},{"$f":"Planilha1!K319","v":"CONCURSO PÚBLICO"},{"$f":"Planilha1!L319","v":"2023-07-24"}]
[{"$f":"Planilha1!B320","v":600},{"$f":"Planilha1!C320","v":"RENATA MENDES BATISTA DE OLIVEIRA GOUVEIA"},{"$f":"\"***\"&MID(Planilha1!D320,4,9)&\"**\"","v":"***.135.314-**"},"ANALISTA IND. DE HEMOD. E BIOTEC. - FRACION. IND. PLASMA 2",null,"HEMOBRÁS - FILIAL UNID. FABRIL (GOIANA)",{"$f":"Planilha1!I320","v":"CELETISTA"},{"$f":"Planilha1!J320","v":"40 HORAS SEMANAIS"},{"$f":"Planilha1!K320","v":"CONCURSO PÚBLICO"},{"$f":"Planilha1!L320","v":"2022-11-25"}]
[{"$f":"Planilha1!B321","v":303},{"$f":"Planilha1!C321","v":"RENATA MENDONCA DE MENEZES LYRA"},{"$f":"\"***\"&MID(Planilha1!D321,4,9)&\"**\"","v":"***.904.174-**"},"TÉCNICO IND. E DE GESTÃO CORP. - SEGURANÇA DO TRABALHO",null,"HEMOBRÁS - FILIAL UNID. FABRIL (GOIANA)",{"$f":"Planilha1!I321","v":"CELETISTA"},{"$f":"Planilha1!J321","v":"40 HORAS SEMANAIS"},{"$f":"Planilha1!K321","v":"CONCURSO PÚBLICO"},{"$f":"Planilha1!L321","v":"2014-12-05"}]
[{"$f":"Planilha1!B322","v":689},{"$f":"Planilha1!C322","v":"RENATA VITORIA DA SILVA SOBRAL"},{"$f":"\"***\"&MID(Planilha1!D322,4,9)&\"**\"","v":"***.077.234-**"},"ANALISTA IND. DE HEMOD. E BIOTEC. - FRACION. IND. PLASMA 2",null,"HEMOBRÁS - FILIAL UNID. FABRIL (GOIANA)",{"$f":"Planilha1!I322","v":"CELETISTA"},{"$f":"Planilha1!J322","v":"40 HORAS SEMANAIS"},{"$f":"Planilha1!K322","v":"CONCURSO PÚBLICO"},{"$f":"Planilha1!L322","v":"2023-07-24"}]
[{"$f":"Planilha1!B323","v":218},{"$f":"Planilha1!C323","v":"RENATO CESAR VIEIRA DE SOUSA"},{"$f":"\"***\"&MID(Planilha1!D323,4,9)&\"**\"","v":"***.629.874-**"},"ESPECIALISTA EM PHB - GARANTIA DA QUALIDADE",null,"HEMOBRÁS - FILIAL UNID. FABRIL (GOIANA)",{"$f":"Planilha1!I323","v":"CELETISTA"},{"$f":"Planilha1!J323","v":"40 HORAS SEMANAIS"},{"$f":"Planilha1!K323","v":"CONCURSO PÚBLICO"},{"$f":"Planilha1!L323","v":"2014-02-20"}]
[{"$f":"Planilha1!B324","v":651},{"$f":"Planilha1!C324","v":"RENATO DA SILVA SOUZA"},{"$f":"\"***\"&MID(Planilha1!D324,4,9)&\"**\"","v":"***.552.394-**"},"ANALISTA IND. DE HEMOD. E BIOTEC. - GARANTIA DA QUALIDADE 2",null,"HEMOBRÁS - FILIAL UNID. FABRIL (GOIANA)",{"$f":"Planilha1!I324","v":"CELETISTA"},{"$f":"Planilha1!J324","v":"40 HORAS SEMANAIS"},{"$f":"Planilha1!K324","v":"CONCURSO PÚBLICO"},{"$f":"Planilha1!L324","v":"2023-04-25"}]
[{"$f":"Planilha1!B325","v":436},{"$f":"Planilha1!C325","v":"RENATO DE ARAUJO FERREIRA"},{"$f":"\"***\"&MID(Planilha1!D325,4,9)&\"**\"","v":"***.438.738-**"},null,"ASSESSOR TÉCNICO ESPECIALIZADO","HEMOBRÁS - FILIAL UNID. ADM. (RECIFE)",{"$f":"Planilha1!I325","v":"CELETISTA"},{"$f":"Planilha1!J325","v":"40 HORAS SEMANAIS"},{"$f":"Planilha1!K325","v":"PORTARIA"},{"$f":"Planilha1!L325","v":"2017-08-03"}]
[{"$f":"Planilha1!B326","v":722},{"$f":"Planilha1!C326","v":"RICARDO ALVES DE BRITO"},{"$f":"\"***\"&MID(Planilha1!D326,4,9)&\"**\"","v":"***.743.274-**"},"ANALISTA ADM. DE ASSUNTOS CORP. - ORÇAMENTO E FINANÇAS",null,"HEMOBRÁS - FILIAL UNID. ADM. (RECIFE)",{"$f":"Planilha1!I326","v":"CELETISTA"},{"$f":"Planilha1!J326","v":"40 HORAS SEMANAIS"},{"$f":"Planilha1!K326","v":"CONCURSO PÚBLICO"},{"$f":"Planilha1!L326","v":"2024-01-10"}]
[{"$f":"Planilha1!B327","v":268},{"$f":"Planilha1!C327","v":"RICARDO GALINDO PAES DE LIRA"},{"$f":"\"***\"&MID(Planilha1!D327,4,9)&\"**\"","v":"***.693.294-**"},"ANALISTA IND. DE HEMOD. E BIOTEC. - GARANTIA DA QUALIDADE",null,"HEMOBRÁS - FILIAL UNID. FABRIL (GOIANA)",{"$f":"Planilha1!I327","v":"CELETISTA"},{"$f":"Planilha1!J327","v":"40 HORAS SEMANAIS"},{"$f":"Planilha1!K327","v":"CONCURSO PÚBLICO"},{"$f":"Planilha1!L327","v":"2014-07-14"}]
[{"$f":"Planilha1!B328","v":407},{"$f":"Planilha1!C328","v":"RICARDO NUNES RIBEIRO"},{"$f":"\"***\"&MID(Planilha1!D328,4,9)&\"**\"","v":"***.364.636-**"},"ANALISTA ADM. DE ASSUNTOS CORP. - LOGÍSTICA FARMACÊUTICA","CHEFE DE SERVIÇO DE PRODUTOS E INSUMOS FARMACÊUTICOS","HEMOBRÁS - FILIAL UNID. FABRIL (GOIANA)",{"$f":"Planilha1!I328","v":"CELETISTA"},{"$f":"Planilha1!J328","v":"40 HORAS SEMANAIS"},{"$f":"Planilha1!K328","v":"CONCURSO PÚBLICO"},{"$f":"Planilha1!L328","v":"2016-07-14"}]
[{"$f":"Planilha1!B329","v":96},{"$f":"Planilha1!C329","v":"ROBERTA FREIRE DE CARVALHO FEITOSA"},{"$f":"\"***\"&MID(Planilha1!D329,4,9)&\"**\"","v":"***.855.204-**"},"ANALISTA DE GES. CORP. - CONTADOR I",null,"HEMOBRÁS - FILIAL UNID. ADM. (RECIFE)",{"$f":"Planilha1!I329","v":"CELETISTA"},{"$f":"Planilha1!J329","v":"40 HORAS SEMANAIS"},{"$f":"Planilha1!K329","v":"CONCURSO PÚBLICO"},{"$f":"Planilha1!L329","v":"2010-12-27"}]
[{"$f":"Planilha1!B330","v":314},{"$f":"Planilha1!C330","v":"RODRIGO DE LIMA FERREIRA"},{"$f":"\"***\"&MID(Planilha1!D330,4,9)&\"**\"","v":"***.451.936-**"},"ASSISTENTE IND. E DE GESTÃO CORP - ASSISTENTE ADMINISTRATIVO",null,"HEMOBRÁS - FILIAL UNID. FABRIL (GOIANA)",{"$f":"Planilha1!I330","v":"CELETISTA"},{"$f":"Planilha1!J330","v":"40 HORAS SEMANAIS"},{"$f":"Planilha1!K330","v":"CONCURSO PÚBLICO"},{"$f":"Planilha1!L330","v":"2015-01-09"}]
[{"$f":"Planilha1!B331","v":356},{"$f":"Planilha1!C331","v":"RODRIGO NUNES DE MELO"},{"$f":"\"***\"&MID(Planilha1!D331,4,9)&\"**\"","v":"***.248.794-**"},"ANALISTA IND. DE HEMOD. E BIOTEC. - ENG. ELÉTRICA",null,"HEMOBRÁS - FILIAL UNID. FABRIL (GOIANA)",{"$f":"Planilha1!I331","v":"CELETISTA"},{"$f":"Planilha1!J331","v":"40 HORAS SEMANAIS"},{"$f":"Planilha1!K331","v":"CONCURSO PÚBLICO"},{"$f":"Planilha1!L331","v":"2015-06-16"}]
[{"$f":"Planilha1!B332","v":652},{"$f":"Planilha1!C332","v":"RODRIGO VINICIUS BRITO LIRA"},{"$f":"\"***\"&MID(Planilha1!D332,4,9)&\"**\"","v":"***.989.284-**"},"ANALISTA IND. DE HEMOD. E BIOTEC. - GARANTIA DA QUALIDADE 2",null,"HEMOBRÁS - FILIAL UNID. FABRIL (GOIANA)",{"$f":"Planilha1!I332","v":"CELETISTA"},{"$f":"Planilha1!J332","v":"40 HORAS SEMANAIS"},{"$f":"Planilha1!K332","v":"CONCURSO PÚBLICO"},{"$f":"Planilha1!L332","v":"2023-04-25"}]
[{"$f":"Planilha1!B333","v":52},{"$f":"Planilha1!C333","v":"RONALDO CARLOS OLIVEIRA"},{"$f":"\"***\"&MID(Planilha1!D333,4,9)&\"**\"","v":"***.888.449-**"},"ESPECIALISTA EM PHB - ENG. QUÍMICO - I",null,"HEMOBRÁS - FILIAL UNID. FABRIL (GOIANA)",{"$f":"Planilha1!I333","v":"CELETISTA"},{"$f":"Planilha1!J333","v":"40 HORAS SEMANAIS"},{"$f":"Planilha1!K333","v":"CONCURSO PÚBLICO"},{"$f":"Planilha1!L333","v":"2009-06-23"}]
[{"$f":"Planilha1!B334","v":567},{"$f":"Planilha1!C334","v":"RONALDO GONCALVES NOGUEIRA"},{"$f":"\"***\"&MID(Planilha1!D334,4,9)&\"**\"","v":"***.277.806-**"},"ANALISTA IND. DE HEMOD. E BIOTEC. - GARANTIA DA QUALIDADE 2","CHEFE DE SERVIÇO DE NORMAS E PROCEDIMENTOS","HEMOBRÁS - FILIAL UNID. FABRIL (GOIANA)",{"$f":"Planilha1!I334","v":"CELETISTA"},{"$f":"Planilha1!J334","v":"40 HORAS SEMANAIS"},{"$f":"Planilha1!K334","v":"CONCURSO PÚBLICO"},{"$f":"Planilha1!L334","v":"2022-09-20"}]
[{"$f":"Planilha1!B335","v":647},{"$f":"Planilha1!C335","v":"RONALDO LEITE MATIAS"},{"$f":"\"***\"&MID(Planilha1!D335,4,9)&\"**\"","v":"***.551.204-**"},"ANALISTA IND. DE HEMOD. E BIOTEC. - ENG. AUTOMAÇÃO E CONTROLE",null,"HEMOBRÁS - FILIAL UNID. FABRIL (GOIANA)",{"$f":"Planilha1!I335","v":"CELETISTA"},{"$f":"Planilha1!J335","v":"40 HORAS SEMANAIS"},{"$f":"Planilha1!K335","v":"CONCURSO PÚBLICO"},{"$f":"Planilha1!L335","v":"2023-04-25"}]
[{"$f":"Planilha1!B336","v":705},{"$f":"Planilha1!C336","v":"RONICLEY PINHEIRO MARTINS DE JESUS"},{"$f":"\"***\"&MID(Planilha1!D336,4,9)&\"**\"","v":"***.223.145-**"},"ANALISTA ADM. DE ASSUNTOS CORP. - COMPRAS NAC. E INTERNAC.",null,"HEMOBRÁS - FILIAL UNID. ADM. (RECIFE)",{"$f":"Planilha1!I336","v":"CELETISTA"},{"$f":"Planilha1!J336","v":"40 HORAS SEMANAIS"},{"$f":"Planilha1!K336","v":"CONCURSO PÚBLICO"},{"$f":"Planilha1!L336","v":"2023-09-11"}]
[{"$f":"Planilha1!B337","v":554},{"$f":"Planilha1!C337","v":"RONMILSON ALVES MARQUES"},{"$f":"\"***\"&MID(Planilha1!D337,4,9)&\"**\"","v":"***.170.484-**"},"ANALISTA IND. DE HEMOD. E BIOTEC. - CONTROLE QUALIDADE - 2",null,"HEMOBRÁS - FILIAL UNID. FABRIL (GOIANA)",{"$f":"Planilha1!I337","v":"CELETISTA"},{"$f":"Planilha1!J337","v":"40 HORAS SEMANAIS"},{"$f":"Planilha1!K337","v":"CONCURSO PÚBLICO"},{"$f":"Planilha1!L337","v":"2022-09-20"}]
[{"$f":"Planilha1!B338","v":688},{"$f":"Planilha1!C338","v":"ROSILANE SOARES PINTO DA SILVA"},{"$f":"\"***\"&MID(Planilha1!D338,4,9)&\"**\"","v":"***.972.484-**"},"ANALISTA IND. DE HEMOD. E BIOTEC. - FRACION. IND. PLASMA 2",null,"HEMOBRÁS - FILIAL UNID. FABRIL (GOIANA)",{"$f":"Planilha1!I338","v":"CELETISTA"},{"$f":"Planilha1!J338","v":"40 HORAS SEMANAIS"},{"$f":"Planilha1!K338","v":"CONCURSO PÚBLICO"},{"$f":"Planilha1!L338","v":"2023-07-24"}]
[{"$f":"Planilha1!B339","v":315},{"$f":"Planilha1!C339","v":"ROSSANA MARIA CARVALHO BRAGA"},{"$f":"\"***\"&MID(Planilha1!D339,4,9)&\"**\"","v":"***.730.304-**"},"ANALISTA IND. DE HEMOD. E BIOTEC. - ARMAZ E DISTRIB DE MEDIC",null,"HEMOBRÁS - FILIAL UNID. FABRIL (GOIANA)",{"$f":"Planilha1!I339","v":"CELETISTA"},{"$f":"Planilha1!J339","v":"40 HORAS SEMANAIS"},{"$f":"Planilha1!K339","v":"CONCURSO PÚBLICO"},{"$f":"Planilha1!L339","v":"2015-01-09"}]
[{"$f":"Planilha1!B340","v":718},{"$f":"Planilha1!C340","v":"RUBENS ZAQUEU OLIVEIRA DOS SANTOS"},{"$f":"\"***\"&MID(Planilha1!D340,4,9)&\"**\"","v":"***.789.274-**"},"ASSISTENTE IND. E DE GESTÃO CORP - ASSISTENTE ADMINISTRATIVO",null,"HEMOBRÁS - FILIAL UNID. ADM. (RECIFE)",{"$f":"Planilha1!I340","v":"CELETISTA"},{"$f":"Planilha1!J340","v":"40 HORAS SEMANAIS"},{"$f":"Planilha1!K340","v":"CONCURSO PÚBLICO"},{"$f":"Planilha1!L340","v":"2023-10-09"}]
[{"$f":"Planilha1!B341","v":235},{"$f":"Planilha1!C341","v":"SABRINA ANDRADE DE ALCANTARA"},{"$f":"\"***\"&MID(Planilha1!D341,4,9)&\"**\"","v":"***.691.104-**"},"ASSISTENTE IND. E DE GESTÃO CORP - ASSISTENTE ADMINISTRATIVO",null,"HEMOBRÁS - FILIAL UNID. ADM. (RECIFE)",{"$f":"Planilha1!I341","v":"CELETISTA"},{"$f":"Planilha1!J341","v":"40 HORAS SEMANAIS"},{"$f":"Planilha1!K341","v":"CONCURSO PÚBLICO"},{"$f":"Planilha1!L341","v":"2014-02-21"}]
[{"$f":"Planilha1!B342","v":220},{"$f":"Planilha1!C342","v":"SABRINA POLETTO"},{"$f":"\"***\"&MID(Planilha1!D342,4,9)&\"**\"","v":"***.536.059-**"},"ESPECIALISTA EM PHB - FRAC. IND. PLASMA 1 - I","CHEFE DE SERVIÇO DE ENVASE E EMBALAGEM","HEMOBRÁS - FILIAL UNID. FABRIL (GOIANA)",{"$f":"Planilha1!I342","v":"CELETISTA"},{"$f":"Planilha1!J342","v":"40 HORAS SEMANAIS"},{"$f":"Planilha1!K342","v":"CONCURSO PÚBLICO"},{"$f":"Planilha1!L342","v":"2014-02-20"}]
[{"$f":"Planilha1!B343","v":604},{"$f":"Planilha1!C343","v":"SANDRO DE SOUSA LEAL"},{"$f":"\"***\"&MID(Planilha1!D343,4,9)&\"**\"","v":"***.943.034-**"},"ANALISTA IND. DE HEMOD. E BIOTEC. - FRACION. IND. PLASMA 2",null,"HEMOBRÁS - FILIAL UNID. FABRIL (GOIANA)",{"$f":"Planilha1!I343","v":"CELETISTA"},{"$f":"Planilha1!J343","v":"40 HORAS SEMANAIS"},{"$f":"Planilha1!K343","v":"CONCURSO PÚBLICO"},{"$f":"Planilha1!L343","v":"2022-11-25"}]
[{"$f":"Planilha1!B344","v":571},{"$f":"Planilha1!C344","v":"SARAH CHRISTINE CAVALCANTI XIMENES"},{"$f":"\"***\"&MID(Planilha1!D344,4,9)&\"**\"","v":"***.389.084-**"},"ANALISTA IND. DE HEMOD. E BIOTEC. - GARANTIA DA QUALIDADE 2",null,"HEMOBRÁS - FILIAL UNID. FABRIL (GOIANA)",{"$f":"Planilha1!I344","v":"CELETISTA"},{"$f":"Planilha1!J344","v":"40 HORAS SEMANAIS"},{"$f":"Planilha1!K344","v":"CONCURSO PÚBLICO"},{"$f":"Planilha1!L344","v":"2022-09-20"}]
[{"$f":"Planilha1!B345","v":106},{"$f":"Planilha1!C345","v":"SAULO BANDEIRA DURVAL"},{"$f":"\"***\"&MID(Planilha1!D345,4,9)&\"**\"","v":"***.083.234-**"},"ASSISTENTE IND. E DE GESTÃO CORP - TÉC. EM CONTABILIDADE I","GERENTE DE LICITAÇÕES E CONTRATAÇÕES","HEMOBRÁS - FILIAL UNID. ADM. (RECIFE)",{"$f":"Planilha1!I345","v":"CELETISTA"},{"$f":"Planilha1!J345","v":"40 HORAS SEMANAIS"},{"$f":"Planilha1!K345","v":"CONCURSO PÚBLICO"},{"$f":"Planilha1!L345","v":"2011-03-02"}]
[{"$f":"Planilha1!B346","v":605},{"$f":"Planilha1!C346","v":"SAULO HENRIQUE SILVA"},{"$f":"\"***\"&MID(Planilha1!D346,4,9)&\"**\"","v":"***.848.484-**"},"ANALISTA IND. DE HEMOD. E BIOTEC. - FRACION. IND. PLASMA 2",null,"HEMOBRÁS - FILIAL UNID. FABRIL (GOIANA)",{"$f":"Planilha1!I346","v":"CELETISTA"},{"$f":"Planilha1!J346","v":"40 HORAS SEMANAIS"},{"$f":"Planilha1!K346","v":"CONCURSO PÚBLICO"},{"$f":"Planilha1!L346","v":"2022-11-25"}]
[{"$f":"Planilha1!B347","v":608},{"$f":"Planilha1!C347","v":"SERGIO CORREIA DA CONCEICAO"},{"$f":"\"***\"&MID(Planilha1!D347,4,9)&\"**\"","v":"***.589.724-**"},"TÉCNICO IND. E DE GESTÃO CORP. - TRIAGEM DO PLASMA",null,"HEMOBRÁS - FILIAL UNID. FABRIL (GOIANA)",{"$f":"Planilha1!I347","v":"CELETISTA"},{"$f":"Planilha1!J347","v":"40 HORAS SEMANAIS"},{"$f":"Planilha1!K347","v":"CONCURSO PÚBLICO"},{"$f":"Planilha1!L347","v":"2023-01-25"}]
[{"$f":"Planilha1!B348","v":394},{"$f":"Planilha1!C348","v":"SEVERINA JAKELINE PEDROSA DE ARAUJO ALBUQUERQUE"},{"$f":"\"***\"&MID(Planilha1!D348,4,9)&\"**\"","v":"***.917.174-**"},"ANALISTA ADM. DE ASSUNTOS CORP. - ANALISTA JURÍDICO",null,"HEMOBRÁS - FILIAL UNID. ADM. (RECIFE)",{"$f":"Planilha1!I348","v":"CELETISTA"},{"$f":"Planilha1!J348","v":"40 HORAS SEMANAIS"},{"$f":"Planilha1!K348","v":"CONCURSO PÚBLICO"},{"$f":"Planilha1!L348","v":"2016-03-02"}]
[{"$f":"Planilha1!B349","v":616},{"$f":"Planilha1!C349","v":"SEVERINO GRANGEIRO JUNIOR"},{"$f":"\"***\"&MID(Planilha1!D349,4,9)&\"**\"","v":"***.956.513-**"},"ANALISTA IND. DE HEMOD. E BIOTEC. - CONTROLE QUALIDADE - 2",null,"HEMOBRÁS - FILIAL UNID. FABRIL (GOIANA)",{"$f":"Planilha1!I349","v":"CELETISTA"},{"$f":"Planilha1!J349","v":"40 HORAS SEMANAIS"},{"$f":"Planilha1!K349","v":"CONCURSO PÚBLICO"},{"$f":"Planilha1!L349","v":"2023-01-25"}]
[{"$f":"Planilha1!B350","v":737},{"$f":"Planilha1!C350","v":"SEVERINO JOSE DE BARROS JUNIOR"},{"$f":"\"***\"&MID(Planilha1!D350,4,9)&\"**\"","v":"***.956.724-**"},"ANALISTA ADM. DE ASSUNTOS CORP. - TECNOLOGIA DA INFORMAÇÃO",null,"HEMOBRÁS - FILIAL UNID. FABRIL (GOIANA)",{"$f":"Planilha1!I350","v":"CELETISTA"},{"$f":"Planilha1!J350","v":"40 HORAS SEMANAIS"},{"$f":"Planilha1!K350","v":"CONCURSO PÚBLICO"},{"$f":"Planilha1!L350","v":"2024-03-18"}]
[{"$f":"Planilha1!B351","v":588},{"$f":"Planilha1!C351","v":"SHEILA CRISTINA AZEVEDO DA SILVA CHAVES"},{"$f":"\"***\"&MID(Planilha1!D351,4,9)&\"**\"","v":"***.081.344-**"},"ANALISTA ADM. DE ASSUNTOS CORP. - ASSESSORIA ADMINISTRATIVA",null,"HEMOBRÁS - FILIAL UNID. ADM. (RECIFE)",{"$f":"Planilha1!I351","v":"CELETISTA"},{"$f":"Planilha1!J351","v":"40 HORAS SEMANAIS"},{"$f":"Planilha1!K351","v":"CONCURSO PÚBLICO"},{"$f":"Planilha1!L351","v":"2023-01-25"}]
[{"$f":"Planilha1!B352","v":386},{"$f":"Planilha1!C352","v":"SIMONE CRISTINA FEITOSA BRITO"},{"$f":"\"***\"&MID(Planilha1!D352,4,9)&\"**\"","v":"***.771.594-**"},null,"SECRETÁRIA EXECUTIVA","HEMOBRÁS - FILIAL UNID. ADM. (RECIFE)",{"$f":"Planilha1!I352","v":"CELETISTA"},{"$f":"Planilha1!J352","v":"40 HORAS SEMANAIS"},{"$f":"Planilha1!K352","v":"PORTARIA"},{"$f":"Planilha1!L352","v":"2016-02-03"}]
[{"$f":"Planilha1!B353","v":736},{"$f":"Planilha1!C353","v":"SIMONE MARQUES COSTA"},{"$f":"\"***\"&MID(Planilha1!D353,4,9)&\"**\"","v":"***.010.604-**"},"ANALISTA ADM. DE ASSUNTOS CORP. - ADMINISTRAÇÃO DE PESSOAL",null,"HEMOBRÁS - FILIAL UNID. ADM. (RECIFE)",{"$f":"Planilha1!I353","v":"CELETISTA"},{"$f":"Planilha1!J353","v":"40 HORAS SEMANAIS"},{"$f":"Planilha1!K353","v":"CONCURSO PÚBLICO"},{"$f":"Planilha1!L353","v":"2024-03-18"}]
[{"$f":"Planilha1!B354","v":506},{"$f":"Planilha1!C354","v":"SUELENE MAMEDE DE OLIVEIRA"},{"$f":"\"***\"&MID(Planilha1!D354,4,9)&\"**\"","v":"***.758.524-**"},"ESPECIALISTA EM PHB - CONTROLE QUALIDADE - I","ASSESSORA TECNICA ESPECIALIZADA","HEMOBRÁS - FILIAL UNID. ADM. (RECIFE)",{"$f":"Planilha1!I354","v":"CELETISTA"},{"$f":"Planilha1!J354","v":"40 HORAS SEMANAIS"},{"$f":"Planilha1!K354","v":"CONCURSO PÚBLICO"},{"$f":"Planilha1!L354","v":"2008-01-14"}]
[{"$f":"Planilha1!B355","v":219},{"$f":"Planilha1!C355","v":"SUELLEN DE OLIVEIRA SANTOS"},{"$f":"\"***\"&MID(Planilha1!D355,4,9)&\"**\"","v":"***.663.394-**"},"ESPECIALISTA EM PHB - GARANTIA DA QUALIDADE - I",null,"HEMOBRÁS - FILIAL UNID. FABRIL (GOIANA)",{"$f":"Planilha1!I355","v":"CELETISTA"},{"$f":"Planilha1!J355","v":"40 HORAS SEMANAIS"},{"$f":"Planilha1!K355","v":"CONCURSO PÚBLICO"},{"$f":"Planilha1!L355","v":"2014-02-20"}]
[{"$f":"Planilha1!B356","v":606},{"$f":"Planilha1!C356","v":"SURYA BUSS"},{"$f":"\"***\"&MID(Planilha1!D356,4,9)&\"**\"","v":"***.247.899-**"},"ANALISTA IND. DE HEMOD. E BIOTEC. - FRACION. IND. PLASMA 1",null,"HEMOBRÁS - FILIAL UNID. FABRIL (GOIANA)",{"$f":"Planilha1!I356","v":"CELETISTA"},{"$f":"Planilha1!J356","v":"40 HORAS SEMANAIS"},{"$f":"Planilha1!K356","v":"CONCURSO PÚBLICO"},{"$f":"Planilha1!L356","v":"2022-11-28"}]
[{"$f":"Planilha1!B357","v":654},{"$f":"Planilha1!C357","v":"SUZANNY SANTOS SEAL"},{"$f":"\"***\"&MID(Planilha1!D357,4,9)&\"**\"","v":"***.493.024-**"},"ANALISTA ADM. DE ASSUNTOS CORP. - COMPRAS NAC. E INTERNAC.",null,"HEMOBRÁS - FILIAL UNID. ADM. (RECIFE)",{"$f":"Planilha1!I357","v":"CELETISTA"},{"$f":"Planilha1!J357","v":"40 HORAS SEMANAIS"},{"$f":"Planilha1!K357","v":"CONCURSO PÚBLICO"},{"$f":"Planilha1!L357","v":"2023-07-24"}]
[{"$f":"Planilha1!B358","v":670},{"$f":"Planilha1!C358","v":"SYMON JONATAN SANTIAGO PAULINO"},{"$f":"\"***\"&MID(Planilha1!D358,4,9)&\"**\"","v":"***.452.124-**"},"ANALISTA IND. DE HEMOD. E BIOTEC. - FRACION. IND. PLASMA 2",null,"HEMOBRÁS - FILIAL UNID. FABRIL (GOIANA)",{"$f":"Planilha1!I358","v":"CELETISTA"},{"$f":"Planilha1!J358","v":"40 HORAS SEMANAIS"},{"$f":"Planilha1!K358","v":"CONCURSO PÚBLICO"},{"$f":"Planilha1!L358","v":"2023-07-24"}]
[{"$f":"Planilha1!B359","v":221},{"$f":"Planilha1!C359","v":"TALITA GOMES CALACA MENEZES"},{"$f":"\"***\"&MID(Planilha1!D359,4,9)&\"**\"","v":"***.694.774-**"},"ESPECIALISTA EM PHB - FRAC. IND. PLASMA 1 - I","ASSESSORA DE CONFORMIDADE E GERENCIAMENTO DE RISCOS","HEMOBRÁS - FILIAL UNID. ADM. (RECIFE)",{"$f":"Planilha1!I359","v":"CELETISTA"},{"$f":"Planilha1!J359","v":"40 HORAS SEMANAIS"},{"$f":"Planilha1!K359","v":"CONCURSO PÚBLICO"},{"$f":"Planilha1!L359","v":"2014-02-20"}]
[{"$f":"Planilha1!B360","v":646},{"$f":"Planilha1!C360","v":"TAMIRES GONCALVES DE JESUS"},{"$f":"\"***\"&MID(Planilha1!D360,4,9)&\"**\"","v":"***.825.675-**"},"ANALISTA IND. DE HEMOD. E BIOTEC. - CONTROLE QUALIDADE - 2",null,"HEMOBRÁS - FILIAL UNID. FABRIL (GOIANA)",{"$f":"Planilha1!I360","v":"CELETISTA"},{"$f":"Planilha1!J360","v":"40 HORAS SEMANAIS"},{"$f":"Planilha1!K360","v":"CONCURSO PÚBLICO"},{"$f":"Planilha1!L360","v":"2023-04-25"}]
[{"$f":"Planilha1!B361","v":531},{"$f":"Planilha1!C361","v":"TARCISIO TARCIO CORREA BONIFACIO"},{"$f":"\"***\"&MID(Planilha1!D361,4,9)&\"**\"","v":"***.548.554-**"},"ANALISTA IND. DE HEMOD. E BIOTEC. - FRACION. IND. PLASMA 1",null,"HEMOBRÁS - FILIAL UNID. FABRIL (GOIANA)",{"$f":"Planilha1!I361","v":"CELETISTA"},{"$f":"Planilha1!J361","v":"40 HORAS SEMANAIS"},{"$f":"Planilha1!K361","v":"CONCURSO PÚBLICO"},{"$f":"Planilha1!L361","v":"2022-04-13"}]
[{"$f":"Planilha1!B362","v":475},{"$f":"Planilha1!C362","v":"TATIANE CIBELE DE SOUZA GOMES"},{"$f":"\"***\"&MID(Planilha1!D362,4,9)&\"**\"","v":"***.354.324-**"},"ANALISTA IND. DE HEMOD. E BIOTEC. - CONTROLE QUALIDADE - 1",null,"HEMOBRÁS - FILIAL UNID. FABRIL (GOIANA)",{"$f":"Planilha1!I362","v":"CELETISTA"},{"$f":"Planilha1!J362","v":"40 HORAS SEMANAIS"},{"$f":"Planilha1!K362","v":"CONCURSO PÚBLICO"},{"$f":"Planilha1!L362","v":"2019-03-01"}]
[{"$f":"Planilha1!B363","v":390},{"$f":"Planilha1!C363","v":"TEREZA MANUELA DOS SANTOS PAES BARRETO"},{"$f":"\"***\"&MID(Planilha1!D363,4,9)&\"**\"","v":"***.430.884-**"},"ANALISTA ADM. DE ASSUNTOS CORP. - AUDITORIA INTERNA",null,"HEMOBRÁS - FILIAL UNID. ADM. (RECIFE)",{"$f":"Planilha1!I363","v":"CELETISTA"},{"$f":"Planilha1!J363","v":"40 HORAS SEMANAIS"},{"$f":"Planilha1!K363","v":"CONCURSO PÚBLICO"},{"$f":"Planilha1!L363","v":"2016-02-16"}]
[{"$f":"Planilha1!B364","v":635},{"$f":"Planilha1!C364","v":"THACIANE DA CUNHA SOARES SILVA"},{"$f":"\"***\"&MID(Planilha1!D364,4,9)&\"**\"","v":"***.873.934-**"},"ANALISTA IND. DE HEMOD. E BIOTEC. - GARANTIA DA QUALIDADE 2",null,"HEMOBRÁS - FILIAL UNID. FABRIL (GOIANA)",{"$f":"Planilha1!I364","v":"CELETISTA"},{"$f":"Planilha1!J364","v":"40 HORAS SEMANAIS"},{"$f":"Planilha1!K364","v":"CONCURSO PÚBLICO"},{"$f":"Planilha1!L364","v":"2023-03-13"}]
[{"$f":"Planilha1!B365","v":572},{"$f":"Planilha1!C365","v":"THALITA PEDON DE ARAUJO CARDOSO"},{"$f":"\"***\"&MID(Planilha1!D365,4,9)&\"**\"","v":"***.650.084-**"},"ANALISTA IND. DE HEMOD. E BIOTEC. - GARANTIA DA QUALIDADE 2",null,"HEMOBRÁS - FILIAL UNID. FABRIL (GOIANA)",{"$f":"Planilha1!I365","v":"CELETISTA"},{"$f":"Planilha1!J365","v":"40 HORAS SEMANAIS"},{"$f":"Planilha1!K365","v":"CONCURSO PÚBLICO"},{"$f":"Planilha1!L365","v":"2022-09-20"}]
[{"$f":"Planilha1!B366","v":636},{"$f":"Planilha1!C366","v":"THANIA MAURA RODRIGUES BEZERRA"},{"$f":"\"***\"&MID(Planilha1!D366,4,9)&\"**\"","v":"***.152.783-**"},"ANALISTA IND. DE HEMOD. E BIOTEC. - GARANTIA DA QUALIDADE 2",null,"HEMOBRÁS - FILIAL UNID. FABRIL (GOIANA)",{"$f":"Planilha1!I366","v":"CELETISTA"},{"$f":"Planilha1!J366","v":"40 HORAS SEMANAIS"},{"$f":"Planilha1!K366","v":"CONCURSO PÚBLICO"},{"$f":"Planilha1!L366","v":"2023-02-24"}]
[{"$f":"Planilha1!B367","v":480},{"$f":"Planilha1!C367","v":"THAYSE NAYARA BEZERRA DA CRUZ"},{"$f":"\"***\"&MID(Planilha1!D367,4,9)&\"**\"","v":"***.584.844-**"},"ANALISTA ADM. DE ASSUNTOS CORP. - LOGÍSTICA FARMACÊUTICA",null,"HEMOBRÁS - FILIAL UNID. ADM. (RECIFE)",{"$f":"Planilha1!I367","v":"CELETISTA"},{"$f":"Planilha1!J367","v":"40 HORAS SEMANAIS"},{"$f":"Planilha1!K367","v":"CONCURSO PÚBLICO"},{"$f":"Planilha1!L367","v":"2019-05-07"}]
[{"$f":"Planilha1!B368","v":716},{"$f":"Planilha1!C368","v":"THIAGO HENRIQUE DE FARIAS BELCHIOR"},{"$f":"\"***\"&MID(Planilha1!D368,4,9)&\"**\"","v":"***.948.684-**"},"ASSISTENTE IND. E DE GESTÃO CORP - ASSISTENTE DE INFORMÁTICA",null,"HEMOBRÁS - FILIAL UNID. FABRIL (GOIANA)",{"$f":"Planilha1!I368","v":"CELETISTA"},{"$f":"Planilha1!J368","v":"40 HORAS SEMANAIS"},{"$f":"Planilha1!K368","v":"CONCURSO PÚBLICO"},{"$f":"Planilha1!L368","v":"2023-10-09"}]
[{"$f":"Planilha1!B369","v":680},{"$f":"Planilha1!C369","v":"THIALE BORGES SILVA DOS SANTOS"},{"$f":"\"***\"&MID(Planilha1!D369,4,9)&\"**\"","v":"***.663.835-**"},"ANALISTA IND. DE HEMOD. E BIOTEC. - FRACION. IND. PLASMA 1",null,"HEMOBRÁS - FILIAL UNID. FABRIL (GOIANA)",{"$f":"Planilha1!I369","v":"CELETISTA"},{"$f":"Planilha1!J369","v":"40 HORAS SEMANAIS"},{"$f":"Planilha1!K369","v":"CONCURSO PÚBLICO"},{"$f":"Planilha1!L369","v":"2023-07-24"}]
[{"$f":"Planilha1!B370","v":540},{"$f":"Planilha1!C370","v":"TIAGO BEZERRA LIMA"},{"$f":"\"***\"&MID(Planilha1!D370,4,9)&\"**\"","v":"***.912.774-**"},"ANALISTA ADM. DE ASSUNTOS CORP. - CONTRATO",null,"HEMOBRÁS - FILIAL UNID. FABRIL (GOIANA)",{"$f":"Planilha1!I370","v":"CELETISTA"},{"$f":"Planilha1!J370","v":"40 HORAS SEMANAIS"},{"$f":"Planilha1!K370","v":"CONCURSO PÚBLICO"},{"$f":"Planilha1!L370","v":"2022-09-20"}]
[{"$f":"Planilha1!B371","v":319},{"$f":"Planilha1!C371","v":"TIAGO CAMPOS RODRIGUES DE SOUZA"},{"$f":"\"***\"&MID(Planilha1!D371,4,9)&\"**\"","v":"***.746.004-**"},"ANALISTA ADM. DE ASSUNTOS CORP. - ANALISTA JURÍDICO","ASSESSOR JURÍDICO","HEMOBRÁS - FILIAL UNID. ADM. (RECIFE)",{"$f":"Planilha1!I371","v":"CELETISTA"},{"$f":"Planilha1!J371","v":"40 HORAS SEMANAIS"},{"$f":"Planilha1!K371","v":"CONCURSO PÚBLICO"},{"$f":"Planilha1!L371","v":"2015-03-02"}]
[{"$f":"Planilha1!B372","v":617},{"$f":"Planilha1!C372","v":"VANESSA BALDEZ BRUM"},{"$f":"\"***\"&MID(Planilha1!D372,4,9)&\"**\"","v":"***.614.177-**"},"ANALISTA IND. DE HEMOD. E BIOTEC. - CONTROLE QUALIDADE - 2",null,"HEMOBRÁS - FILIAL UNID. FABRIL (GOIANA)",{"$f":"Planilha1!I372","v":"CELETISTA"},{"$f":"Planilha1!J372","v":"40 HORAS SEMANAIS"},{"$f":"Planilha1!K372","v":"CONCURSO PÚBLICO"},{"$f":"Planilha1!L372","v":"2023-02-24"}]
[{"$f":"Planilha1!B373","v":316},{"$f":"Planilha1!C373","v":"VANESSA BARBOSA TELES"},{"$f":"\"***\"&MID(Planilha1!D373,4,9)&\"**\"","v":"***.057.605-**"},"ASSISTENTE IND. E DE GESTÃO CORP - ASSISTENTE ADMINISTRATIVO",null,"HEMOBRÁS - FILIAL UNID. ADM. (RECIFE)",{"$f":"Planilha1!I373","v":"CELETISTA"},{"$f":"Planilha1!J373","v":"40 HORAS SEMANAIS"},{"$f":"Planilha1!K373","v":"CONCURSO PÚBLICO"},{"$f":"Planilha1!L373","v":"2015-01-09"}]
[{"$f":"Planilha1!B374","v":284},{"$f":"Planilha1!C374","v":"VANESSA SILVA DE OLIVEIRA GOMES"},{"$f":"\"***\"&MID(Planilha1!D374,4,9)&\"**\"","v":"***.135.844-**"},"ANALISTA IND. DE HEMOD. E BIOTEC. - FRACION. IND. PLASMA 1",null,"HEMOBRÁS - FILIAL UNID. FABRIL (GOIANA)",{"$f":"Planilha1!I374","v":"CELETISTA"},{"$f":"Planilha1!J374","v":"40 HORAS SEMANAIS"},{"$f":"Planilha1!K374","v":"CONCURSO PÚBLICO"},{"$f":"Planilha1!L374","v":"2014-08-04"}]
[{"$f":"Planilha1!B375","v":55},{"$f":"Planilha1!C375","v":"VICENTE ANTONIO DAS NEVES NETO"},{"$f":"\"***\"&MID(Planilha1!D375,4,9)&\"**\"","v":"***.551.454-**"},"TÉCNICO IND. E DE GESTÃO CORPORATIVA",null,"HEMOBRÁS - FILIAL UNID. ADM. (RECIFE)",{"$f":"Planilha1!I375","v":"CELETISTA"},{"$f":"Planilha1!J375","v":"40 HORAS SEMANAIS"},{"$f":"Planilha1!K375","v":"CONCURSO PÚBLICO"},{"$f":"Planilha1!L375","v":"2009-10-01"}]
[{"$f":"Planilha1!B376","v":723},{"$f":"Planilha1!C376","v":"VICENTE JOSE ALVES BACELAR"},{"$f":"\"***\"&MID(Planilha1!D376,4,9)&\"**\"","v":"***.436.804-**"},"ANALISTA ADM. DE ASSUNTOS CORP. - TECNOLOGIA DA INFORMAÇÃO",null,"HEMOBRÁS - FILIAL UNID. FABRIL (GOIANA)",{"$f":"Planilha1!I376","v":"CELETISTA"},{"$f":"Planilha1!J376","v":"40 HORAS SEMANAIS"},{"$f":"Planilha1!K376","v":"CONCURSO PÚBLICO"},{"$f":"Planilha1!L376","v":"2024-01-10"}]
[{"$f":"Planilha1!B377","v":665},{"$f":"Planilha1!C377","v":"VICTOR HUGO CAVALCANTI FERREIRA SILVA"},{"$f":"\"***\"&MID(Planilha1!D377,4,9)&\"**\"","v":"***.295.384-**"},"ANALISTA IND. DE HEMOD. E BIOTEC. - FRACION. IND. PLASMA 1",null,"HEMOBRÁS - FILIAL UNID. FABRIL (GOIANA)",{"$f":"Planilha1!I377","v":"CELETISTA"},{"$f":"Planilha1!J377","v":"40 HORAS SEMANAIS"},{"$f":"Planilha1!K377","v":"CONCURSO PÚBLICO"},{"$f":"Planilha1!L377","v":"2023-07-24"}]
[{"$f":"Planilha1!B378","v":546},{"$f":"Planilha1!C378","v":"VINICIUS FURTADO PONTES"},{"$f":"\"***\"&MID(Planilha1!D378,4,9)&\"**\"","v":"***.552.183-**"},"ANALISTA ADM. DE ASSUNTOS CORP. - LOGÍSTICA FARMACÊUTICA 1",null,"HEMOBRÁS - FILIAL UNID. FABRIL (GOIANA)",{"$f":"Planilha1!I378","v":"CELETISTA"},{"$f":"Planilha1!J378","v":"40 HORAS SEMANAIS"},{"$f":"Planilha1!K378","v":"CONCURSO PÚBLICO"},{"$f":"Planilha1!L378","v":"2022-09-20"}]
[{"$f":"Planilha1!B379","v":548},{"$f":"Planilha1!C379","v":"VITOR BUARQUE VALENCA"},{"$f":"\"***\"&MID(Planilha1!D379,4,9)&\"**\"","v":"***.154.914-**"},"ANALISTA ADM. DE ASSUNTOS CORP. - LOGÍSTICA FARMACÊUTICA 2",null,"HEMOBRÁS - FILIAL UNID. ADM. (RECIFE)",{"$f":"Planilha1!I379","v":"CELETISTA"},{"$f":"Planilha1!J379","v":"40 HORAS SEMANAIS"},{"$f":"Planilha1!K379","v":"CONCURSO PÚBLICO"},{"$f":"Planilha1!L379","v":"2022-09-20"}]
[{"$f":"Planilha1!B380","v":240},{"$f":"Planilha1!C380","v":"VIVIANE JUDITE SANTOS DA SILVA"},{"$f":"\"***\"&MID(Planilha1!D380,4,9)&\"**\"","v":"***.689.634-**"},"TÉCNICO IND. E DE GESTÃO CORP. - TRIAGEM DO PLASMA",null,"HEMOBRÁS - FILIAL UNID. FABRIL (GOIANA)",{"$f":"Planilha1!I380","v":"CELETISTA"},{"$f":"Planilha1!J380","v":"40 HORAS SEMANAIS"},{"$f":"Planilha1!K380","v":"CONCURSO PÚBLICO"},{"$f":"Planilha1!L380","v":"2014-03-24"}]
[{"$f":"Planilha1!B381","v":711},{"$f":"Planilha1!C381","v":"WEDSON LEANDRO LIMA DOS SANTOS"},{"$f":"\"***\"&MID(Planilha1!D381,4,9)&\"**\"","v":"***.910.544-**"},"APRENDIZ EM ASSISTENTE ADMINISTRATIVO",null,"HEMOBRÁS - FILIAL UNID. ADM. (RECIFE)",{"$f":"Planilha1!I381","v":"CELETISTA"},{"$f":"Planilha1!J381","v":"20 HORAS SEMANAIS"},{"$f":"Planilha1!K381","v":"SELEÇÃO"},{"$f":"Planilha1!L381","v":"2023-09-11"}]
[{"$f":"Planilha1!B382","v":613},{"$f":"Planilha1!C382","v":"WILLIAMIS DO NASCIMENTO"},{"$f":"\"***\"&MID(Planilha1!D382,4,9)&\"**\"","v":"***.534.604-**"},"ANALISTA IND. DE HEMOD. E BIOTEC. - CONTROLE QUALIDADE - 1",null,"HEMOBRÁS - FILIAL UNID. FABRIL (GOIANA)",{"$f":"Planilha1!I382","v":"CELETISTA"},{"$f":"Planilha1!J382","v":"40 HORAS SEMANAIS"},{"$f":"Planilha1!K382","v":"CONCURSO PÚBLICO"},{"$f":"Planilha1!L382","v":"2023-01-25"}]

{"sheet":"Planilha1","index":1,"n_rows":382,"n_cols":13,"rows_kept":382,"cut":false,"hidden":true,"merged":[]}
[null,"NÚMERO DE IDENTIFICAÇÃO FUNCIONAL","NOME COMPLETO","CPF","CARGO","FUNÇÃO","LOTAÇÃO",null,"REGIME JURÍDICO","JORNADA DE TRABALHO","ATO DE ADMISSÃO","DATA DE ADMISSÃO","ÓRGÃO DE ORIGEM"]
[null,741,"ADELAIDE MARIA CALDAS CABRAL","459.235.824-49","Chefe de Gabinete","Chefe de Gabinete","Hemobrás Filial Unid. Adm. Recife","Requisitado","REGIME PRÓPRIO","NÃO SE APLICA","PORTARIA","2024-03-22","FUNDO MUNICIPAL DE SAUDE DO PAULISTA"]
[null,224,"ADINAEL LAURINDO DE SOUZA","054.989.144-74","Técnico Ind. e de Gestão Corp. - Refrigeração",null,"Hemobrás Filial Goiana Unid. Fabril","EP","CELETISTA","40 HORAS SEMANAIS","CONCURSO PÚBLICO","2014-02-21"]
[null,355,"ADRIANO MARTINS PEREIRA","069.611.456-98","Analista Adm. de Assuntos Corp. - Logística Farmacêutica",null,"Hemobrás Filial Unid. Adm. Recife","EP","CELETISTA","40 HORAS SEMANAIS","CONCURSO PÚBLICO","2015-06-16"]
[null,287,"AGEU BARBOSA DE SOUSA","012.285.904-94","Técnico Ind. e de Gestão Corp. - Triagem do Plasma",null,"Hemobrás Filial Goiana Unid. Fabril","EP","CELETISTA","40 HORAS SEMANAIS","CONCURSO PÚBLICO","2014-09-01"]
[null,545,"ALANA LAIS DOS SANTOS LIMA","720.291.451-49","Analista Adm. de Assuntos Corp. - Jornalismo",null,"Hemobrás Filial Unid. Adm. Recife","EP","CELETISTA","40 HORAS SEMANAIS","CONCURSO PÚBLICO","2022-09-20"]
[null,568,"ALBERT ROCHA DE OLIVEIRA","070.391.204-61","Analista Ind. de Hemod. e Biotec. - Garantia da Qualidade 2",null,"Hemobrás Filial Goiana Unid. Fabril","EP","CELETISTA","40 HORAS SEMANAIS","CONCURSO PÚBLICO","2022-09-20"]
[null,726,"ALDENOR SILVA DOS SANTOS","060.299.915-40","Analista Adm. de Assuntos Corp. - Desenvolvimento de Pessoas",null,"Hemobrás Filial Goiana Unid. Fabril","EP","CELETISTA","40 HORAS SEMANAIS","CONCURSO PÚBLICO","2024-01-10"]
[null,145,"ALEKSANDER CALONGA DE OLIVEIRA","083.413.827-17","Analista Ind. de Hemod. e Biotec. - Fracion. Ind. Plasma 1",null,"Hemobrás Filial Goiana Unid. Fabril","EP","CELETISTA","40 HORAS SEMANAIS","CONCURSO PÚBLICO","2011-04-06"]
[null,727,"ALENE DE OLIVEIRA QUADROS","877.911.102-53","Analista Ind. de Hemod. e Biotec. - Plasma e Hemocomponentes",null,"Hemobrás Filial Unid. Adm. Recife","EP","CELETISTA","40 HORAS SEMANAIS","CONCURSO PÚBLICO","2024-01-10"]
[null,698,"ALESSANDRA PEREIRA DA SILVA","931.274.132-20","Analista Ind. de Hemod. e Biotec. - Fracion. Ind. Plasma 1",null,"Hemobrás Filial Goiana Unid. Fabril","EP","CELETISTA","40 HORAS SEMANAIS","CONCURSO PÚBLICO","2023-09-05"]
[null,473,"ALESSON RENATO LOPES VALENCA","098.131.194-62","Técnico Ind. e de Gestão Corp. - Automação Industrial",null,"Hemobrás Filial Goiana Unid. Fabril","EP","CELETISTA","40 HORAS SEMANAIS","CONCURSO PÚBLICO","2019-03-01"]
[null,225,"ALEX HENRIQUE DAS NEVES","090.500.684-48","Analista Ind. de Hemod. e Biotec. - Eng. Mecânica","Chefe de Serviço de Manutenção","Hemobrás Filial Goiana Unid. Fabril","EP","CELETISTA","40 HORAS SEMANAIS","CONCURSO PÚBLICO","2014-02-21"]
[null,491,"ALEX LAQUIS RESENDE","649.507.511-15","Membros do COAUD",null,"Hemobrás Matriz - Brasília","Membros do COAUD","NÃO SE APLICA","NÃO SE APLICA","TERMO DE POSSE","2020-06-15"]
[null,673,"ALEXANDRE COUTO CARNEIRO VIEIRA","054.556.724-60","Analista Ind. de Hemod. e Biotec. - Fracion. Ind. Plasma 2",null,"Hemobrás Filial Goiana Unid. Fabril","EP","CELETISTA","40 HORAS SEMANAIS","CONCURSO PÚBLICO","2023-07-24"]
[null,479,"ALEXANDRE MUNIZ FARIAS","698.651.594-49","Técnico Ind. e de Gestão Corp. - Refrigeração",null,"Hemobrás Filial Goiana Unid. Fabril","EP","CELETISTA","40 HORAS SEMANAIS","CONCURSO PÚBLICO","2019-04-15"]
[null,633,"ALEXSANDRO DA COSTA GOMES","047.777.484-99","Analista Adm. de Assuntos Corp. - Contrato",null,"Hemobrás Filial Unid. Adm. Recife","EP","CELETISTA","40 HORAS SEMANAIS","CONCURSO PÚBLICO","2023-02-24"]
[null,522,"ALINE DANTAS FRANCA","071.078.854-13","Analista Ind. de Hemod. e Biotec. - Fracion. Ind. Plasma 1",null,"Hemobrás Filial Goiana Unid. Fabril","EP","CELETISTA","40 HORAS SEMANAIS","CONCURSO PÚBLICO","2022-03-17"]
[null,596,"ALINE FERREIRA PINTO","665.567.592-87","Analista Ind. de Hemod. e Biotec. - Fracion. Ind. Plasma 2","Chefe de Serviço de Produção de  Hemoderivados","Hemobrás Filial Goiana Unid. Fabril","EP","CELETISTA","40 HORAS SEMANAIS","CONCURSO PÚBLICO","2022-11-25"]
[null,147,"ALINE MARIA LIMA DE OLIVEIRA","013.372.654-11","Analista Ind. de Hemod. e Biotec. - Plasma e Hemocomponentes",null,"Hemobrás Filial Goiana Unid. Fabril","EP","CELETISTA","40 HORAS SEMANAIS","CONCURSO PÚBLICO","2011-04-06"]
[null,277,"ALINE REINALDO DIAS","777.101.263-91","Analista Adm. de Assuntos Corp. - Logística Farmacêutica",null,"Hemobrás Filial Goiana Unid. Fabril","EP","CELETISTA","40 HORAS SEMANAIS","CONCURSO PÚBLICO","2014-07-14"]
[null,612,"AMANDA LUCENA DOS SANTOS","397.957.638-81","Analista Ind. de Hemod. e Biotec. - Controle Qualidade - 1",null,"Hemobrás Filial Goiana Unid. Fabril","EP","CELETISTA","40 HORAS SEMANAIS","CONCURSO PÚBLICO","2023-01-25"]
[null,559,"ANA BEATRIZ LIMA MARTINIANO DE OLIVEIRA","120.677.004-05","Analista Ind. de Hemod. e Biotec. - Garantia da Qualidade 2",null,"Hemobrás Filial Goiana Unid. Fabril","EP","CELETISTA","40 HORAS SEMANAIS","CONCURSO PÚBLICO","2022-09-20"]
[null,624,"ANA CATARINA CRISTOVAO SILVA","110.292.704-06","Analista Ind. de Hemod. e Biotec. - Controle Qualidade - 1",null,"Hemobrás Filial Goiana Unid. Fabril","EP","CELETISTA","40 HORAS SEMANAIS","CONCURSO PÚBLICO","2023-01-25"]
[null,321,"ANA CELIA AZEVEDO DE SIQUEIRA","056.915.384-03","Analista Ind. de Hemod. e Biotec. - Plasma e Hemocomponentes",null,"Hemobrás Filial Goiana Unid. Fabril","EP","CELETISTA","40 HORAS SEMANAIS","CONCURSO PÚBLICO","2015-03-02"]
[null,641,"ANA CLARA CORREIA MELGACO","039.353.515-00","Analista Ind. de Hemod. e Biotec. - Controle Qualidade - 1",null,"Hemobrás Filial Goiana Unid. Fabril","EP","CELETISTA","40 HORAS SEMANAIS","CONCURSO PÚBLICO","2023-04-25"]
[null,560,"ANA CLAUDIA GOMES DOS ANJOS NASCIMENTO","102.800.844-98","Analista Ind. de Hemod. e Biotec. - Garantia da Qualidade 2",null,"Hemobrás Filial Goiana Unid. Fabril","EP","CELETISTA","40 HORAS SEMANAIS","CONCURSO PÚBLICO","2022-09-20"]
[null,66,"ANA KARINA CAMARA DE SOUZA","062.890.734-60","Assistente Ind. e de Gestão Corp - Téc. em Contabilidade I","Assistente Técnica Especializada","Hemobrás Filial Unid. Adm. Recife","EP","CELETISTA","40 HORAS SEMANAIS","CONCURSO PÚBLICO","2010-03-11"]
[null,269,"ANA LUCIA PEREIRA DE FARIA GONELLA","427.646.371-87","Analista Ind. de Hemod. e Biotec. - Fracion. Ind. Plasma 1",null,"Hemobrás Filial Goiana Unid. Fabril","EP","CELETISTA","40 HORAS SEMANAIS","CONCURSO PÚBLICO","2014-07-14"]
[null,735,"ANA PAULA DO REGO MENEZES","349.985.194-68","Presidente","Presidente","Hemobrás Filial Unid. Adm. Recife","Diretor","REGIME PRÓPRIO","NÃO SE APLICA","TERMO DE POSSE","2024-02-23"]
[null,367,"ANA PAULA MACHADO CORREA","061.516.824-83","Analista Adm. de Assuntos Corp. - Logística Farmacêutica",null,"Hemobrás Filial Unid. Adm. Recife","EP","CELETISTA","40 HORAS SEMANAIS","CONCURSO PÚBLICO","2015-10-20"]
[null,500,"ANA PAULA TELES FERREIRA BARRETO","261.904.191-00","Conselheiro Administrativo",null,"Hemobrás Matriz - Brasília","Conselheiro Adm","NÃO SE APLICA","NÃO SE APLICA","TERMO DE POSSE","2021-02-23"]
[null,443,"ANA PAULA VIEIRA MANINHO","042.747.451-55","Assistente Ind. e de Gestão Corp - Assistente Administrativo",null,"Hemobrás Matriz - Brasília","EP","CELETISTA","40 HORAS SEMANAIS","CONCURSO PÚBLICO","2018-02-01"]
[null,205,"ANDERSON ARNDT","227.280.898-09","Especialista em PHB - Controle Qualidade - I",null,"Hemobrás Filial Goiana Unid. Fabril","EP","CELETISTA","40 HORAS SEMANAIS","CONCURSO PÚBLICO","2014-02-20"]
[null,524,"ANDERSON DE ABREU DA SILVA","118.854.004-11","Analista Ind. de Hemod. e Biotec. - Fracion. Ind. Plasma 1",null,"Hemobrás Filial Goiana Unid. Fabril","EP","CELETISTA","40 HORAS SEMANAIS","CONCURSO PÚBLICO","2022-03-17"]
[null,447,"ANDERSON JOSE DE ARAUJO","010.073.984-93","Analista Ind. de Hemod. e Biotec. - Controle Qualidade - 3",null,"Hemobrás Filial Goiana Unid. Fabril","EP","CELETISTA","40 HORAS SEMANAIS","CONCURSO PÚBLICO","2018-04-19"]
[null,410,"ANDERSON RODRIGO GEROMEL","289.915.428-16","Analista Ind. de Hemod. e Biotec. - Garantia da Qualidade","Assistente Tecnico Especializado","Hemobrás Filial Goiana Unid. Fabril","EP","CELETISTA","40 HORAS SEMANAIS","CONCURSO PÚBLICO","2016-08-16"]
[null,8,"ANDRE GOMES CORREA","864.880.074-91","Analista de Ges. Corp. - Advogado I",null,"Hemobrás Filial Unid. Adm. Recife","EP","CELETISTA","40 HORAS SEMANAIS","CONCURSO PÚBLICO","2009-07-03"]
[null,730,"ANDRE LUIZ MOTA PINHO","138.337.154-72","Diretor Adm. e Financeiro","Diretor Adm. e Financeiro","Hemobrás Filial Unid. Adm. Recife","Diretor","REGIME PRÓPRIO","NÃO SE APLICA","TERMO DE POSSE","2024-01-30","CBTU"]
[null,561,"ANDREZA MARIA CORREIA DA SILVA","093.003.404-09","Analista Ind. de Hemod. e Biotec. - Garantia da Qualidade 2",null,"Hemobrás Filial Goiana Unid. Fabril","EP","CELETISTA","40 HORAS SEMANAIS","CONCURSO PÚBLICO","2022-09-20"]
[null,738,"ANNA BEATRIZ RIBEIRO CAVALCANTI BATISTA","059.348.534-30","Analista Adm. de Assuntos Corp. - Compras Nac. e Internac.",null,"Hemobrás Filial Unid. Adm. Recife","EP","CELETISTA","40 HORAS SEMANAIS","CONCURSO PÚBLICO","2024-03-18"]
[null,644,"ANNE CECILIA NASCIMENTO DA CRUZ","007.527.105-24","Analista Ind. de Hemod. e Biotec. - Controle Qualidade - 2",null,"Hemobrás Filial Goiana Unid. Fabril","EP","CELETISTA","40 HORAS SEMANAIS","CONCURSO PÚBLICO","2023-04-25"]
[null,347,"ANNE GLEYCE PEREIRA CERQUEIRA"," 075.910.424-75","Técnico Ind. e de Gestão Corp. - Triagem do Plasma",null,"Hemobrás Filial Goiana Unid. Fabril","EP","CELETISTA","40 HORAS SEMANAIS","CONCURSO PÚBLICO","2015-06-16"]
[null,10,"ANNE KATHLEEN DA SILVA PRIMO","030.918.814-82","Analista de Ges. Corp. - Engenheiro  de Produção I","Assessora Técnica Especializada","Hemobrás Filial Goiana Unid. Fabril","EP","CELETISTA","40 HORAS SEMANAIS","CONCURSO PÚBLICO","2009-09-25"]
[null,685,"ANNY CAROLINE FERREIRA GUIMARAES","063.202.903-07","Analista Ind. de Hemod. e Biotec. - Fracion. Ind. Plasma 2",null,"Hemobrás Filial Goiana Unid. Fabril","EP","CELETISTA","40 HORAS SEMANAIS","CONCURSO PÚBLICO","2023-07-24"]
[null,206,"ANTONIO DIOGENES PEREIRA DE OLIVEIRA","872.877.303-91","Especialista em PHB - Garantia da Qualidade - I","Gerente de Garantia da Qualidade","Hemobrás Filial Goiana Unid. Fabril","EP","CELETISTA","40 HORAS SEMANAIS","CONCURSO PÚBLICO","2014-02-20"]
[null,12,"ANTONIO EDSON DE SOUZA LUCENA","476.987.214-34","Especialista em PHB - Frac. Ind. Plasma 2","Diretoria de Desenvolvimento Industrial","Hemobrás Filial Unid. Adm. Recife","Diretor","REGIME PRÓPRIO","NÃO SE APLICA","TERMO DE POSSE","2018-08-30"]
[null,582,"ARISA DOS SANTOS FERREIRA","103.332.594-59","Analista Ind. de Hemod. e Biotec. - Assuntos Regulatórios",null,"Hemobrás Filial Unid. Adm. Recife","EP","CELETISTA","40 HORAS SEMANAIS","CONCURSO PÚBLICO","2022-11-25"]
[null,305,"ARISTOTELES MOURA TAVARES JUNIOR","055.850.894-47","Assistente Ind. e de Gestão Corp - Assistente Administrativo","Assessor de Compras","Hemobrás Filial Unid. Adm. Recife","EP","CELETISTA","40 HORAS SEMANAIS","CONCURSO PÚBLICO","2015-01-09"]
[null,668,"AUGUSTO LOPES SOUTO","053.358.054-47","Analista Ind. de Hemod. e Biotec. - Fracion. Ind. Plasma 1",null,"Hemobrás Filial Goiana Unid. Fabril","EP","CELETISTA","40 HORAS SEMANAIS","CONCURSO PÚBLICO","2023-07-24"]
[null,623,"AUREO HENRIQUE CABRAL DE MELO SOUZA","117.202.824-98","Analista Adm. de Assuntos Corp. - Contabilidade",null,"Hemobrás Filial Unid. Adm. Recife","EP","CELETISTA","40 HORAS SEMANAIS","CONCURSO PÚBLICO","2023-01-25"]
[null,659,"BARBARA ARYELA BEZERRA DA SILVA ROCHA","107.089.404-47","Analista Ind. de Hemod. e Biotec. - Controle Qualidade - 2",null,"Hemobrás Filial Goiana Unid. Fabril","EP","CELETISTA","40 HORAS SEMANAIS","CONCURSO PÚBLICO","2023-07-24"]
[null,671,"BARBARA LUISA CHAGAS DA SILVA","052.177.901-48","Analista Ind. de Hemod. e Biotec. - Fracion. Ind. Plasma 1",null,"Hemobrás Filial Goiana Unid. Fabril","EP","CELETISTA","40 HORAS SEMANAIS","CONCURSO PÚBLICO","2023-07-24"]
[null,76,"BERLINCK ENEAS CORREIA ARAUJO DOS SANTOS","037.826.504-09","Especialista em PHB - Eng. Elétrico/Eletrônico","Assessor Especial","Hemobrás Filial Goiana Unid. Fabril","EP","CELETISTA","40 HORAS SEMANAIS","CONCURSO PÚBLICO","2010-07-01"]
[null,638,"BIANCA WARUAR PAULO LOBO","071.927.377-39","Analista Ind. de Hemod. e Biotec. - Garantia da Qualidade 2",null,"Hemobrás Filial Goiana Unid. Fabril","EP","CELETISTA","40 HORAS SEMANAIS","CONCURSO PÚBLICO","2023-02-24"]
[null,562,"BRAULIO CESAR DE SOUSA","008.839.854-46","Analista Ind. de Hemod. e Biotec. - Garantia da Qualidade 2",null,"Hemobrás Filial Goiana Unid. Fabril","EP","CELETISTA","40 HORAS SEMANAIS","CONCURSO PÚBLICO","2022-09-20"]
[null,614,"BRENO GOMES DO NASCIMENTO LOPES","103.359.634-55","Analista Ind. de Hemod. e Biotec. - Controle Qualidade - 2",null,"Hemobrás Filial Goiana Unid. Fabril","EP","CELETISTA","40 HORAS SEMANAIS","CONCURSO PÚBLICO","2023-01-25"]
[null,507,"BRUNA CAVALCANTI ARRUDA","029.726.754-01","Especialista em PHB - Controle Qualidade - I","Chefe de Serviço de Validação e Certificação","Hemobrás Filial Goiana Unid. Fabril","EP","CELETISTA","40 HORAS SEMANAIS","CONCURSO PÚBLICO","2008-02-11"]
[null,660,"BRUNO AIRES DOS SANTOS","011.679.004-05","Analista Ind. de Hemod. e Biotec. - Controle Qualidade - 2",null,"Hemobrás Filial Goiana Unid. Fabril","EP","CELETISTA","40 HORAS SEMANAIS","CONCURSO PÚBLICO","2023-07-24"]
[null,208,"BRUNO EMANUEL FIGUEIREDO BARBOSA","789.500.315-15","Analista Ind. de Hemod. e Biotec. - Garantia da Qualidade",null,"Hemobrás Filial Unid. Adm. Recife","EP","CELETISTA","40 HORAS SEMANAIS","CONCURSO PÚBLICO","2014-02-20"]
[null,255,"BRUNO JOSE SENA SOUZA","083.931.264-44","Analista Adm. de Assuntos Corp. - Orçamento e Finanças",null,"Hemobrás Filial Unid. Adm. Recife","EP","CELETISTA","40 HORAS SEMANAIS","CONCURSO PÚBLICO","2014-07-14"]
[null,510,"CAIO CESAR SOARES DE SOUSA","076.792.914-46","Procurador Geral",null,"Hemobrás Filial Unid. Adm. Recife","FC","CELETISTA","40 HORAS SEMANAIS","PORTARIA","2021-10-11"]
[null,411,"CAIO SILVA DUARTE","086.627.534-77","Técnico Ind. e de Gestão Corp. - Fracionamento do Plasma",null,"Hemobrás Filial Goiana Unid. Fabril","EP","CELETISTA","40 HORAS SEMANAIS","CONCURSO PÚBLICO","2016-08-16"]
[null,590,"CAMILA BIANCA FERREIRA DA ROCHA","093.192.874-57","Analista Ind. de Hemod. e Biotec. - Fracion. Ind. Plasma 2",null,"Hemobrás Filial Goiana Unid. Fabril","EP","CELETISTA","40 HORAS SEMANAIS","CONCURSO PÚBLICO","2022-11-25"]
[null,396,"CAMILA BRAGA OLIVEIRA","077.224.444-82","Analista Adm. de Assuntos Corp. - Contrato",null,"Hemobrás Filial Unid. Adm. Recife","EP","CELETISTA","40 HORAS SEMANAIS","CONCURSO PÚBLICO","2016-03-17"]
[null,591,"CAMILA CARDOSO RIBEIRO MAIA","089.816.946-13","Analista Ind. de Hemod. e Biotec. - Fracion. Ind. Plasma 1",null,"Hemobrás Filial Goiana Unid. Fabril","EP","CELETISTA","40 HORAS SEMANAIS","CONCURSO PÚBLICO","2022-11-25"]
[null,209,"CAMILA SANTANA PEREIRA","075.506.056-37","Analista Ind. de Hemod. e Biotec. - Plasma e Hemocomponentes","Secretária Executiva","Hemobrás Filial Unid. Adm. Recife","EP","CELETISTA","40 HORAS SEMANAIS","CONCURSO PÚBLICO","2014-02-20"]
[null,676,"CAMILA SUGUIURA EVANGELISTA","050.144.541-27","Analista Ind. de Hemod. e Biotec. - Fracion. Ind. Plasma 1",null,"Hemobrás Filial Goiana Unid. Fabril","EP","CELETISTA","40 HORAS SEMANAIS","CONCURSO PÚBLICO","2023-07-24"]
[null,563,"CAMILE CAMINHA ANDRADE MAGALHAES","035.827.803-17","Analista Ind. de Hemod. e Biotec. - Garantia da Qualidade 2",null,"Hemobrás Filial Goiana Unid. Fabril","EP","CELETISTA","40 HORAS SEMANAIS","CONCURSO PÚBLICO","2022-09-20"]
[null,679,"CARLA CATARINE SANTOS RODRIGUES","071.055.315-33","Analista Ind. de Hemod. e Biotec. - Fracion. Ind. Plasma 1",null,"Hemobrás Filial Goiana Unid. Fabril","EP","CELETISTA","40 HORAS SEMANAIS","CONCURSO PÚBLICO","2023-07-24"]
[null,695,"CARLOS AMILCAR SALGADO","484.982.626-15","Conselheiro Administrativo",null,"Hemobrás Matriz - Brasília","Conselheiro Adm","NÃO SE APLICA","NÃO SE APLICA","TERMO DE POSSE","2023-08-11"]
[null,696,"CARLOS AUGUSTO GRABOIS GADELHA","884.047.737-34","Conselheiro Administrativo",null,"Hemobrás Matriz - Brasília","Conselheiro Adm","NÃO SE APLICA","NÃO SE APLICA","TERMO DE POSSE","2023-08-11"]
[null,262,"CARLOS VINICIUS VIANA DE SOUZA","074.037.904-64","Analista Ind. de Hemod. e Biotec. - Eng. Mecânica","Gerente de Engenharia e Automação ","Hemobrás Filial Goiana Unid. Fabril","EP","CELETISTA","40 HORAS SEMANAIS","CONCURSO PÚBLICO","2014-07-14"]
[null,75,"CAUEH NUNES JOVINO","054.099.944-00","Especialista em PHB - Frac. Ind. Plasma 2",null,"Hemobrás Filial Goiana Unid. Fabril","EP","CELETISTA","40 HORAS SEMANAIS","CONCURSO PÚBLICO","2010-07-01"]
[null,549,"CELIA CHARLENE NASCIMENTO DA SILVA","057.330.564-10","Analista Ind. de Hemod. e Biotec. - Plasma e Hemocomponentes",null,"Hemobrás Filial Goiana Unid. Fabril","EP","CELETISTA","40 HORAS SEMANAIS","CONCURSO PÚBLICO","2022-09-20"]
[null,557,"CHRISTIAN MELO DE OLIVEIRA","084.094.414-46","Analista Ind. de Hemod. e Biotec. - Controle Qualidade - 2",null,"Hemobrás Filial Goiana Unid. Fabril","EP","CELETISTA","40 HORAS SEMANAIS","CONCURSO PÚBLICO","2022-09-20"]
[null,509,"CHRISTIANO STINGLIN MADRUGA","008.954.289-46","Especialista em PHB - Frac. Ind. Plasma 1 - I","Chefe de Serviço de Automação","Hemobrás Filial Goiana Unid. Fabril","EP","CELETISTA","40 HORAS SEMANAIS","CONCURSO PÚBLICO","2008-11-03"]
[null,291,"CINTHIA SILVEIRA QUEIROGA","073.174.644-90","Analista Ind. de Hemod. e Biotec. - Armaz e Distrib de Medic",null,"Hemobrás Filial Goiana Unid. Fabril","EP","CELETISTA","40 HORAS SEMANAIS","CONCURSO PÚBLICO","2014-10-15"]
[null,585,"CIRO BAZILIO FALCAO","042.733.004-19","Analista Adm. de Assuntos Corp. - Contrato",null,"Hemobrás Filial Unid. Adm. Recife","EP","CELETISTA","40 HORAS SEMANAIS","CONCURSO PÚBLICO","2022-11-25"]
[null,573,"CLARA PATRICIA FAGUNDES CABRAL","049.870.484-00","Analista Ind. de Hemod. e Biotec. - Armaz e Distrib de Medic",null,"Hemobrás Filial Goiana Unid. Fabril","EP","CELETISTA","40 HORAS SEMANAIS","CONCURSO PÚBLICO","2022-09-20"]
[null,226,"CLAUDIA VIVIANE LINS RIBEIRO","032.631.244-71","Assistente Ind. e de Gestão Corp - Assistente Administrativo",null,"Hemobrás Filial Unid. Adm. Recife","EP","CELETISTA","40 HORAS SEMANAIS","CONCURSO PÚBLICO","2014-02-21"]
[null,4,"CLAUDIO LOPES JUNIOR","950.075.984-53","Técnico Ind. e de Gestão Corp. - Téc. em Informática I","Assistente Técnico","Hemobrás Filial Unid. Adm. Recife","EP","CELETISTA","40 HORAS SEMANAIS","CONCURSO PÚBLICO","2010-04-19"]
[null,368,"CLAUDIONOR DE CASSIO DOS SANTOS SOUZA JUNIOR","079.162.774-84","Analista Adm. de Assuntos Corp. - Logística Farmacêutica",null,"Hemobrás Filial Unid. Adm. Recife","EP","CELETISTA","40 HORAS SEMANAIS","CONCURSO PÚBLICO","2015-10-20"]
[null,140,"CLEBER COELHO CARDOSO JUNIOR","012.576.421-97","Assistente Técnico Especializado",null,"Hemobrás Matriz - Brasília","FC","CELETISTA","40 HORAS SEMANAIS","CONCURSO PÚBLICO","2010-07-21"]
[null,174,"CLEDIVALDO DE BRITO SILVA","032.136.914-96","Assistente Técnico Especializado",null,"Hemobrás Filial Unid. Adm. Recife","FC","CELETISTA","40 HORAS SEMANAIS","PORTARIA","2012-04-09"]
[null,578,"CRISTIANO BELARMINO DA SILVA","052.457.804-45","Analista Adm. de Assuntos Corp. - Contabilidade",null,"Hemobrás Filial Unid. Adm. Recife","EP","CELETISTA","40 HORAS SEMANAIS","CONCURSO PÚBLICO","2022-10-18"]
[null,592,"CYNTHIA GISELE DE OLIVEIRA COIMBRA","008.403.404-19","Analista Ind. de Hemod. e Biotec. - Fracion. Ind. Plasma 2",null,"Hemobrás Filial Goiana Unid. Fabril","EP","CELETISTA","40 HORAS SEMANAIS","CONCURSO PÚBLICO","2022-11-25"]
[null,412,"DANIEL CARLOS JUNIOR","071.404.304-46","Técnico Ind. e de Gestão Corp. - Fracionamento do Plasma",null,"Hemobrás Filial Goiana Unid. Fabril","EP","CELETISTA","40 HORAS SEMANAIS","CONCURSO PÚBLICO","2016-08-16"]
[null,706,"DANIEL MARIO ALVES DE PAULA","648.094.471-20","Conselheiro Fiscal",null,"Hemobrás Matriz - Brasília","Conselheiro Fiscal","NÃO SE APLICA","NÃO SE APLICA","TERMO DE POSSE","2023-08-28"]
[null,681,"DANIEL RIBEIRO GRIJO","124.330.117-10","Analista Ind. de Hemod. e Biotec. - Fracion. Ind. Plasma 1",null,"Hemobrás Filial Goiana Unid. Fabril","EP","CELETISTA","40 HORAS SEMANAIS","CONCURSO PÚBLICO","2023-07-24"]
[null,330,"DANIELLA SUZANA DE FARIAS","026.280.844-73","Assistente Ind. e de Gestão Corp - Assistente Administrativo",null,"Hemobrás Filial Unid. Adm. Recife","EP","CELETISTA","40 HORAS SEMANAIS","CONCURSO PÚBLICO","2015-04-13"]
[null,295,"DANIELLE COUTINHO LORDAO","935.770.364-00","Analista Ind. de Hemod. e Biotec. - Armaz e Distrib de Medic",null,"Hemobrás Filial Goiana Unid. Fabril","EP","CELETISTA","40 HORAS SEMANAIS","CONCURSO PÚBLICO","2014-12-05"]
[null,637,"DANIELLY ROCHA CAVALCANTI DE LIRA","079.348.294-18","Analista Ind. de Hemod. e Biotec. - Garantia da Qualidade 2",null,"Hemobrás Filial Goiana Unid. Fabril","EP","CELETISTA","40 HORAS SEMANAIS","CONCURSO PÚBLICO","2023-02-24"]
[null,332,"DANILO RICARDO SILVA TOSCANO","071.653.534-37","Assistente Ind. e de Gestão Corp - Téc. em Contabilidade I",null,"Hemobrás Filial Unid. Adm. Recife","EP","CELETISTA","40 HORAS SEMANAIS","CONCURSO PÚBLICO","2015-04-13"]
[null,525,"DAVI DE FRANCA CARNEIRO","087.024.944-42","Analista Adm. de Assuntos Corp. - Tecnologia da Informação",null,"Hemobrás Filial Unid. Adm. Recife","EP","CELETISTA","40 HORAS SEMANAIS","CONCURSO PÚBLICO","2022-03-17"]
[null,611,"DAVI TITO FARIAS","882.209.584-72","Analista Adm. de Assuntos Corp. - Tecnologia da Informação",null,"Hemobrás Filial Unid. Adm. Recife","EP","CELETISTA","40 HORAS SEMANAIS","CONCURSO PÚBLICO","2023-01-25"]
[null,544,"DAYVSON BRUNO PEREIRA DA SILVA","099.341.284-03","Analista Adm. de Assuntos Corp. - Contabilidade",null,"Hemobrás Filial Unid. Adm. Recife","EP","CELETISTA","40 HORAS SEMANAIS","CONCURSO PÚBLICO","2022-09-20"]
[null,700,"DEMETRIUS SILVA UMBELINO","074.522.634-56","Analista Adm. de Assuntos Corp. - Logística Farmacêutica 1",null,"Hemobrás Filial Goiana Unid. Fabril","EP","CELETISTA","40 HORAS SEMANAIS","CONCURSO PÚBLICO","2023-08-23"]
[null,397,"DICEU NAZARIO DE OLIVEIRA","076.442.084-45","Analista Adm. de Assuntos Corp. - Desenvolvimento de Pessoas",null,"Hemobrás Filial Goiana Unid. Fabril","EP","CELETISTA","40 HORAS SEMANAIS","CONCURSO PÚBLICO","2016-04-06"]
[null,709,"DIEGO PESSOA GOMES","039.961.034-09","Conselheiro Administrativo",null,"Hemobrás Matriz - Brasília","Conselheiro Adm","NÃO SE APLICA","NÃO SE APLICA","TERMO DE POSSE","2023-09-25"]
[null,474,"DIEGO PHILIPE DOS SANTOS BARBOSA","085.411.634-66","Analista Ind. de Hemod. e Biotec. - Fracion. Ind. Plasma 1",null,"Hemobrás Filial Goiana Unid. Fabril","EP","CELETISTA","40 HORAS SEMANAIS","CONCURSO PÚBLICO","2019-03-01"]
[null,677,"DILIANE HELENA DO NASCIMENTO","111.414.454-17","Analista Ind. de Hemod. e Biotec. - Fracion. Ind. Plasma 2",null,"Hemobrás Filial Goiana Unid. Fabril","EP","CELETISTA","40 HORAS SEMANAIS","CONCURSO PÚBLICO","2023-07-24"]
[null,440,"DIOGO JOSE ALVES BARBOZA","052.749.434-89","Analista Adm. de Assuntos Corp. - Licitação e Contratos",null,"Hemobrás Filial Unid. Adm. Recife","EP","CELETISTA","40 HORAS SEMANAIS","CONCURSO PÚBLICO","2018-01-17"]
[null,639,"DYLO FELICIANO DE JESUS","081.753.957-37","Chefe de Serviço de Escritório de Projetos de Engenharia","Chefe de Serviço de Escritório de Projetos de Engenharia","Hemobrás Filial Goiana Unid. Fabril","FC","CELETISTA","40 HORAS SEMANAIS","CONCURSO PÚBLICO","2023-04-04"]
[null,398,"DYOGO JOSE BRAGA AZEVEDO DE FARIA","082.089.544-03","Assistente Ind. e de Gestão Corp - Assistente Administrativo",null,"Hemobrás Filial Goiana Unid. Fabril","EP","CELETISTA","40 HORAS SEMANAIS","CONCURSO PÚBLICO","2016-04-18"]
[null,724,"EBERTON HELRY RODRIGUES DA SILVA","058.150.684-70","Técnico Ind. e de Gestão Corp. - Mecanica",null,"Hemobrás Filial Goiana Unid. Fabril","EP","CELETISTA","40 HORAS SEMANAIS","PORTARIA","2024-01-10"]
[null,734,"EDIVALDO LUIZ DE FRANCA","007.682.994-46","Técnico Ind. e de Gestão Corp. - Mecanica",null,"Hemobrás Filial Goiana Unid. Fabril","EP","CELETISTA","40 HORAS SEMANAIS","CONCURSO PÚBLICO","2024-02-16"]
[null,17,"EDMAR JOSE BARBOSA ACIOLI","899.579.544-15","Especialista em PHB - Frac. Ind. Plasma 1 - I",null,"Hemobrás Filial Unid. Adm. Recife","EP","CELETISTA","40 HORAS SEMANAIS","CONCURSO PÚBLICO","2009-08-04"]
[null,237,"EDNALDO BISPO DOS SANTOS","803.728.725-49","Técnico Ind. e de Gestão Corp. - Automação Industrial",null,"Hemobrás Filial Goiana Unid. Fabril","EP","CELETISTA","40 HORAS SEMANAIS","CONCURSO PÚBLICO","2014-02-24"]
[null,452,"EDUARDA VANESSA CAVALCANTE MANGUEIRA","058.793.414-02","Analista Ind. de Hemod. e Biotec. - Controle Qualidade - 1",null,"Hemobrás Filial Goiana Unid. Fabril","EP","CELETISTA","40 HORAS SEMANAIS","CONCURSO PÚBLICO","2018-07-09"]
[null,729,"EDUARDO MAERCIO FROES","042.268.946-77","Membros do COAUD",null,"Hemobrás Matriz - Brasília","Membros do COAUD","NÃO SE APLICA","NÃO SE APLICA","TERMO DE POSSE","2024-04-12"]
[null,148,"ELEONORA FIGUEIREDO PIRES","690.018.634-34","Especialista em PHB - Frac. Ind. Plasma 2",null,"Hemobrás Filial Goiana Unid. Fabril","EP","CELETISTA","40 HORAS SEMANAIS","CONCURSO PÚBLICO","2011-04-06"]
[null,551,"ELIAS SOUZA SILVA","040.721.955-29","Analista Ind. de Hemod. e Biotec. - Plasma e Hemocomponentes",null,"Hemobrás Filial Unid. Adm. Recife","EP","CELETISTA","40 HORAS SEMANAIS","CONCURSO PÚBLICO","2022-09-20"]
[null,731,"ELLEN GABRIELA CAVALCANTE DA COSTA","158.740.474-50","Aprendiz em Tecnico Segurança do Trabalho",null,"Hemobrás Filial Goiana Unid. Fabril","Aprendiz","CELETISTA","20 HORAS SEMANAIS","SELEÇÃO","2024-02-05"]
[null,615,"ELOIZA MARCELLE DA COSTA SOUZA","121.640.824-60","Analista Ind. de Hemod. e Biotec. - Controle Qualidade - 2",null,"Hemobrás Filial Goiana Unid. Fabril","EP","CELETISTA","40 HORAS SEMANAIS","CONCURSO PÚBLICO","2023-01-25"]
[null,454,"ELTON DA SILVA CHAVES","674.509.892-04","Conselheiro Administrativo",null,"Hemobrás Matriz - Brasília","Conselheiro Adm","NÃO SE APLICA","NÃO SE APLICA","TERMO DE POSSE","2018-08-30"]
[null,350,"EMANUEL COSTA DO PRADO","053.411.894-18","Assistente Ind. e de Gestão Corp - Assistente Administrativo",null,"Hemobrás Filial Unid. Adm. Recife","EP","CELETISTA","40 HORAS SEMANAIS","CONCURSO PÚBLICO","2015-06-16"]
[null,146,"EMANUEL RODRIGUES DE MORAIS FILHO","047.541.774-79","Técnico em PHB - I",null,"Hemobrás Filial Unid. Adm. Recife","EP","CELETISTA","40 HORAS SEMANAIS","CONCURSO PÚBLICO","2011-04-06"]
[null,293,"EMANUELA CORIOLANO SILVA","018.016.693-09","Analista Adm. de Assuntos Corp. - Planejamento Estratégico",null,"Hemobrás Matriz - Brasília","EP","CELETISTA","40 HORAS SEMANAIS","CONCURSO PÚBLICO","2014-12-05"]
[null,82,"EMILIA MEGUMI SHIGUEOKA","366.169.159-72","Especialista em PHB - Frac. Ind. Plasma 2","Responsável Técnico","Hemobrás Filial Goiana Unid. Fabril","EP","CELETISTA","40 HORAS SEMANAIS","CONCURSO PÚBLICO","2010-08-23"]
[null,376,"EMMANUEL DA SILVA NASCIMENTO","013.686.244-64","Analista Ind. de Hemod. e Biotec. - Eng. Civil",null,"Hemobrás Filial Goiana Unid. Fabril","EP","CELETISTA","40 HORAS SEMANAIS","CONCURSO PÚBLICO","2015-10-20"]
[null,630,"ENNY ROSE BEZERRA BRAINER SILVA","080.278.534-43","Analista Ind. de Hemod. e Biotec. - Controle Qualidade - 2",null,"Hemobrás Filial Goiana Unid. Fabril","EP","CELETISTA","40 HORAS SEMANAIS","CONCURSO PÚBLICO","2023-02-24"]
[null,717,"ERICK GALDINO MASCARENHAS LEITE","014.015.024-23","Assistente Ind. e de Gestão Corp - Assistente Administrativo",null,"Hemobrás Filial Unid. Adm. Recife","EP","CELETISTA","40 HORAS SEMANAIS","CONCURSO PÚBLICO","2023-10-09"]
[null,609,"ESSIA DE ALMEIDA LIMA","084.575.604-41","Técnico Ind. e de Gestão Corp. - Triagem do Plasma",null,"Hemobrás Filial Goiana Unid. Fabril","EP","CELETISTA","40 HORAS SEMANAIS","CONCURSO PÚBLICO","2023-01-25"]
[null,675,"EURIPEDES TARGINO LINHARES NETO","071.480.674-99","Analista Ind. de Hemod. e Biotec. - Fracion. Ind. Plasma 2",null,"Hemobrás Filial Goiana Unid. Fabril","EP","CELETISTA","40 HORAS SEMANAIS","CONCURSO PÚBLICO","2023-07-24"]
[null,358,"EVERTON MAMEDE FREITAS DO SACRAMENTO","071.493.574-31","Analista Adm. de Assuntos Corp. - Desenvolvimento de Pessoas",null,"Hemobrás Filial Unid. Adm. Recife","EP","CELETISTA","40 HORAS SEMANAIS","CONCURSO PÚBLICO","2015-06-16"]
[null,583,"EWERTON HENRIQUE DA SILVEIRA MORAIS","066.523.314-03","Analista Adm. de Assuntos Corp. - Compras Nac. e Internac.",null,"Hemobrás Filial Unid. Adm. Recife","EP","CELETISTA","40 HORAS SEMANAIS","CONCURSO PÚBLICO","2022-11-25"]
[null,456,"FABIANA MARIA TEIXEIRA DO REGO BARROS","771.943.494-34","Assessor Juridico",null,"Hemobrás Filial Unid. Adm. Recife","FC","CELETISTA","40 HORAS SEMANAIS","CONCURSO PÚBLICO","2018-09-04"]
[null,642,"FABIANA MENEZES DE SOUZA CAMARA","410.428.592-72","Analista Ind. de Hemod. e Biotec. - Controle Qualidade - 2",null,"Hemobrás Filial Goiana Unid. Fabril","EP","CELETISTA","40 HORAS SEMANAIS","CONCURSO PÚBLICO","2023-04-25"]
[null,542,"FABIANO ALVES DA SILVA","059.631.274-16","Analista Adm. de Assuntos Corp. - Tecnologia da Informação",null,"Hemobrás Filial Goiana Unid. Fabril","EP","CELETISTA","40 HORAS SEMANAIS","CONCURSO PÚBLICO","2022-09-20"]
[null,229,"FABIO AUGUSTO DA CRUZ LIMA","037.803.014-07","Analista Adm. de Assuntos Corp. - Logística Farmacêutica",null,"Hemobrás Filial Unid. Adm. Recife","EP","CELETISTA","40 HORAS SEMANAIS","CONCURSO PÚBLICO","2014-02-21"]
[null,739,"FABIOLA FREITAS DOS SANTOS","103.226.894-81","Assistente Ind. e de Gestão Corp - Assistente Administrativo",null,"Hemobrás Filial Goiana Unid. Fabril","EP","CELETISTA","40 HORAS SEMANAIS","CONCURSO PÚBLICO","2024-03-18"]
[null,20,"FABRICIO CHAVES MARTINS","015.443.685-26","Especialista em PHB - Controle Qualidade - I",null,"Hemobrás Filial Unid. Adm. Recife","EP","CELETISTA","40 HORAS SEMANAIS","CONCURSO PÚBLICO","2009-07-10"]
[null,210,"FELIPE ALENCAR DE OLIVEIRA","062.631.734-75","Especialista em PHB - Engenheiro Mecânico - I",null,"Hemobrás Filial Goiana Unid. Fabril","EP","CELETISTA","40 HORAS SEMANAIS","CONCURSO PÚBLICO","2014-02-20"]
[null,593,"FELIPE LEONARDO BLEY FIALHO","031.060.021-90","Analista Ind. de Hemod. e Biotec. - Fracion. Ind. Plasma 2",null,"Hemobrás Filial Goiana Unid. Fabril","EP","CELETISTA","40 HORAS SEMANAIS","CONCURSO PÚBLICO","2022-11-25"]
[null,369,"FELIPE NOBREGA SOUSA DE FIGUEIREDO","087.759.504-64","Analista Ind. de Hemod. e Biotec. - Controle Qualidade - 2",null,"Hemobrás Filial Goiana Unid. Fabril","EP","CELETISTA","40 HORAS SEMANAIS","CONCURSO PÚBLICO","2015-10-20"]
[null,375,"FELIPE TIAGO JOSE DOS SANTOS","073.868.544-55","Analista Ind. de Hemod. e Biotec. - Garantia da Qualidade",null,"Hemobrás Filial Goiana Unid. Fabril","EP","CELETISTA","40 HORAS SEMANAIS","CONCURSO PÚBLICO","2015-10-20"]
[null,462,"FERNANDA ALVES MORAES","066.029.234-39","Assessor Especial",null,"Hemobrás Filial Unid. Adm. Recife","FC","CELETISTA","40 HORAS SEMANAIS","PORTARIA","2018-11-05"]
[null,270,"FERNANDA SEVERO DE REZENDE RIBEIRO","065.230.776-08","Analista Ind. de Hemod. e Biotec. - Fracion. Ind. Plasma 1",null,"Hemobrás Filial Goiana Unid. Fabril","EP","CELETISTA","40 HORAS SEMANAIS","CONCURSO PÚBLICO","2014-07-14"]
[null,597,"FERNANDO HENRIQUE ALVES DE CARVALHO","112.006.834-71","Analista Ind. de Hemod. e Biotec. - Fracion. Ind. Plasma 1",null,"Hemobrás Filial Goiana Unid. Fabril","EP","CELETISTA","40 HORAS SEMANAIS","CONCURSO PÚBLICO","2022-11-25"]
[null,271,"FERNANDO KENJI JACOJACO","044.151.479-09","Analista Ind. de Hemod. e Biotec. - Fracion. Ind. Plasma 1",null,"Hemobrás Filial Goiana Unid. Fabril","EP","CELETISTA","40 HORAS SEMANAIS","CONCURSO PÚBLICO","2014-07-14"]
[null,576,"FILIPE GALVAO AZEVEDO CHAVES","132.879.854-26","Analista Adm. de Assuntos Corp. - Orçamento e Finanças",null,"Hemobrás Filial Unid. Adm. Recife","EP","CELETISTA","40 HORAS SEMANAIS","CONCURSO PÚBLICO","2022-10-18"]
[null,584,"FLAVIA CAROLINA FERNANDES CABRAL","046.960.464-60","Analista Adm. de Assuntos Corp. - Compras Nac. e Internac.",null,"Hemobrás Filial Unid. Adm. Recife","EP","CELETISTA","40 HORAS SEMANAIS","CONCURSO PÚBLICO","2022-11-25"]
[null,564,"FLAVIELLE MARTINS DE MELO","064.426.239-71","Analista Ind. de Hemod. e Biotec. - Garantia da Qualidade 2",null,"Hemobrás Filial Goiana Unid. Fabril","EP","CELETISTA","40 HORAS SEMANAIS","CONCURSO PÚBLICO","2022-09-20"]
[null,200,"FLORENTINA DE ALBUQUERQUE MARANHAO SIMOES","388.443.204-44","Chefe de Serviço de Administração de Pessoal",null,"Hemobrás Filial Unid. Adm. Recife","FC","CELETISTA","40 HORAS SEMANAIS","PORTARIA","2013-10-14"]
[null,230,"FRANCINE DOMICIANO DUARTE SANTOS","042.552.094-30","Analista de Ges. Corp. - Compras Nacionais e Internacionais",null,"Hemobrás Filial Unid. Adm. Recife","EP","CELETISTA","40 HORAS SEMANAIS","CONCURSO PÚBLICO","2014-02-21"]
[null,231,"FRANCISCO FLAVIO OLIVEIRA DE ARAUJO","645.747.683-04","Técnico Ind. e de Gestão Corp. - Elétrica",null,"Hemobrás Filial Goiana Unid. Fabril","EP","CELETISTA","40 HORAS SEMANAIS","CONCURSO PÚBLICO","2014-02-21"]
[null,556,"FRANCIVANDI COELHO BARBOSA","047.932.294-50","Analista Ind. de Hemod. e Biotec. - Controle Qualidade - 2",null,"Hemobrás Filial Goiana Unid. Fabril","EP","CELETISTA","40 HORAS SEMANAIS","CONCURSO PÚBLICO","2022-09-20"]
[null,102,"FRANKLIN CAVALCANTE DA SILVA SANTOS","027.783.564-01","Analista de Ges. Corp. - Contador I",null,"Hemobrás Filial Unid. Adm. Recife","EP","CELETISTA","40 HORAS SEMANAIS","CONCURSO PÚBLICO","2011-02-23"]
[null,143,"FREDERICO BATISTA MONTEIRO","763.849.344-34","Especialista em PHB - Frac. Ind. Plasma 1 - I","Chefe de Serviço de Relacionamento com Hemorredes","Hemobrás Filial Unid. Adm. Recife","EP","CELETISTA","40 HORAS SEMANAIS","CONCURSO PÚBLICO","2011-04-06"]
[null,598,"FREDERICO LEITE GOUVEIA","010.657.464-74","Analista Ind. de Hemod. e Biotec. - Fracion. Ind. Plasma 2",null,"Hemobrás Filial Goiana Unid. Fabril","EP","CELETISTA","40 HORAS SEMANAIS","CONCURSO PÚBLICO","2022-11-25"]
[null,413,"FREDERICO NICOLAS ANTONINO DE SOUZA","050.230.734-08","Analista Ind. de Hemod. e Biotec. - Garantia da Qualidade",null,"Hemobrás Filial Unid. Adm. Recife","EP","CELETISTA","40 HORAS SEMANAIS","CONCURSO PÚBLICO","2016-08-16"]
[null,666,"GABRIELA AMARAL DE SOUZA","106.094.524-01","Analista Ind. de Hemod. e Biotec. - Fracion. Ind. Plasma 1",null,"Hemobrás Filial Goiana Unid. Fabril","EP","CELETISTA","40 HORAS SEMANAIS","CONCURSO PÚBLICO","2023-07-24"]
[null,308,"GALBA LOPES DE OLIVEIRA","031.786.964-74","Analista Adm. de Assuntos Corp. - Orçamento e Finanças",null,"Hemobrás Filial Unid. Adm. Recife","EP","CELETISTA","40 HORAS SEMANAIS","CONCURSO PÚBLICO","2015-01-09"]
[null,298,"GEAN EWERTON SOARES DA SILVA","101.197.004-09","Assistente Ind. e de Gestão Corp - Assistente Administrativo",null,"Hemobrás Filial Goiana Unid. Fabril","EP","CELETISTA","40 HORAS SEMANAIS","CONCURSO PÚBLICO","2014-12-05"]
[null,586,"GEIVERSON NEVES SENA","090.853.574-03","Analista Adm. de Assuntos Corp. - Contrato",null,"Hemobrás Filial Unid. Adm. Recife","EP","CELETISTA","40 HORAS SEMANAIS","CONCURSO PÚBLICO","2022-11-25"]
[null,104,"GERLANE NOGUEIRA DE CARVALHO MAGALHAES","387.930.594-34","Analista de Ges. Corp. - Com. Social Relações Publicas I",null,"Hemobrás Filial Unid. Adm. Recife","EP","CELETISTA","40 HORAS SEMANAIS","CONCURSO PÚBLICO","2011-02-23"]
[null,335,"GETULIO LIRA DE FARIAS","088.426.314-26","Técnico Ind. e de Gestão Corp. - Automação Industrial",null,"Hemobrás Filial Goiana Unid. Fabril","EP","CELETISTA","40 HORAS SEMANAIS","CONCURSO PÚBLICO","2015-04-13"]
[null,309,"GILSINELE SILVA SOUSA","196.365.474-91","Assistente Ind. e de Gestão Corp - Assistente Administrativo",null,"Hemobrás Filial Goiana Unid. Fabril","EP","CELETISTA","40 HORAS SEMANAIS","CONCURSO PÚBLICO","2015-01-09"]
[null,420,"GIOVANNI FERNANDES DE ALBUQUERQUE JUNIOR","822.669.647-04","Assessor Especial","Assessor Especial","Hemobrás Filial Unid. Adm. Recife","FC","CELETISTA","40 HORAS SEMANAIS","PORTARIA","2016-11-10"]
[null,460,"GLAUBEN TEIXEIRA DE CARVALHO","156.174.244-91","Membros do COAUD",null,"Hemobrás Matriz - Brasília","Membros do COAUD","NÃO SE APLICA","NÃO SE APLICA","TERMO DE POSSE","2018-10-01"]
[null,172,"GLAUBER BARROS DA SILVA SANTIAGO","012.699.044-18","Assessor Técnico Especializado",null,"Hemobrás Filial Goiana Unid. Fabril","FC","CELETISTA","40 HORAS SEMANAIS","PORTARIA","2012-03-15"]
[null,352,"GLEMISON HONORATO DA SILVA","998.237.564-49","Assistente Ind. e de Gestão Corp - Assistente Contábil",null,"Hemobrás Filial Unid. Adm. Recife","EP","CELETISTA","40 HORAS SEMANAIS","CONCURSO PÚBLICO","2015-06-16"]
[null,254,"GRACIELLA ALVES DOS SANTOS","152.722.904-10","Assistente Ind. e de Gestão Corp - Assistente Contábil",null,"Hemobrás Filial Unid. Adm. Recife","EP","CELETISTA","40 HORAS SEMANAIS","CONCURSO PÚBLICO","2014-07-14"]
[null,725,"GRACIETE BATISTA ALVES","396.895.904-30","Analista Adm. de Assuntos Corp. - Desenvolvimento de Pessoas",null,"Hemobrás Filial Goiana Unid. Fabril","EP","CELETISTA","40 HORAS SEMANAIS","CONCURSO PÚBLICO","2024-01-10"]
[null,710,"GUILHERME LAUX","219.159.418-22","Conselheiro Administrativo",null,"Hemobrás Matriz - Brasília","Conselheiro Adm","NÃO SE APLICA","NÃO SE APLICA","TERMO DE POSSE","2023-09-25"]
[null,256,"GUILHERME MAIA GADELHA","008.839.664-92","Analista Adm. de Assuntos Corp. - Contrato",null,"Hemobrás Filial Unid. Adm. Recife","EP","CELETISTA","40 HORAS SEMANAIS","CONCURSO PÚBLICO","2014-07-14"]
[null,87,"GUSTAVO CAVALCANTI SIMONI","794.133.904-87","Analista Adm. de Assuntos Corp. - Contador I","Gerente de Administração ","Hemobrás Filial Unid. Adm. Recife","EP","CELETISTA","40 HORAS SEMANAIS","CONCURSO PÚBLICO","2010-09-15"]
[null,370,"HECTOR GALDINO RODRIGUES","043.909.273-61","Analista Ind. de Hemod. e Biotec. - Controle Qualidade - 1",null,"Hemobrás Filial Goiana Unid. Fabril","EP","CELETISTA","40 HORAS SEMANAIS","CONCURSO PÚBLICO","2015-10-20"]
[null,168,"HELIO RICARDO FERREIRA DO COUTO","709.563.677-04","Analista de Ges. Corp. - Contador I",null,"Hemobrás Filial Goiana Unid. Fabril","EP","CELETISTA","40 HORAS SEMANAIS","CONCURSO PÚBLICO","2010-01-26"]
[null,348,"HELOINA DE SOUSA FALCAO","042.823.574-36","Técnico Ind. e de Gestão Corp. - Triagem do Plasma",null,"Hemobrás Filial Goiana Unid. Fabril","EP","CELETISTA","40 HORAS SEMANAIS","CONCURSO PÚBLICO","2015-06-16"]
[null,310,"HENRIQUE SALES GUEDES","215.432.488-61","Analista Adm. de Assuntos Corp. - Logística Farmacêutica",null,"Hemobrás Filial Goiana Unid. Fabril","EP","CELETISTA","40 HORAS SEMANAIS","CONCURSO PÚBLICO","2015-01-09"]
[null,558,"HYWRE CESAR DE BRITO PINTO","055.291.174-73","Analista Ind. de Hemod. e Biotec. - Controle Qualidade - 2",null,"Hemobrás Filial Goiana Unid. Fabril","EP","CELETISTA","40 HORAS SEMANAIS","CONCURSO PÚBLICO","2022-09-20"]
[null,27,"ILCENY PEREIRA DE OLIVEIRA","303.110.121-91","Especialista em PHB - Frac. Ind. Plasma 1 - I",null,"Hemobrás Filial Unid. Adm. Recife","EP","CELETISTA","40 HORAS SEMANAIS","CONCURSO PÚBLICO","2009-06-26"]
[null,338,"INALDO BRITO NUNES","028.223.735-66","Assistente Ind. e de Gestão Corp - Assistente Administrativo",null,"Hemobrás Filial Goiana Unid. Fabril","EP","CELETISTA","40 HORAS SEMANAIS","CONCURSO PÚBLICO","2015-04-16"]
[null,532,"INGRID MAIA MONTEIRO","062.257.874-02","Analista Adm. de Assuntos Corp. - Contrato",null,"Hemobrás Filial Unid. Adm. Recife","EP","CELETISTA","40 HORAS SEMANAIS","CONCURSO PÚBLICO","2022-05-03"]
[null,349,"ISABELLA SANTOS","048.458.264-02","Analista Ind. de Hemod. e Biotec. - Fracion. Ind. Plasma 2",null,"Hemobrás Filial Goiana Unid. Fabril","EP","CELETISTA","40 HORAS SEMANAIS","CONCURSO PÚBLICO","2015-06-16"]
[null,601,"IVALDA XAVIER DE CARVALHO","008.106.014-94","Analista Ind. de Hemod. e Biotec. - Fracion. Ind. Plasma 2",null,"Hemobrás Filial Goiana Unid. Fabril","EP","CELETISTA","40 HORAS SEMANAIS","CONCURSO PÚBLICO","2022-11-25"]
[null,663,"JADER MARTINS MARQUES","547.430.444-72","Analista Ind. de Hemod. e Biotec. - Fracion. Ind. Plasma 1",null,"Hemobrás Filial Goiana Unid. Fabril","EP","CELETISTA","40 HORAS SEMANAIS","CONCURSO PÚBLICO","2023-07-24"]
[null,68,"JAMES ANDRADE DA ROCHA MENEZES","029.655.094-96","Analista de Ges. Corp. - Contador I",null,"Hemobrás Filial Unid. Adm. Recife","EP","CELETISTA","40 HORAS SEMANAIS","CONCURSO PÚBLICO","2010-03-01"]
[null,405,"JAMILE DE MORAIS NASCIMENTO","841.686.255-91","Analista Adm. de Assuntos Corp. - Contrato",null,"Hemobrás Filial Unid. Adm. Recife","EP","CELETISTA","40 HORAS SEMANAIS","CONCURSO PÚBLICO","2016-07-14"]
[null,547,"JEAN CARLOS RAMALHO DE SA.","012.619.095-00","Analista Adm. de Assuntos Corp. - Logística Farmacêutica 2",null,"Hemobrás Filial Goiana Unid. Fabril","EP","CELETISTA","40 HORAS SEMANAIS","CONCURSO PÚBLICO","2022-09-20"]
[null,674,"JESSICA REBOUCAS SILVA","054.718.035-74","Analista Ind. de Hemod. e Biotec. - Fracion. Ind. Plasma 1",null,"Hemobrás Filial Goiana Unid. Fabril","EP","CELETISTA","40 HORAS SEMANAIS","CONCURSO PÚBLICO","2023-07-24"]
[null,713,"JOANA CARLA SANCHES RAMOS","113.904.637-37","Analista Ind. de Hemod. e Biotec. - Assuntos Regulatórios",null,"Hemobrás Filial Unid. Adm. Recife","EP","CELETISTA","40 HORAS SEMANAIS","CONCURSO PÚBLICO","2023-10-09"]
[null,263,"JOAO MARIA ALVES DA CRUZ JUNIOR","082.844.454-41","Técnico Ind. e de Gestão Corp. - Automação Industrial",null,"Hemobrás Filial Goiana Unid. Fabril","EP","CELETISTA","40 HORAS SEMANAIS","CONCURSO PÚBLICO","2014-07-14"]
[null,701,"JOAO VICTOR NASCIMENTO REIS","100.985.054-75","Analista Ind. de Hemod. e Biotec. - Eng. Mecânica",null,"Hemobrás Filial Goiana Unid. Fabril","EP","CELETISTA","40 HORAS SEMANAIS","CONCURSO PÚBLICO","2023-08-23"]
[null,527,"JOAO VITOR LIMA DA SILVA","091.874.954-90","Analista Ind. de Hemod. e Biotec. - Fracion. Ind. Plasma 1",null,"Hemobrás Filial Goiana Unid. Fabril","EP","CELETISTA","40 HORAS SEMANAIS","CONCURSO PÚBLICO","2022-03-17"]
[null,3,"JONAS LUIZ CABRAL DA SILVA","037.909.744-39","Analista Adm. de Assuntos Corp. - Contador I","Chefe de Serviço de Contabilidade","Hemobrás Filial Unid. Adm. Recife","EP","CELETISTA","40 HORAS SEMANAIS","CONCURSO PÚBLICO","2010-04-19"]
[null,714,"JORGE ANTONIO CHAVES DE OLIVEIRA","027.888.144-02","Analista Adm. de Assuntos Corp. - Logística Farmacêutica 1",null,"Hemobrás Filial Unid. Adm. Recife","EP","CELETISTA","40 HORAS SEMANAIS","CONCURSO PÚBLICO","2023-10-09"]
[null,632,"JOSE CLEBERSON SANTOS SOARES","102.980.694-23","Analista Ind. de Hemod. e Biotec. - Controle Qualidade - 2",null,"Hemobrás Filial Goiana Unid. Fabril","EP","CELETISTA","40 HORAS SEMANAIS","CONCURSO PÚBLICO","2023-02-24"]
[null,699,"JOSE DIEGO SILVA NUNES","713.843.544-41","Técnico Ind. e de Gestão Corp. - Mecânica",null,"Hemobrás Filial Goiana Unid. Fabril","EP","CELETISTA","40 HORAS SEMANAIS","CONCURSO PÚBLICO","2023-08-23"]
[null,249,"JOSE EDSON CARDOSO DA COSTA","374.896.824-87","Técnico Ind. e de Gestão Corp. - Triagem do Plasma","Assistente Técnico","Hemobrás Filial Goiana Unid. Fabril","EP","CELETISTA","40 HORAS SEMANAIS","CONCURSO PÚBLICO","2014-05-12"]
[null,196,"JOSE EDUARDO SEVERINO MARTINS","713.141.721-15","Analista Ind. de Hemod. e Biotec. - Fracion. Ind. Plasma 2","Assessor Técnico Especializado ","Hemobrás Filial Unid. Adm. Recife","EP","CELETISTA","40 HORAS SEMANAIS","CONCURSO PÚBLICO","2013-04-18"]
[null,33,"JOSE MANOEL DO NASCIMENTO","368.084.314-34","Analista de Ges. Corp. - Administrador I",null,"Hemobrás Filial Unid. Adm. Recife","EP","CELETISTA","40 HORAS SEMANAIS","CONCURSO PÚBLICO","2009-07-10"]
[null,543,"JOSE MARIA ARAUJO CORREIA LIMA","097.998.014-35","Analista Adm. de Assuntos Corp. - Contabilidade",null,"Hemobrás Filial Unid. Adm. Recife","EP","CELETISTA","40 HORAS SEMANAIS","CONCURSO PÚBLICO","2022-09-20"]
[null,693,"JOSE RAFAEL DO NASCIMENTO","078.244.534-99","Analista Ind. de Hemod. e Biotec. - Fracion. Ind. Plasma 2",null,"Hemobrás Filial Goiana Unid. Fabril","EP","CELETISTA","40 HORAS SEMANAIS","CONCURSO PÚBLICO","2023-07-24"]
[null,553,"JOSE WANDERLAN PONTES ESPINDOLA","071.758.424-06","Analista Ind. de Hemod. e Biotec. - Controle Qualidade - 2",null,"Hemobrás Filial Goiana Unid. Fabril","EP","CELETISTA","40 HORAS SEMANAIS","CONCURSO PÚBLICO","2022-09-20"]
[null,661,"JOSE WELLITHOM VITURINO DA SILVA","096.928.404-76","Analista Ind. de Hemod. e Biotec. - Controle Qualidade - 2",null,"Hemobrás Filial Goiana Unid. Fabril","EP","CELETISTA","40 HORAS SEMANAIS","CONCURSO PÚBLICO","2023-07-24"]
[null,574,"JULIA CURZEL DALLAGASPERINA","011.699.430-47","Analista Ind. de Hemod. e Biotec. - Eng. Ambiental",null,"Hemobrás Filial Goiana Unid. Fabril","EP","CELETISTA","40 HORAS SEMANAIS","CONCURSO PÚBLICO","2022-10-18"]
[null,684,"JULIANA DE OLIVEIRA TEIXEIRA","122.218.737-00","Analista Ind. de Hemod. e Biotec. - Fracion. Ind. Plasma 1",null,"Hemobrás Filial Goiana Unid. Fabril","EP","CELETISTA","40 HORAS SEMANAIS","CONCURSO PÚBLICO","2023-07-24"]
[null,594,"JULIANA MENDES MOURA DE FIGUEIREDO","053.851.554-62","Analista Ind. de Hemod. e Biotec. - Fracion. Ind. Plasma 2",null,"Hemobrás Filial Goiana Unid. Fabril","EP","CELETISTA","40 HORAS SEMANAIS","CONCURSO PÚBLICO","2022-11-25"]
[null,692,"JULIANA PAZ MAGALHAES","067.905.844-39","Analista Ind. de Hemod. e Biotec. - Fracion. Ind. Plasma 2",null,"Hemobrás Filial Goiana Unid. Fabril","EP","CELETISTA","40 HORAS SEMANAIS","CONCURSO PÚBLICO","2023-07-24"]
[null,144,"JULIANA RODRIGUES CINTRA","202.808.638-61","Especialista em PHB - Frac. Ind. Plasma 1 - I",null,"Hemobrás Filial Goiana Unid. Fabril","EP","CELETISTA","40 HORAS SEMANAIS","CONCURSO PÚBLICO","2011-04-06"]
[null,625,"JULIENE DOS SANTOS DAVI MUNIZ","088.629.104-60","Analista Ind. de Hemod. e Biotec. - Eng. Automação e Controle",null,"Hemobrás Filial Goiana Unid. Fabril","EP","CELETISTA","40 HORAS SEMANAIS","CONCURSO PÚBLICO","2023-01-25"]
[null,602,"JULIETH MESQUITA LACERDA","063.667.023-65","Analista Ind. de Hemod. e Biotec. - Fracion. Ind. Plasma 2",null,"Hemobrás Filial Goiana Unid. Fabril","EP","CELETISTA","40 HORAS SEMANAIS","CONCURSO PÚBLICO","2022-11-25"]
[null,589,"KALYNE AZEVEDO DE FRANCA","064.029.234-86","Analista Adm. de Assuntos Corp. - Planejamento Estratégico",null,"Hemobrás Filial Unid. Adm. Recife","EP","CELETISTA","40 HORAS SEMANAIS","CONCURSO PÚBLICO","2023-01-25"]
[null,669,"KAREN YASMIM PEREIRA DOS SANTOS AVELINO","081.580.524-10","Analista Ind. de Hemod. e Biotec. - Fracion. Ind. Plasma 2",null,"Hemobrás Filial Goiana Unid. Fabril","EP","CELETISTA","40 HORAS SEMANAIS","CONCURSO PÚBLICO","2023-07-24"]
[null,565,"KARLLINY WALESKA DA SILVA LIMA","091.641.614-39","Analista Ind. de Hemod. e Biotec. - Garantia da Qualidade 2",null,"Hemobrás Filial Goiana Unid. Fabril","EP","CELETISTA","40 HORAS SEMANAIS","CONCURSO PÚBLICO","2022-09-20"]
[null,550,"KATIA RAQUEL DE ALMEIDA OLIVEIRA","030.586.344-47","Analista Ind. de Hemod. e Biotec. - Garantia da Qualidade 2",null,"Hemobrás Filial Goiana Unid. Fabril","EP","CELETISTA","40 HORAS SEMANAIS","CONCURSO PÚBLICO","2022-09-20"]
[null,728,"KAUANE NAYARA BAHR LEDEBUHR","046.288.110-59","Analista Ind. de Hemod. e Biotec. - Fracion. Ind. Plasma 1",null,"Hemobrás Filial Goiana Unid. Fabril","EP","CELETISTA","40 HORAS SEMANAIS","CONCURSO PÚBLICO","2024-01-10"]
[null,446,"KLEBSON MACEDO DA SILVA","056.359.454-30","Técnico Ind. e de Gestão Corp. - Refrigeração",null,"Hemobrás Filial Goiana Unid. Fabril","EP","CELETISTA","40 HORAS SEMANAIS","CONCURSO PÚBLICO","2018-04-02"]
[null,667,"LAIANNE CARLA BATISTA ALENCAR","033.313.103-79","Analista Ind. de Hemod. e Biotec. - Fracion. Ind. Plasma 2",null,"Hemobrás Filial Goiana Unid. Fabril","EP","CELETISTA","40 HORAS SEMANAIS","CONCURSO PÚBLICO","2023-07-24"]
[null,286,"LAUDEMIR ERNESTO DA SILVA","034.422.364-79","Técnico Ind. e de Gestão Corp. - Refrigeração",null,"Hemobrás Filial Goiana Unid. Fabril","EP","CELETISTA","40 HORAS SEMANAIS","CONCURSO PÚBLICO","2014-08-04"]
[null,35,"LAURA BARRETO CARNEIRO","021.685.661-27","Especialista em PHB - Controle Qualidade - I",null,"Hemobrás Filial Goiana Unid. Fabril","EP","CELETISTA","40 HORAS SEMANAIS","CONCURSO PÚBLICO","2009-06-23"]
[null,371,"LAURA LICIA MARCOS DA COSTA","041.124.093-54","Analista Ind. de Hemod. e Biotec. - Armaz e Distrib de Medic",null,"Hemobrás Filial Unid. Adm. Recife","EP","CELETISTA","40 HORAS SEMANAIS","CONCURSO PÚBLICO","2015-10-20"]
[null,707,"LEANDRO PINHEIRO SAFATLE","836.746.591-15","Conselheiro Fiscal",null,"Hemobrás Matriz - Brasília","Conselheiro Fiscal","NÃO SE APLICA","NÃO SE APLICA","TERMO DE POSSE","2023-08-28"]
[null,417,"LEONARDO DE ALBUQUERQUE DANTAS","064.923.334-46","Analista Ind. de Hemod. e Biotec. - Plasma e Hemocomponentes","Chefe de Serviço de Gestão Interna do Plasma","Hemobrás Filial Goiana Unid. Fabril","EP","CELETISTA","40 HORAS SEMANAIS","CONCURSO PÚBLICO","2016-09-15"]
[null,484,"LEONARDO MOURA VILELA","305.045.541-15","Conselheiro Administrativo",null,"Hemobrás Matriz - Brasília","Conselheiro Adm","NÃO SE APLICA","NÃO SE APLICA","TERMO DE POSSE","2019-07-23"]
[null,265,"LEONARDO PINHEIRO LANDIM","004.432.513-47","Analista Ind. de Hemod. e Biotec. - Garantia da Qualidade",null,"Hemobrás Filial Goiana Unid. Fabril","EP","CELETISTA","40 HORAS SEMANAIS","CONCURSO PÚBLICO","2014-07-14"]
[null,232,"LETICIA AGRA MONTEIRO","073.249.294-78","Analista Ind. de Hemod. e Biotec. - Fracion. Ind. Plasma 2","Responsável Técnico Substituto","Hemobrás Filial Goiana Unid. Fabril","EP","CELETISTA","40 HORAS SEMANAIS","CONCURSO PÚBLICO","2014-02-21"]
[null,603,"LETICIA DA COSTA ARAUJO","061.314.803-70","Analista Ind. de Hemod. e Biotec. - Fracion. Ind. Plasma 2",null,"Hemobrás Filial Goiana Unid. Fabril","EP","CELETISTA","40 HORAS SEMANAIS","CONCURSO PÚBLICO","2022-11-25"]
[null,301,"LIDIANE REBECA PEREIRA DE LIMA","060.562.544-10","Assistente Ind. e de Gestão Corp - Assistente Administrativo",null,"Hemobrás Filial Unid. Adm. Recife","EP","CELETISTA","40 HORAS SEMANAIS","CONCURSO PÚBLICO","2014-12-05"]
[null,648,"LIDIANY APARECIDA COSTA FREIRE","086.815.094-03","Analista Ind. de Hemod. e Biotec. - Garantia da Qualidade 2",null,"Hemobrás Filial Goiana Unid. Fabril","EP","CELETISTA","40 HORAS SEMANAIS","CONCURSO PÚBLICO","2023-04-25"]
[null,715,"LILIANA DE MELO MACHADO BEHAR","009.111.634-17","Analista Adm. de Assuntos Corp. - Desenvolvimento de Pessoas",null,"Hemobrás Filial Goiana Unid. Fabril","EP","CELETISTA","40 HORAS SEMANAIS","CONCURSO PÚBLICO","2023-10-09"]
[null,448,"LIVIA MARIA BARBOSA REYNAUX","055.665.464-12","Analista Ind. de Hemod. e Biotec. - Controle Qualidade - 2",null,"Hemobrás Filial Goiana Unid. Fabril","EP","CELETISTA","40 HORAS SEMANAIS","CONCURSO PÚBLICO","2018-04-19"]
[null,441,"LIVIA MARIA SOUZA DE OLIVEIRA","029.267.544-50","Analista Adm. de Assuntos Corp. - Assessoria Administrativa",null,"Hemobrás Filial Unid. Adm. Recife","EP","CELETISTA","40 HORAS SEMANAIS","CONCURSO PÚBLICO","2018-01-17"]
[null,520,"LUANA CAMILLA CORDEIRO BRAZ","099.885.594-45","Analista Ind. de Hemod. e Biotec. - Fracion. Ind. Plasma 1",null,"Hemobrás Filial Goiana Unid. Fabril","EP","CELETISTA","40 HORAS SEMANAIS","CONCURSO PÚBLICO","2022-03-17"]
[null,521,"LUCAS ALECRIM AMORIM VIANA","008.412.335-43","Analista Ind. de Hemod. e Biotec. - Fracion. Ind. Plasma 1",null,"Hemobrás Filial Goiana Unid. Fabril","EP","CELETISTA","40 HORAS SEMANAIS","CONCURSO PÚBLICO","2022-03-17"]
[null,712,"LUCAS ALEXANDRE SILVA","080.611.344-89","Técnico Ind. e de Gestão Corp. - Segurança do Trabalho",null,"Hemobrás Filial Goiana Unid. Fabril","EP","CELETISTA","40 HORAS SEMANAIS","CONCURSO PÚBLICO","2023-10-09"]
[null,683,"LUCAS ALISON DO NASCIMENTO SANTOS","103.414.924-50","Analista Ind. de Hemod. e Biotec. - Fracion. Ind. Plasma 1",null,"Hemobrás Filial Goiana Unid. Fabril","EP","CELETISTA","40 HORAS SEMANAIS","CONCURSO PÚBLICO","2023-07-24"]
[null,213,"LUCAS RICCI BIANCO","076.819.314-14","Especialista em PHB - Frac. Ind. Plasma 1 - I","Gerente de Produção","Hemobrás Filial Goiana Unid. Fabril","EP","CELETISTA","40 HORAS SEMANAIS","CONCURSO PÚBLICO","2014-02-20"]
[null,402,"LUCIANA TRANQUILINO DE MELO","047.734.954-48","Analista Adm. de Assuntos Corp. - Analista Jurídico",null,"Hemobrás Filial Unid. Adm. Recife","Cedido","CELETISTA","40 HORAS SEMANAIS","CONCURSO PÚBLICO","2016-06-06"]
[null,333,"LUIZ CARLOS DO NASCIMENTO","094.195.934-10","Assistente Ind. e de Gestão Corp - Téc. em Contabilidade I",null,"Hemobrás Filial Unid. Adm. Recife","EP","CELETISTA","40 HORAS SEMANAIS","CONCURSO PÚBLICO","2015-04-13"]
[null,477,"LUIZ EDUARDO BEZERRA SILVA","026.108.444-50","Auditor Geral",null,"Hemobrás Filial Unid. Adm. Recife","Requisitado","REGIME PRÓPRIO","NÃO SE APLICA","RESOLUÇÃO","2019-03-07","CGU"]
[null,414,"LUIZ FELIPE LINS DANTAS","067.011.744-77","Analista Adm. de Assuntos Corp. - Compras Nac. e Internac.","Chefe de Serviço de Gestão de Suprimentos e Atividades Administrativas","Hemobrás Filial Unid. Adm. Recife","EP","CELETISTA","40 HORAS SEMANAIS","CONCURSO PÚBLICO","2016-08-16"]
[null,664,"LUIZ FILIPE TEIXEIRA NUNES","066.709.424-51","Analista Ind. de Hemod. e Biotec. - Fracion. Ind. Plasma 1",null,"Hemobrás Filial Goiana Unid. Fabril","EP","CELETISTA","40 HORAS SEMANAIS","CONCURSO PÚBLICO","2023-07-24"]
[null,569,"LUIZA BEATRIZ DE MEDEIROS SANTOS","071.809.684-39","Analista Ind. de Hemod. e Biotec. - Garantia da Qualidade 2",null,"Hemobrás Filial Goiana Unid. Fabril","EP","CELETISTA","40 HORAS SEMANAIS","CONCURSO PÚBLICO","2022-09-20"]
[null,649,"MAIRA LUDNA DUARTE","076.959.744-04","Analista Ind. de Hemod. e Biotec. - Garantia da Qualidade 2",null,"Hemobrás Filial Goiana Unid. Fabril","EP","CELETISTA","40 HORAS SEMANAIS","CONCURSO PÚBLICO","2023-04-25"]
[null,628,"MANOELA BRASIL FERNANDES DE ALBUQUERQUE","064.232.504-99","Assistente Técnico Especializado",null,"Hemobrás Filial Unid. Adm. Recife","FC","CELETISTA","40 HORAS SEMANAIS","CONCURSO PÚBLICO","2023-02-15"]
[null,672,"MARCELO FRANCISCO GALDINO DA SILVA","059.284.614-88","Analista Ind. de Hemod. e Biotec. - Fracion. Ind. Plasma 2",null,"Hemobrás Filial Goiana Unid. Fabril","EP","CELETISTA","40 HORAS SEMANAIS","CONCURSO PÚBLICO","2023-07-24"]
[null,260,"MARCELO GOES LIBERAL FILHO","063.550.664-54","Técnico Ind. e de Gestão Corp. - Segurança do Trabalho",null,"Hemobrás Filial Unid. Adm. Recife","EP","CELETISTA","40 HORAS SEMANAIS","CONCURSO PÚBLICO","2014-07-14"]
[null,653,"MARCIA APARECIDA DA SILVA","522.323.796-04","Analista Ind. de Hemod. e Biotec. - Assuntos Regulatórios",null,"Hemobrás Filial Unid. Adm. Recife","EP","CELETISTA","40 HORAS SEMANAIS","CONCURSO PÚBLICO","2023-07-24"]
[null,389,"MARCIA RODRIGUES VIANA SCHIPPERS","640.600.713-15","Analista Adm. de Assuntos Corp. - Compras Nac. e Internac.",null,"Hemobrás Filial Unid. Adm. Recife","EP","CELETISTA","40 HORAS SEMANAIS","CONCURSO PÚBLICO","2016-02-16"]
[null,740,"MARCIO MARKMAN","754.499.784-72","Assessor de Comunicação, Marketing e Eventos","Assessor de Comunicação, Marketing e Eventos","Hemobrás Filial Unid. Adm. Recife","FC","CELETISTA","40 HORAS SEMANAIS","PORTARIA","2024-03-25"]
[null,259,"MARCIO VAZ DE OLIVEIRA","097.479.814-24","Assistente Ind. e de Gestão Corp - Assistente Administrativo",null,"Hemobrás Filial Goiana Unid. Fabril","EP","CELETISTA","40 HORAS SEMANAIS","CONCURSO PÚBLICO","2014-07-14"]
[null,610,"MARCOPOLO DA SILVA MARINHO","049.726.774-81","Analista Adm. de Assuntos Corp. - Planejamento Estratégico",null,"Hemobrás Filial Unid. Adm. Recife","EP","CELETISTA","40 HORAS SEMANAIS","CONCURSO PÚBLICO","2023-01-25"]
[null,247,"MARCOS LUIZ DE OLIVEIRA FILHO","059.208.534-17","Analista de Ges. Corp. - Orçamento e Finanças",null,"Hemobrás Filial Goiana Unid. Fabril","EP","CELETISTA","40 HORAS SEMANAIS","CONCURSO PÚBLICO","2014-04-22"]
[null,694,"MARIA FERNANDA RAMOS COELHO","318.455.334-53","Conselheiro Administrativo",null,"Hemobrás Matriz - Brasília","Conselheiro Adm","NÃO SE APLICA","NÃO SE APLICA","TERMO DE POSSE","2023-07-13"]
[null,587,"MARIA LUCIA MAIA DE FREITAS","057.376.104-38","Analista Adm. de Assuntos Corp. - Desenvolvimento de Pessoas",null,"Hemobrás Filial Goiana Unid. Fabril","EP","CELETISTA","40 HORAS SEMANAIS","CONCURSO PÚBLICO","2022-11-25"]
[null,523,"MARIA LUIZA CAVALCANTI LUCENA","705.528.984-06","Analista Ind. de Hemod. e Biotec. - Fracion. Ind. Plasma 1",null,"Hemobrás Filial Goiana Unid. Fabril","EP","CELETISTA","40 HORAS SEMANAIS","CONCURSO PÚBLICO","2022-03-17"]
[null,395,"MARIA MENDES DA SILVA","354.265.864-20","Assistente Técnico",null,"Hemobrás Filial Unid. Adm. Recife","FC","CELETISTA","40 HORAS SEMANAIS","PORTARIA","2015-03-10"]
[null,372,"MARIA SUELY DE LIMA","036.384.294-23","Analista Adm. de Assuntos Corp. - Contrato",null,"Hemobrás Filial Unid. Adm. Recife","EP","CELETISTA","40 HORAS SEMANAIS","CONCURSO PÚBLICO","2015-10-20"]
[null,721,"MARIANA MAZZA GUIMARAES DE ARAUJO","044.441.104-65","Analista Adm. de Assuntos Corp. - Jornalismo",null,"Hemobrás Filial Unid. Adm. Recife","EP","CELETISTA","40 HORAS SEMANAIS","CONCURSO PÚBLICO","2024-01-10"]
[null,662,"MARIE CLAIRE CARNEIRO ALBUQUERQUE","119.116.184-66","Analista Ind. de Hemod. e Biotec. - Controle Qualidade - 2",null,"Hemobrás Filial Goiana Unid. Fabril","EP","CELETISTA","40 HORAS SEMANAIS","CONCURSO PÚBLICO","2023-07-24"]
[null,214,"MARILIA BARBOSA DO NASCIMENTO","057.096.624-88","Especialista em PHB - Controle Qualidade - I",null,"Hemobrás Filial Goiana Unid. Fabril","EP","CELETISTA","40 HORAS SEMANAIS","CONCURSO PÚBLICO","2014-02-20"]
[null,678,"MARILIA EVELLYN DE SANTANA DIAS","079.457.044-50","Analista Ind. de Hemod. e Biotec. - Fracion. Ind. Plasma 2",null,"Hemobrás Filial Goiana Unid. Fabril","EP","CELETISTA","40 HORAS SEMANAIS","CONCURSO PÚBLICO","2023-07-24"]
[null,629,"MARILIA KALINNE DA SILVA TORRES","085.593.894-31","Técnico Ind. e de Gestão Corp. - Triagem do Plasma",null,"Hemobrás Filial Goiana Unid. Fabril","EP","CELETISTA","40 HORAS SEMANAIS","CONCURSO PÚBLICO","2023-03-07"]
[null,233,"MARILIA MARQUES DA SILVA ANDRADE","060.654.384-80","Técnico Ind. e de Gestão Corp. - Triagem do Plasma",null,"Hemobrás Filial Goiana Unid. Fabril","EP","CELETISTA","40 HORAS SEMANAIS","CONCURSO PÚBLICO","2014-02-21"]
[null,742,"MARILIA SILVA PEREIRA DE LYRA","032.824.274-84","Assessor Juridico",null,"Hemobrás Filial Goiana Unid. Fabril","FC","CELETISTA","40 HORAS SEMANAIS","PORTARIA","2024-05-13"]
[null,442,"MARINA ROCHA ALVES DE ANDRADE","017.159.975-65","Analista Ind. de Hemod. e Biotec. - Plasma e Hemocomponentes",null,"Hemobrás Filial Goiana Unid. Fabril","Cedido","CELETISTA","40 HORAS SEMANAIS","CONCURSO PÚBLICO","2018-01-17"]
[null,189,"MARINETE CANDIDO DE GOUVEIA","621.165.504-59","Chefe de Serviço de Desenvolvimento de Pessoas",null,"Hemobrás Filial Goiana Unid. Fabril","FC","CELETISTA","40 HORAS SEMANAIS","PORTARIA","2013-01-10"]
[null,656,"MARLON ANDERSON CESAR DA SILVA","043.126.834-76","Analista Adm. de Assuntos Corp. - Tecnologia da Informação",null,"Hemobrás Filial Goiana Unid. Fabril","EP","CELETISTA","40 HORAS SEMANAIS","CONCURSO PÚBLICO","2023-07-24"]
[null,403,"MARLUCE ARAUJO DE LUNA","823.221.474-00","Analista Adm. de Assuntos Corp. - Auditoria Interna",null,"Hemobrás Filial Unid. Adm. Recife","EP","CELETISTA","40 HORAS SEMANAIS","CONCURSO PÚBLICO","2016-06-06"]
[null,445,"MATEUS PEREIRA SALVATORI","009.906.020-52","Analista Ind. de Hemod. e Biotec. - Controle Qualidade - 1",null,"Hemobrás Filial Goiana Unid. Fabril","EP","CELETISTA","40 HORAS SEMANAIS","CONCURSO PÚBLICO","2018-03-07"]
[null,577,"MATHEUS RODRIGUES SILVA","080.844.014-40","Analista Adm. de Assuntos Corp. - Orçamento e Finanças",null,"Hemobrás Filial Unid. Adm. Recife","EP","CELETISTA","40 HORAS SEMANAIS","CONCURSO PÚBLICO","2022-10-18"]
[null,517,"MAURICIO BARROS OTTONI","891.959.571-20","Gerente de Tecnologia de Informação e Comunicação",null,"Hemobrás Filial Goiana Unid. Fabril","FC","CELETISTA","40 HORAS SEMANAIS","PORTARIA","2022-01-03"]
[null,691,"MAX FELIPPE NERI LINS","093.165.024-03","Analista Ind. de Hemod. e Biotec. - Fracion. Ind. Plasma 2",null,"Hemobrás Filial Goiana Unid. Fabril","EP","CELETISTA","40 HORAS SEMANAIS","CONCURSO PÚBLICO","2023-07-24"]
[null,215,"MELISSA PAPALEO ROCHA DE LIMA","062.988.364-54","Especialista em PHB - Plasma e Hemocomponentes ","Gerente de Produtos e Suprimentos Farmacêuticos","Hemobrás Filial Unid. Adm. Recife","EP","CELETISTA","40 HORAS SEMANAIS","CONCURSO PÚBLICO","2014-02-20"]
[null,285,"MESSIAS LIMA DA SILVA","081.064.234-41","Técnico Ind. e de Gestão Corp. - Elétrica",null,"Hemobrás Filial Goiana Unid. Fabril","EP","CELETISTA","40 HORAS SEMANAIS","CONCURSO PÚBLICO","2014-08-04"]
[null,645,"MIGUEL WILSON REGUEIRA RIBEIRO","067.663.804-03","Analista Ind. de Hemod. e Biotec. - Controle Qualidade - 2",null,"Hemobrás Filial Goiana Unid. Fabril","EP","CELETISTA","40 HORAS SEMANAIS","CONCURSO PÚBLICO","2023-05-17"]
[null,595,"MILENA TEREZA TORRES DO COUTO","093.402.984-97","Analista Ind. de Hemod. e Biotec. - Fracion. Ind. Plasma 2",null,"Hemobrás Filial Goiana Unid. Fabril","EP","CELETISTA","40 HORAS SEMANAIS","CONCURSO PÚBLICO","2022-11-25"]
[null,346,"MIRELLA MUZZI DE LIMA","012.909.704-75","Analista Adm. de Assuntos Corp. - Licitação e Contratos","Assistente Tecnico Especializado","Hemobrás Filial Unid. Adm. Recife","EP","CELETISTA","40 HORAS SEMANAIS","CONCURSO PÚBLICO","2015-06-16"]
[null,438,"MIRELLA SOARES DA SILVA BEZERRA","012.848.714-36","Analista Ind. de Hemod. e Biotec. - Eng. Ambiental",null,"Hemobrás Filial Goiana Unid. Fabril","EP","CELETISTA","40 HORAS SEMANAIS","CONCURSO PÚBLICO","2018-01-15"]
[null,457,"MONICA ASFORA MOREIRA","708.055.394-68","Secretária Executiva",null,"Hemobrás Filial Unid. Adm. Recife","FC","CELETISTA","40 HORAS SEMANAIS","PORTARIA","2018-09-04"]
[null,690,"MONICA CORREIA SANTOS","051.804.474-29","Analista Ind. de Hemod. e Biotec. - Fracion. Ind. Plasma 2",null,"Hemobrás Filial Goiana Unid. Fabril","EP","CELETISTA","40 HORAS SEMANAIS","CONCURSO PÚBLICO","2023-07-24"]
[null,720,"MONIELLY MIRELLY LEITE DA SILVA","141.877.224-08","Aprendiz em Assistente Administrativo",null,"Hemobrás Filial Unid. Adm. Recife"," Aprendiz","CELETISTA","20 HORAS SEMANAIS","SELEÇÃO","2023-11-13"]
[null,555,"MYLENA FELIX DE LIRA","113.656.134-02","Analista Ind. de Hemod. e Biotec. - Controle Qualidade - 2",null,"Hemobrás Filial Goiana Unid. Fabril","EP","CELETISTA","40 HORAS SEMANAIS","CONCURSO PÚBLICO","2022-09-20"]
[null,373,"NADJA NAIRA DE FREITAS GONCALVES","377.939.774-91","Técnico Ind. e de Gestão Corp. - Triagem do Plasma",null,"Hemobrás Filial Goiana Unid. Fabril","EP","CELETISTA","40 HORAS SEMANAIS","CONCURSO PÚBLICO","2015-10-20"]
[null,267,"NARAYANNA MARTINS DANTAS","048.044.764-07","Analista Ind. de Hemod. e Biotec. - Garantia da Qualidade",null,"Hemobrás Filial Goiana Unid. Fabril","EP","CELETISTA","40 HORAS SEMANAIS","CONCURSO PÚBLICO","2014-07-14"]
[null,337,"NATALIA TAURINO DA SILVA","081.614.334-02","Assistente Ind. e de Gestão Corp - Assistente Administrativo",null,"Hemobrás Filial Unid. Adm. Recife","EP","CELETISTA","40 HORAS SEMANAIS","CONCURSO PÚBLICO","2015-04-16"]
[null,354,"NATHALIA BRITO JATAI","020.451.743-52","Analista Ind. de Hemod. e Biotec. - Garantia da Qualidade",null,"Hemobrás Filial Goiana Unid. Fabril","EP","CELETISTA","40 HORAS SEMANAIS","CONCURSO PÚBLICO","2015-06-16"]
[null,353,"NATHALIA MACIEL BEZERRA CAVALCANTI","064.275.094-70","Analista Adm. de Assuntos Corp. - Logística Farmacêutica","Chefe de Serviço de Logística Farmacêutica","Hemobrás Filial Unid. Adm. Recife","EP","CELETISTA","40 HORAS SEMANAIS","CONCURSO PÚBLICO","2015-06-16"]
[null,216,"NATHALIA ROCHA LIMA","600.063.723-33","Especialista em PHB - Controle Qualidade - I","Chefa de Serviço de Laboratório","Hemobrás Filial Goiana Unid. Fabril","EP","CELETISTA","40 HORAS SEMANAIS","CONCURSO PÚBLICO","2014-02-20"]
[null,339,"NAYANE BRANDAO DE MIRANDA","065.327.794-66","Analista Adm. de Assuntos Corp. - Orçamento e Finanças",null,"Hemobrás Filial Unid. Adm. Recife","EP","CELETISTA","40 HORAS SEMANAIS","CONCURSO PÚBLICO","2015-04-16"]
[null,697,"NAYARA BARBOSA TORRES DA SILVA","092.708.874-64","Analista Ind. de Hemod. e Biotec. - Fracion. Ind. Plasma 1",null,"Hemobrás Filial Goiana Unid. Fabril","EP","CELETISTA","40 HORAS SEMANAIS","CONCURSO PÚBLICO","2023-08-23"]
[null,566,"NEEMIAS SANTANA DA CONCEICAO OLIVEIRA","020.477.515-94","Analista Ind. de Hemod. e Biotec. - Garantia da Qualidade 2",null,"Hemobrás Filial Goiana Unid. Fabril","EP","CELETISTA","40 HORAS SEMANAIS","CONCURSO PÚBLICO","2022-09-20"]
[null,312,"NELSON GUTEMBERG ROCHA DA SILVA","052.517.034-06","Analista Adm. de Assuntos Corp. - Tecnologia da Informação",null,"Hemobrás Filial Goiana Unid. Fabril","EP","CELETISTA","40 HORAS SEMANAIS","CONCURSO PÚBLICO","2015-01-09"]
[null,650,"NICOLLAS ANGELO JUSTINO LUNA","113.662.414-79","Analista Ind. de Hemod. e Biotec. - Garantia da Qualidade 2",null,"Hemobrás Filial Goiana Unid. Fabril","EP","CELETISTA","40 HORAS SEMANAIS","CONCURSO PÚBLICO","2023-04-25"]
[null,43,"NORMA BACELAR BARBALHO","372.116.684-15","Analista Adm. de Assuntos Corp. - Contador I","Chefe de Serviço de Orçamento e Finanças","Hemobrás Filial Unid. Adm. Recife","EP","CELETISTA","40 HORAS SEMANAIS","CONCURSO PÚBLICO","2009-10-01"]
[null,243,"OSMAR BONNOMI","932.588.288-49","Analista Adm. de Assuntos Corp. - Compras Nac. e Internac.",null,"Hemobrás Filial Unid. Adm. Recife","EP","CELETISTA","40 HORAS SEMANAIS","CONCURSO PÚBLICO","2014-03-24"]
[null,634,"PATRICIA ANDRADE SOUSA","005.779.592-47","Analista Ind. de Hemod. e Biotec. - Garantia da Qualidade 2",null,"Hemobrás Filial Goiana Unid. Fabril","EP","CELETISTA","40 HORAS SEMANAIS","CONCURSO PÚBLICO","2023-02-24"]
[null,217,"PATRICIA BARROS DOS SANTOS","045.467.347-78","Especialista em PHB - Frac. Ind. Plasma 2","Assessora Especial","Hemobrás Filial Unid. Adm. Recife","EP","CELETISTA","40 HORAS SEMANAIS","CONCURSO PÚBLICO","2014-02-20"]
[null,539,"PATRYCK SILVA FARIAS","004.082.003-32","Analista Adm. de Assuntos Corp. - Logística Farmacêutica 1",null,"Hemobrás Filial Unid. Adm. Recife","EP","CELETISTA","40 HORAS SEMANAIS","CONCURSO PÚBLICO","2022-09-20"]
[null,280,"PAULA RAYANE DE SOUZA","082.294.724-24","Técnico Ind. e de Gestão Corp. - Triagem do Plasma",null,"Hemobrás Filial Goiana Unid. Fabril","EP","CELETISTA","40 HORAS SEMANAIS","CONCURSO PÚBLICO","2014-07-14"]
[null,272,"PAULO RICARDO FREIRE DE PAIVA JUNIOR","037.638.603-71","Analista Ind. de Hemod. e Biotec. - Fracion. Ind. Plasma 1",null,"Hemobrás Filial Goiana Unid. Fabril","EP","CELETISTA","40 HORAS SEMANAIS","CONCURSO PÚBLICO","2014-07-14"]
[null,599,"PEDRO AFONSO TOMAZ DE OLIVEIRA","122.712.194-69","Analista Ind. de Hemod. e Biotec. - Fracion. Ind. Plasma 1",null,"Hemobrás Filial Goiana Unid. Fabril","EP","CELETISTA","40 HORAS SEMANAIS","CONCURSO PÚBLICO","2022-11-25"]
[null,488,"PEDRO CANISIO BINSFELD","411.025.170-20","Conselheiro Administrativo",null,"Hemobrás Matriz - Brasília","Conselheiro Adm","NÃO SE APLICA","NÃO SE APLICA","TERMO DE POSSE","2020-01-17"]
[null,93,"PEDRO CANUTO VIEIRA DA COSTA","054.950.974-75","Especialista em PHB - Controle Qualidade - I","Gerente de Controle da Qualidade ","Hemobrás Filial Goiana Unid. Fabril","EP","CELETISTA","40 HORAS SEMANAIS","CONCURSO PÚBLICO","2010-11-22"]
[null,703,"PEDRO HENRIQUE CELESTINO DE OLIVEIRA","112.705.014-10","Analista Adm. de Ass Corp. - Audit. Interna,Gestao Risc.Conf",null,"Hemobrás Filial Unid. Adm. Recife","EP","CELETISTA","40 HORAS SEMANAIS","CONCURSO PÚBLICO","2023-08-23"]
[null,570,"PEDRO HENRIQUE DA SILVA","014.772.111-36","Analista Ind. de Hemod. e Biotec. - Garantia da Qualidade 2",null,"Hemobrás Filial Goiana Unid. Fabril","EP","CELETISTA","40 HORAS SEMANAIS","CONCURSO PÚBLICO","2022-09-20"]
[null,655,"PEDRO HENRIQUE GONCALVES DE MELO","107.418.114-05","Técnico Ind. e de Gestão Corp. - Refrigeração",null,"Hemobrás Filial Goiana Unid. Fabril","EP","CELETISTA","40 HORAS SEMANAIS","CONCURSO PÚBLICO","2023-07-24"]
[null,528,"PERLIA ZAIRINE DE CASTRO HERACLIO LIRA","107.553.004-08","Analista Ind. de Hemod. e Biotec. - Fracion. Ind. Plasma 1",null,"Hemobrás Filial Goiana Unid. Fabril","EP","CELETISTA","40 HORAS SEMANAIS","CONCURSO PÚBLICO","2022-03-17"]
[null,244,"PLUTARCO REIS DE MACEDO GRANJA","073.015.054-26","Analista de Ges. Corp. - Logística Farmacêutica","Ouvidor","Hemobrás Filial Unid. Adm. Recife","EP","CELETISTA","40 HORAS SEMANAIS","CONCURSO PÚBLICO","2014-03-24"]
[null,416,"POLIANNA ALVES DE CASTRO","792.923.801-68","Analista Ind. de Hemod. e Biotec. - Garantia da Qualidade",null,"Hemobrás Filial Goiana Unid. Fabril","EP","CELETISTA","40 HORAS SEMANAIS","CONCURSO PÚBLICO","2016-08-16"]
[null,621,"POLLYANA MARIA BARROS DE FRANCA","108.046.124-80","Analista Adm. de Ass Corp. - Audit. Interna,Gestao Risc.Conf",null,"Hemobrás Filial Unid. Adm. Recife","EP","CELETISTA","40 HORAS SEMANAIS","CONCURSO PÚBLICO","2023-01-25"]
[null,529,"POLLYANNA LEITE FERREIRA DA COSTA","013.006.744-07","Analista Ind. de Hemod. e Biotec. - Fracion. Ind. Plasma 1",null,"Hemobrás Filial Goiana Unid. Fabril","EP","CELETISTA","40 HORAS SEMANAIS","CONCURSO PÚBLICO","2022-03-17"]
[null,643,"PRISCILA ROBERTA DE AZEVEDO","042.700.514-00","Analista Ind. de Hemod. e Biotec. - Controle Qualidade - 2",null,"Hemobrás Filial Goiana Unid. Fabril","EP","CELETISTA","40 HORAS SEMANAIS","CONCURSO PÚBLICO","2023-04-25"]
[null,657,"RAFAEL CALDAS PEREIRA","062.164.134-06","Analista Ind. de Hemod. e Biotec. - Controle Qualidade - 2",null,"Hemobrás Filial Goiana Unid. Fabril","EP","CELETISTA","40 HORAS SEMANAIS","CONCURSO PÚBLICO","2023-07-24"]
[null,682,"RAFAEL CANDIDO ALVES AGUIAR","054.252.816-92","Analista Ind. de Hemod. e Biotec. - Fracion. Ind. Plasma 1",null,"Hemobrás Filial Unid. Adm. Recife","EP","CELETISTA","40 HORAS SEMANAIS","CONCURSO PÚBLICO","2023-07-24"]
[null,313,"RAFAEL ELIAS SALOMAO JAEGGER","063.252.684-07","Analista Adm. de Assuntos Corp. - Administração de Pessoal","Gerente de Gestão de Pessoas ","Hemobrás Filial Unid. Adm. Recife","EP","CELETISTA","40 HORAS SEMANAIS","CONCURSO PÚBLICO","2015-01-09"]
[null,686,"RAFAELA BARCELOS DOS SANTOS","054.067.911-92","Analista Ind. de Hemod. e Biotec. - Fracion. Ind. Plasma 2",null,"Hemobrás Filial Goiana Unid. Fabril","EP","CELETISTA","40 HORAS SEMANAIS","CONCURSO PÚBLICO","2023-07-24"]
[null,631,"RAILA DE ARAUJO SABINO","081.780.474-97","Analista Ind. de Hemod. e Biotec. - Controle Qualidade - 2",null,"Hemobrás Filial Goiana Unid. Fabril","EP","CELETISTA","40 HORAS SEMANAIS","CONCURSO PÚBLICO","2023-02-24"]
[null,618,"RAIMUNDO CARDOSO DE OLIVEIRA NETO","046.319.073-47","Analista Ind. de Hemod. e Biotec. - Controle Qualidade - 3",null,"Hemobrás Filial Goiana Unid. Fabril","EP","CELETISTA","40 HORAS SEMANAIS","CONCURSO PÚBLICO","2023-01-25"]
[null,733,"RAISSA RODRIGUES RIBEIRO DOS SANTOS","082.567.924-93","Aprendiz em Assistente Administrativo",null,"Hemobrás Filial Goiana Unid. Fabril","Aprendiz","CELETISTA","20 HORAS SEMANAIS","SELEÇÃO","2024-02-05"]
[null,276,"RAPHAEL VALE MENDES","110.951.837-45","Analista Adm. de Assuntos Corp. - Economia","Assessor de Planejamento e Projetos","Hemobrás Filial Unid. Adm. Recife","EP","CELETISTA","40 HORAS SEMANAIS","CONCURSO PÚBLICO","2014-07-14"]
[null,732,"RAQUEL DO ESPIRITO SANTO SILVA","125.428.234-30","Aprendiz em Assistente Administrativo",null,"Hemobrás Filial Unid. Adm. Recife","Aprendiz","CELETISTA","20 HORAS SEMANAIS","SELEÇÃO","2024-02-05"]
[null,552,"RAQUEL GOIS BASTOS","027.918.105-10","Analista Ind. de Hemod. e Biotec. - Plasma e Hemocomponentes",null,"Hemobrás Filial Unid. Adm. Recife","EP","CELETISTA","40 HORAS SEMANAIS","CONCURSO PÚBLICO","2022-09-20"]
[null,51,"RAQUEL JACQUES DE FARIAS MADRUGA","064.045.824-65","Especialista em PHB - Garantia da Qualidade - I","Chefe de Serviço de Produção de Biotecnológicos","Hemobrás Filial Goiana Unid. Fabril","EP","CELETISTA","40 HORAS SEMANAIS","CONCURSO PÚBLICO","2009-08-04"]
[null,687,"RAYSSA TOSCANO DUARTE","101.349.074-69","Analista Ind. de Hemod. e Biotec. - Fracion. Ind. Plasma 1",null,"Hemobrás Filial Goiana Unid. Fabril","EP","CELETISTA","40 HORAS SEMANAIS","CONCURSO PÚBLICO","2023-07-24"]
[null,600,"RENATA MENDES BATISTA DE OLIVEIRA GOUVEIA","046.135.314-89","Analista Ind. de Hemod. e Biotec. - Fracion. Ind. Plasma 2",null,"Hemobrás Filial Goiana Unid. Fabril","EP","CELETISTA","40 HORAS SEMANAIS","CONCURSO PÚBLICO","2022-11-25"]
[null,303,"RENATA MENDONCA DE MENEZES LYRA","053.904.174-29","Técnico Ind. e de Gestão Corp. - Segurança do Trabalho",null,"Hemobrás Filial Goiana Unid. Fabril","EP","CELETISTA","40 HORAS SEMANAIS","CONCURSO PÚBLICO","2014-12-05"]
[null,689,"RENATA VITORIA DA SILVA SOBRAL","113.077.234-97","Analista Ind. de Hemod. e Biotec. - Fracion. Ind. Plasma 2",null,"Hemobrás Filial Goiana Unid. Fabril","EP","CELETISTA","40 HORAS SEMANAIS","CONCURSO PÚBLICO","2023-07-24"]
[null,218,"RENATO CESAR VIEIRA DE SOUSA","051.629.874-76","Especialista em PHB - Garantia da Qualidade",null,"Hemobrás Filial Goiana Unid. Fabril","EP","CELETISTA","40 HORAS SEMANAIS","CONCURSO PÚBLICO","2014-02-20"]
[null,651,"RENATO DA SILVA SOUZA","130.552.394-66","Analista Ind. de Hemod. e Biotec. - Garantia da Qualidade 2",null,"Hemobrás Filial Goiana Unid. Fabril","EP","CELETISTA","40 HORAS SEMANAIS","CONCURSO PÚBLICO","2023-04-25"]
[null,436,"RENATO DE ARAUJO FERREIRA","084.438.738-09","Assessor Técnico Especializado",null,"Hemobrás Filial Unid. Adm. Recife","FC","CELETISTA","40 HORAS SEMANAIS","PORTARIA","2017-08-03"]
[null,722,"RICARDO ALVES DE BRITO","049.743.274-96","Analista Adm. de Assuntos Corp. - Orçamento e Finanças",null,"Hemobrás Filial Unid. Adm. Recife","EP","CELETISTA","40 HORAS SEMANAIS","CONCURSO PÚBLICO","2024-01-10"]
[null,268,"RICARDO GALINDO PAES DE LIRA","033.693.294-41","Analista Ind. de Hemod. e Biotec. - Garantia da Qualidade",null,"Hemobrás Filial Goiana Unid. Fabril","EP","CELETISTA","40 HORAS SEMANAIS","CONCURSO PÚBLICO","2014-07-14"]
[null,407,"RICARDO NUNES RIBEIRO","092.364.636-14","Analista Adm. de Assuntos Corp. - Logística Farmacêutica","Chefe de Serviço de Produtos e Insumos Farmacêuticos","Hemobrás Filial Goiana Unid. Fabril","EP","CELETISTA","40 HORAS SEMANAIS","CONCURSO PÚBLICO","2016-07-14"]
[null,96,"ROBERTA FREIRE DE CARVALHO FEITOSA","455.855.204-15","Analista de Ges. Corp. - Contador I",null,"Hemobrás Filial Unid. Adm. Recife","Cedido","CELETISTA","40 HORAS SEMANAIS","CONCURSO PÚBLICO","2010-12-27"]
[null,314,"RODRIGO DE LIMA FERREIRA","692.451.936-91","Assistente Ind. e de Gestão Corp - Assistente Administrativo",null,"Hemobrás Filial Goiana Unid. Fabril","EP","CELETISTA","40 HORAS SEMANAIS","CONCURSO PÚBLICO","2015-01-09"]
[null,356,"RODRIGO NUNES DE MELO","055.248.794-56","Analista Ind. de Hemod. e Biotec. - Eng. Elétrica",null,"Hemobrás Filial Goiana Unid. Fabril","EP","CELETISTA","40 HORAS SEMANAIS","CONCURSO PÚBLICO","2015-06-16"]
[null,652,"RODRIGO VINICIUS BRITO LIRA","106.989.284-07","Analista Ind. de Hemod. e Biotec. - Garantia da Qualidade 2",null,"Hemobrás Filial Goiana Unid. Fabril","EP","CELETISTA","40 HORAS SEMANAIS","CONCURSO PÚBLICO","2023-04-25"]
[null,52,"RONALDO CARLOS OLIVEIRA","780.888.449-91","Especialista em PHB - Eng. Químico - I",null,"Hemobrás Filial Goiana Unid. Fabril","EP","CELETISTA","40 HORAS SEMANAIS","CONCURSO PÚBLICO","2009-06-23"]
[null,567,"RONALDO GONCALVES NOGUEIRA","035.277.806-70","Analista Ind. de Hemod. e Biotec. - Garantia da Qualidade 2","Chefe de Serviço de Normas e Procedimentos","Hemobrás Filial Goiana Unid. Fabril","EP","CELETISTA","40 HORAS SEMANAIS","CONCURSO PÚBLICO","2022-09-20"]
[null,647,"RONALDO LEITE MATIAS","856.551.204-53","Analista Ind. de Hemod. e Biotec. - Eng. Automação e Controle",null,"Hemobrás Filial Goiana Unid. Fabril","EP","CELETISTA","40 HORAS SEMANAIS","CONCURSO PÚBLICO","2023-04-25"]
[null,705,"RONICLEY PINHEIRO MARTINS DE JESUS","021.223.145-67","Analista Adm. de Assuntos Corp. - Compras Nac. e Internac.",null,"Hemobrás Filial Unid. Adm. Recife","EP","CELETISTA","40 HORAS SEMANAIS","CONCURSO PÚBLICO","2023-09-11"]
[null,554,"RONMILSON ALVES MARQUES","057.170.484-08","Analista Ind. de Hemod. e Biotec. - Controle Qualidade - 2",null,"Hemobrás Filial Goiana Unid. Fabril","EP","CELETISTA","40 HORAS SEMANAIS","CONCURSO PÚBLICO","2022-09-20"]
[null,688,"ROSILANE SOARES PINTO DA SILVA","456.972.484-15","Analista Ind. de Hemod. e Biotec. - Fracion. Ind. Plasma 2",null,"Hemobrás Filial Goiana Unid. Fabril","EP","CELETISTA","40 HORAS SEMANAIS","CONCURSO PÚBLICO","2023-07-24"]
[null,315,"ROSSANA MARIA CARVALHO BRAGA","935.730.304-91","Analista Ind. de Hemod. e Biotec. - Armaz e Distrib de Medic",null,"Hemobrás Filial Goiana Unid. Fabril","EP","CELETISTA","40 HORAS SEMANAIS","CONCURSO PÚBLICO","2015-01-09"]
[null,718,"RUBENS ZAQUEU OLIVEIRA DOS SANTOS","111.789.274-31","Assistente Ind. e de Gestão Corp - Assistente Administrativo",null,"Hemobrás Filial Unid. Adm. Recife","EP","CELETISTA","40 HORAS SEMANAIS","CONCURSO PÚBLICO","2023-10-09"]
[null,235,"SABRINA ANDRADE DE ALCANTARA","048.691.104-74","Assistente Ind. e de Gestão Corp - Assistente Administrativo",null,"Hemobrás Filial Unid. Adm. Recife","EP","CELETISTA","40 HORAS SEMANAIS","CONCURSO PÚBLICO","2014-02-21"]
[null,220,"SABRINA POLETTO","010.536.059-78","Especialista em PHB - Frac. Ind. Plasma 1 - I","Chefe de Serviço de Envase e Embalagem","Hemobrás Filial Goiana Unid. Fabril","EP","CELETISTA","40 HORAS SEMANAIS","CONCURSO PÚBLICO","2014-02-20"]
[null,604,"SANDRO DE SOUSA LEAL","051.943.034-40","Analista Ind. de Hemod. e Biotec. - Fracion. Ind. Plasma 2",null,"Hemobrás Filial Goiana Unid. Fabril","EP","CELETISTA","40 HORAS SEMANAIS","CONCURSO PÚBLICO","2022-11-25"]
[null,571,"SARAH CHRISTINE CAVALCANTI XIMENES","038.389.084-57","Analista Ind. de Hemod. e Biotec. - Garantia da Qualidade 2",null,"Hemobrás Filial Goiana Unid. Fabril","EP","CELETISTA","40 HORAS SEMANAIS","CONCURSO PÚBLICO","2022-09-20"]
[null,106,"SAULO BANDEIRA DURVAL","733.083.234-00","Assistente Ind. e de Gestão Corp - Téc. em Contabilidade I","Gerente de Licitações e Contratações","Hemobrás Filial Unid. Adm. Recife","EP","CELETISTA","40 HORAS SEMANAIS","CONCURSO PÚBLICO","2011-03-02"]
[null,605,"SAULO HENRIQUE SILVA","096.848.484-04","Analista Ind. de Hemod. e Biotec. - Fracion. Ind. Plasma 2",null,"Hemobrás Filial Goiana Unid. Fabril","EP","CELETISTA","40 HORAS SEMANAIS","CONCURSO PÚBLICO","2022-11-25"]
[null,608,"SERGIO CORREIA DA CONCEICAO","866.589.724-00","Técnico Ind. e de Gestão Corp. - Triagem do Plasma",null,"Hemobrás Filial Goiana Unid. Fabril","EP","CELETISTA","40 HORAS SEMANAIS","CONCURSO PÚBLICO","2023-01-25"]
[null,394,"SEVERINA JAKELINE PEDROSA DE ARAUJO ALBUQUERQUE","073.917.174-79","Analista Adm. de Assuntos Corp. - Analista Jurídico",null,"Hemobrás Filial Unid. Adm. Recife","Cedido","CELETISTA","40 HORAS SEMANAIS","CONCURSO PÚBLICO","2016-03-02"]
[null,616,"SEVERINO GRANGEIRO JUNIOR","458.956.513-72","Analista Ind. de Hemod. e Biotec. - Controle Qualidade - 2",null,"Hemobrás Filial Goiana Unid. Fabril","EP","CELETISTA","40 HORAS SEMANAIS","CONCURSO PÚBLICO","2023-01-25"]
[null,737,"SEVERINO JOSE DE BARROS JUNIOR","048.956.724-09","Analista Adm. de Assuntos Corp. - Tecnologia da Informação",null,"Hemobrás Filial Goiana Unid. Fabril","EP","CELETISTA","40 HORAS SEMANAIS","CONCURSO PÚBLICO","2024-03-18"]
[null,588,"SHEILA CRISTINA AZEVEDO DA SILVA CHAVES","961.081.344-53","Analista Adm. de Assuntos Corp. - Assessoria Administrativa",null,"Hemobrás Filial Unid. Adm. Recife","EP","CELETISTA","40 HORAS SEMANAIS","CONCURSO PÚBLICO","2023-01-25"]
[null,386,"SIMONE CRISTINA FEITOSA BRITO","630.771.594-49","Secretária Executiva",null,"Hemobrás Filial Unid. Adm. Recife","FC","CELETISTA","40 HORAS SEMANAIS","PORTARIA","2016-02-03"]
[null,736,"SIMONE MARQUES COSTA","932.010.604-53","Analista Adm. de Assuntos Corp. - Administração de Pessoal",null,"Hemobrás Filial Unid. Adm. Recife","EP","CELETISTA","40 HORAS SEMANAIS","CONCURSO PÚBLICO","2024-03-18"]
[null,506,"SUELENE MAMEDE DE OLIVEIRA","460.758.524-68","Especialista em PHB - Controle Qualidade - I","Assessora Tecnica Especializada","Hemobrás Filial Unid. Adm. Recife","EP","CELETISTA","40 HORAS SEMANAIS","CONCURSO PÚBLICO","2008-01-14"]
[null,219,"SUELLEN DE OLIVEIRA SANTOS","068.663.394-64","Especialista em PHB - Garantia da Qualidade - I",null,"Hemobrás Filial Goiana Unid. Fabril","EP","CELETISTA","40 HORAS SEMANAIS","CONCURSO PÚBLICO","2014-02-20"]
[null,606,"SURYA BUSS","084.247.899-03","Analista Ind. de Hemod. e Biotec. - Fracion. Ind. Plasma 1",null,"Hemobrás Filial Goiana Unid. Fabril","EP","CELETISTA","40 HORAS SEMANAIS","CONCURSO PÚBLICO","2022-11-28"]
[null,654,"SUZANNY SANTOS SEAL","096.493.024-25","Analista Adm. de Assuntos Corp. - Compras Nac. e Internac.",null,"Hemobrás Filial Unid. Adm. Recife","EP","CELETISTA","40 HORAS SEMANAIS","CONCURSO PÚBLICO","2023-07-24"]
[null,670,"SYMON JONATAN SANTIAGO PAULINO","092.452.124-40","Analista Ind. de Hemod. e Biotec. - Fracion. Ind. Plasma 2",null,"Hemobrás Filial Goiana Unid. Fabril","EP","CELETISTA","40 HORAS SEMANAIS","CONCURSO PÚBLICO","2023-07-24"]
[null,221,"TALITA GOMES CALACA MENEZES","073.694.774-44","Especialista em PHB - Frac. Ind. Plasma 1 - I","Assessora de Conformidade e Gerenciamento de Riscos","Hemobrás Filial Unid. Adm. Recife","EP","CELETISTA","40 HORAS SEMANAIS","CONCURSO PÚBLICO","2014-02-20"]
[null,646,"TAMIRES GONCALVES DE JESUS","062.825.675-21","Analista Ind. de Hemod. e Biotec. - Controle Qualidade - 2",null,"Hemobrás Filial Goiana Unid. Fabril","EP","CELETISTA","40 HORAS SEMANAIS","CONCURSO PÚBLICO","2023-04-25"]
[null,531,"TARCISIO TARCIO CORREA BONIFACIO","101.548.554-56","Analista Ind. de Hemod. e Biotec. - Fracion. Ind. Plasma 1",null,"Hemobrás Filial Goiana Unid. Fabril","EP","CELETISTA","40 HORAS SEMANAIS","CONCURSO PÚBLICO","2022-04-13"]
[null,475,"TATIANE CIBELE DE SOUZA GOMES","042.354.324-51","Analista Ind. de Hemod. e Biotec. - Controle Qualidade - 1",null,"Hemobrás Filial Goiana Unid. Fabril","EP","CELETISTA","40 HORAS SEMANAIS","CONCURSO PÚBLICO","2019-03-01"]
[null,390,"TEREZA MANUELA DOS SANTOS PAES BARRETO","042.430.884-38","Analista Adm. De Assuntos Corp. - Auditoria Interna",null,"Hemobrás Filial Unid. Adm. Recife","EP","CELETISTA","40 HORAS SEMANAIS","CONCURSO PÚBLICO","2016-02-16"]
[null,635,"THACIANE DA CUNHA SOARES SILVA","075.873.934-63","Analista Ind. de Hemod. e Biotec. - Garantia da Qualidade 2",null,"Hemobrás Filial Goiana Unid. Fabril","EP","CELETISTA","40 HORAS SEMANAIS","CONCURSO PÚBLICO","2023-03-13"]
[null,572,"THALITA PEDON DE ARAUJO CARDOSO","089.650.084-50","Analista Ind. de Hemod. e Biotec. - Garantia da Qualidade 2",null,"Hemobrás Filial Goiana Unid. Fabril","EP","CELETISTA","40 HORAS SEMANAIS","CONCURSO PÚBLICO","2022-09-20"]
[null,636,"THANIA MAURA RODRIGUES BEZERRA","055.152.783-80","Analista Ind. de Hemod. e Biotec. - Garantia da Qualidade 2",null,"Hemobrás Filial Goiana Unid. Fabril","EP","CELETISTA","40 HORAS SEMANAIS","CONCURSO PÚBLICO","2023-02-24"]
[null,480,"THAYSE NAYARA BEZERRA DA CRUZ","066.584.844-73","Analista Adm. de Assuntos Corp. - Logística Farmacêutica",null,"Hemobrás Filial Unid. Adm. Recife","EP","CELETISTA","40 HORAS SEMANAIS","CONCURSO PÚBLICO","2019-05-07"]
[null,716,"THIAGO HENRIQUE DE FARIAS BELCHIOR","068.948.684-76","Assistente Ind. e de Gestão Corp - Assistente de Informática",null,"Hemobrás Filial Goiana Unid. Fabril","EP","CELETISTA","40 HORAS SEMANAIS","CONCURSO PÚBLICO","2023-10-09"]
[null,680,"THIALE BORGES SILVA DOS SANTOS","055.663.835-21","Analista Ind. de Hemod. e Biotec. - Fracion. Ind. Plasma 1",null,"Hemobrás Filial Goiana Unid. Fabril","EP","CELETISTA","40 HORAS SEMANAIS","CONCURSO PÚBLICO","2023-07-24"]
[null,540,"TIAGO BEZERRA LIMA","072.912.774-50","Analista Adm. de Assuntos Corp. - Contrato",null,"Hemobrás Filial Goiana Unid. Fabril","EP","CELETISTA","40 HORAS SEMANAIS","CONCURSO PÚBLICO","2022-09-20"]
[null,319,"TIAGO CAMPOS RODRIGUES DE SOUZA","073.746.004-02","Analista Adm. de Assuntos Corp. - Analista Jurídico","Assessor Jurídico","Hemobrás Filial Unid. Adm. Recife","EP","CELETISTA","40 HORAS SEMANAIS","CONCURSO PÚBLICO","2015-03-02"]
[null,617,"VANESSA BALDEZ BRUM","099.614.177-47","Analista Ind. de Hemod. e Biotec. - Controle Qualidade - 2",null,"Hemobrás Filial Goiana Unid. Fabril","EP","CELETISTA","40 HORAS SEMANAIS","CONCURSO PÚBLICO","2023-02-24"]
[null,316,"VANESSA BARBOSA TELES","005.057.605-41","Assistente Ind. e de Gestão Corp - Assistente Administrativo",null,"Hemobrás Filial Unid. Adm. Recife","EP","CELETISTA","40 HORAS SEMANAIS","CONCURSO PÚBLICO","2015-01-09"]
[null,284,"VANESSA SILVA DE OLIVEIRA GOMES","088.135.844-40","Analista Ind. de Hemod. e Biotec. - Fracion. Ind. Plasma 1",null,"Hemobrás Filial Goiana Unid. Fabril","EP","CELETISTA","40 HORAS SEMANAIS","CONCURSO PÚBLICO","2014-08-04"]
[null,55,"VICENTE ANTONIO DAS NEVES NETO","070.551.454-49","Técnico Ind. e de Gestão Corporativa",null,"Hemobrás Filial Unid. Adm. Recife","EP","CELETISTA","40 HORAS SEMANAIS","CONCURSO PÚBLICO","2009-10-01"]
[null,723,"VICENTE JOSE ALVES BACELAR","360.436.804-91","Analista Adm. de Assuntos Corp. - Tecnologia da Informação",null,"Hemobrás Filial Goiana Unid. Fabril","EP","CELETISTA","40 HORAS SEMANAIS","CONCURSO PÚBLICO","2024-01-10"]
[null,665,"VICTOR HUGO CAVALCANTI FERREIRA SILVA","052.295.384-06","Analista Ind. de Hemod. e Biotec. - Fracion. Ind. Plasma 1",null,"Hemobrás Filial Goiana Unid. Fabril","EP","CELETISTA","40 HORAS SEMANAIS","CONCURSO PÚBLICO","2023-07-24"]
[null,546,"VINICIUS FURTADO PONTES","051.552.183-30","Analista Adm. de Assuntos Corp. - Logística Farmacêutica 1",null,"Hemobrás Filial Goiana Unid. Fabril","EP","CELETISTA","40 HORAS SEMANAIS","CONCURSO PÚBLICO","2022-09-20"]
[null,548,"VITOR BUARQUE VALENCA","103.154.914-50","Analista Adm. de Assuntos Corp. - Logística Farmacêutica 2",null,"Hemobrás Filial Unid. Adm. Recife","EP","CELETISTA","40 HORAS SEMANAIS","CONCURSO PÚBLICO","2022-09-20"]
[null,240,"VIVIANE JUDITE SANTOS DA SILVA","056.689.634-62","Técnico Ind. e de Gestão Corp. - Triagem do Plasma",null,"Hemobrás Filial Goiana Unid. Fabril","EP","CELETISTA","40 HORAS SEMANAIS","CONCURSO PÚBLICO","2014-03-24"]
[null,711,"WEDSON LEANDRO LIMA DOS SANTOS","154.910.544-29","Aprendiz em Assistente Administrativo",null,"Hemobrás Filial Unid. Adm. Recife"," Aprendiz","CELETISTA","20 HORAS SEMANAIS","SELEÇÃO","2023-09-11"]
[null,613,"WILLIAMIS DO NASCIMENTO","030.534.604-08","Analista Ind. de Hemod. e Biotec. - Controle Qualidade - 1",null,"Hemobrás Filial Goiana Unid. Fabril","EP","CELETISTA","40 HORAS SEMANAIS","CONCURSO PÚBLICO","2023-01-25"]